Workbook

Sheet Fig2c, S2c
A1: Date | B1: Rab | C1: Fly | D1: Mating | E1: Gland | F1: Quad | G1: Type | H1: Localization | I1: Grade | K1: Grading | R1: SUPP. FIG. 2C | V1: VIRGIN | AD1: MATED
A2: 26.Mar.19 | B2: Rab7 | C2: 1a | D2: M | E2: AG | F2: 1 | G2: P | H2: Apical 2 | I2: 1 | K2: 0 | L2: Not present | X2: TYPEC | AE2: TYPEC
A3: 26.Mar.19 | B3: Rab7 | C3: 1a | D3: M | E3: AG | F3: 1 | G3: P | H3: Medial 2 | I3: 1 | K3: 1 | L3: Low abundance | W3: P | X3: LMC | Z3: D | AD3: P | AE3: C | AG3: D
A4: 26.Mar.19 | B4: Rab7 | C4: 1a | D4: M | E4: AG | F4: 1 | G4: P | H4: Basal 2 | I4: 1 | K4: 2 | L4: High abundance | V4: VALUE | W4: Count | X4: Count | Z4: Count | AA4: VALUE | AC4: VALUE | AD4: Count | AE4: Count | AG4: Count | AH4: VLAUE
A5: 26.Mar.19 | B5: Rab7 | C5: 1a | D5: M | E5: AG | F5: 1 | G5: D | H5: Apical 2 | I5: 1 | T5: Rab5 | U5: Apical | V5: 1 | W5: 57 | X5: 0 | Z5: 33 | AA5: 0 | AC5: 1 | AD5: 48 | AE5: 1 | AG5: 54 | AH5: 0
A6: 26.Mar.19 | B6: Rab7 | C6: 1a | D6: M | E6: AG | F6: 1 | G6: D | H6: Medial 2 | I6: 1 | V6: 2 | W6: 17 | X6: 0 | Z6: 47 | AA6: 1 | AC6: 2 | AD6: 14 | AE6: 0 | AG6: 20 | AH6: 1
A7: 26.Mar.19 | B7: Rab7 | C7: 1a | D7: M | E7: AG | F7: 1 | G7: D | H7: Basal 2 | I7: 1 | K7: P | L7: Punctate
A8: 26.Mar.19 | B8: Rab7 | C8: 1a | D8: M | E8: AG | F8: 1 | G8: C | H8: Apical 2 | I8: 0 | K8: C | L8: Cortical | U8: Medial | V8: 1 | W8: 69 | X8: 0 | Z8: 35 | AA8: 0 | AC8: 1 | AD8: 45 | AE8: 0 | AG8: 60 | AH8: 0
A9: 26.Mar.19 | B9: Rab7 | C9: 1a | D9: M | E9: AG | F9: 1 | G9: C | H9: Medial 2 | I9: 0 | K9: D | L9: Diffuse | V9: 2 | W9: 3 | X9: 0 | Z9: 45 | AA9: 1 | AC9: 2 | AD9: 16 | AE9: 0 | AG9: 14 | AH9: 1
A10: 26.Mar.19 | B10: Rab7 | C10: 1a | D10: M | E10: AG | F10: 1 | G10: C | H10: Basal 2 | I10: 0
A11: 26.Mar.19 | B11: Rab7 | C11: 1a | D11: M | E11: AG | F11: 2 | G11: P | H11: Apical 2 | I11: 1 | U11: Basal | V11: 1 | W11: 69 | X11: 0 | Z11: 36 | AA11: 0 | AC11: 1 | AD11: 47 | AE11: 1 | AG11: 57 | AH11: 0
A12: 26.Mar.19 | B12: Rab7 | C12: 1a | D12: M | E12: AG | F12: 2 | G12: P | H12: Medial 2 | I12: 1 | V12: 2 | W12: 11 | X12: 0 | Z12: 44 | AA12: 1 | AC12: 2 | AD12: 17 | AE12: 0 | AG12: 17 | AH12: 1
A13: 26.Mar.19 | B13: Rab7 | C13: 1a | D13: M | E13: AG | F13: 2 | G13: P | H13: Basal 2 | I13: 0 | K13: COUNT OF REGIONS
A14: 26.Mar.19 | B14: Rab7 | C14: 1a | D14: M | E14: AG | F14: 2 | G14: D | H14: Apical 2 | I14: 1 | L14: VIRGIN | P14: MATED | T14: Rab7 | U14: Apical | V14: 1 | W14: T | X14: 26 | Z14: 30 | AA14: 0 | AC14: 1 | AD14: 43 | AE14: 13 | AG14: 26 | AH14: 0
A15: 26.Mar.19 | B15: Rab7 | C15: 1a | D15: M | E15: AG | F15: 2 | G15: D | H15: Medial 2 | I15: 1 | L15: P | M15: C | N15: D | P15: P | Q15: C | R15: D | V15: 2 | W15: 29 | X15: 7 | Z15: 92 | AA15: 1 | AC15: 2 | AD15: 17 | AE15: 0 | AG15: 65 | AH15: 1
A16: 26.Mar.19 | B16: Rab7 | C16: 1a | D16: M | E16: AG | F16: 2 | G16: D | H16: Basal 2 | I16: 1 | K16: Rab5
A17: 26.Mar.19 | B17: Rab7 | C17: 1a | D17: M | E17: AG | F17: 2 | G17: C | H17: Apical 2 | I17: 0 | K17: 0 | N17: 104 | R17: 171 | U17: Medial | V17: 1 | W17: 69 | X17: 17 | Z17: 86 | AA17: 0 | AC17: 1 | AD17: 45 | AE17: 3 | AG17: 27 | AH17: 0
A18: 26.Mar.19 | B18: Rab7 | C18: 1a | D18: M | E18: AG | F18: 2 | G18: C | H18: Medial 2 | I18: 0 | K18: 1 | L18: 195 | N18: 136 | P18: 140 | Q18: 2 | R18: 51 | V18: 2 | W18: 25 | X18: 8 | Z18: 1 | AA18: 1 | AC18: 2 | AD18: 17 | AE18: 2 | AG18: 64 | AH18: 1
A19: 26.Mar.19 | B19: Rab7 | C19: 1a | D19: M | E19: AG | F19: 2 | G19: C | H19: Basal 2 | I19: 0 | K19: 2 | L19: 31 | P19: 47
A20: 26.Mar.19 | B20: Rab7 | C20: 1a | D20: M | E20: AG | F20: 3 | G20: P | H20: Apical 2 | I20: 0 | K20: TOTAL | L20: =SUM(L18:L19) -> 226 | M20: =SUM(M18:M19) -> 0 | N20: =SUM(N17:N19) -> 240 | P20: 187 | Q20: 2 | R20: =SUM(R17:R19) -> 222 | U20: Basal | V20: 1 | W20: 74 | X20: 17 | Z20: 42 | AA20: 0 | AC20: 1 | AD20: 42 | AE20: 4 | AG20: 32 | AH20: 0
A21: 26.Mar.19 | B21: Rab7 | C21: 1a | D21: M | E21: AG | F21: 3 | G21: P | H21: Medial 2 | I21: 0 | V21: 2 | W21: 17 | X21: 5 | Z21: 80 | AA21: 1 | AC21: 2 | AD21: 12 | AE21: 2 | AG21: 59 | AH21: 1
A22: 26.Mar.19 | B22: Rab7 | C22: 1a | D22: M | E22: AG | F22: 3 | G22: P | H22: Basal 2 | I22: 0 | K22: Rab7
A23: 26.Mar.19 | B23: Rab7 | C23: 1a | D23: M | E23: AG | F23: 3 | G23: D | H23: Apical 2 | I23: 1 | K23: 0 | N23: 107 | R23: 85 | T23: Rab11 | U23: Apical | V23: 1 | W23: 29 | X23: 21 | Z23: 16 | AA23: 0 | AC23: 1 | AD23: 26 | AE23: 9 | AG23: 34 | AH23: 0
A24: 26.Mar.19 | B24: Rab7 | C24: 1a | D24: M | E24: AG | F24: 3 | G24: D | H24: Medial 2 | I24: 1 | K24: 1 | L24: 206 | M24: 60 | N24: 258 | P24: 130 | Q24: 20 | R24: 188 | V24: 2 | W24: 9 | X24: 0 | Z24: 108 | AA24: 1 | AC24: 2 | AD24: 11 | AE24: 2 | AG24: 82 | AH24: 1
A25: 26.Mar.19 | B25: Rab7 | C25: 1a | D25: M | E25: AG | F25: 3 | G25: D | H25: Basal 2 | I25: 1 | K25: 2 | L25: 71 | M25: 20 | N25: 1 | P25: 46 | Q25: 4
A26: 26.Mar.19 | B26: Rab7 | C26: 1a | D26: M | E26: AG | F26: 3 | G26: C | H26: Apical 2 | I26: 0 | K26: TOTAL | L26: =SUM(L24:L25) -> 277 | M26: =SUM(M24:M25) -> 80 | N26: =SUM(N23:N25) -> 366 | P26: =SUM(P24:P25) -> 176 | Q26: 24 | R26: =SUM(R23:R25) -> 273 | U26: Medial | V26: 1 | W26: 19 | X26: 8 | Z26: 15 | AA26: 0 | AC26: 1 | AD26: 15 | AE26: 5 | AG26: 24 | AH26: 0
A27: 26.Mar.19 | B27: Rab7 | C27: 1a | D27: M | E27: AG | F27: 3 | G27: C | H27: Medial 2 | I27: 0 | V27: 2 | W27: 1 | X27: 0 | Z27: 109 | AA27: 1 | AC27: 2 | AD27: 8 | AE27: 0 | AG27: 92 | AH27: 1
A28: 26.Mar.19 | B28: Rab7 | C28: 1a | D28: M | E28: AG | F28: 3 | G28: C | H28: Basal 2 | I28: 0 | K28: Rab11
A29: 26.Mar.19 | B29: Rab7 | C29: 1a | D29: M | E29: AG | F29: 4 | G29: P | H29: Apical 2 | I29: 1 | K29: 0 | N29: 47 | R29: 86 | U29: Basal | V29: 1 | W29: 5 | X29: 2 | Z29: 16 | AA29: 0 | AC29: 1 | AD29: 10 | AE29: 3 | AG29: 28 | AH29: 0
A30: 26.Mar.19 | B30: Rab7 | C30: 1a | D30: M | E30: AG | F30: 4 | G30: P | H30: Medial 2 | I30: 1 | K30: 1 | L30: 53 | M30: 31 | N30: 325 | P30: 51 | Q30: 17 | R30: 262 | V30: 2 | W30: 3 | X30: 0 | Z30: 108 | AA30: 1 | AC30: 2 | AD30: 7 | AE30: 0 | AG30: 88 | AH30: 1
A31: 26.Mar.19 | B31: Rab7 | C31: 1a | D31: M | E31: AG | F31: 4 | G31: P | H31: Basal 2 | I31: 1 | K31: 2 | L31: 13 | P31: 26 | Q31: 2
A32: 26.Mar.19 | B32: Rab7 | C32: 1a | D32: M | E32: AG | F32: 4 | G32: D | H32: Apical 2 | I32: 1 | K32: TOTAL | L32: =SUM(L30:L31) -> 66 | M32: =SUM(M30:M31) -> 31 | N32: =SUM(N29:N31) -> 372 | P32: =SUM(P30:P31) -> 77 | Q32: 19 | R32: =SUM(R29:R31) -> 348 | T32: Rab35 | U32: Apical | V32: 1 | W32: 26 | X32: 8 | Z32: 65 | AA32: 0 | AC32: 1 | AD32: 31 | AE32: 7 | AG32: 66 | AH32: 0
A33: 26.Mar.19 | B33: Rab7 | C33: 1a | D33: M | E33: AG | F33: 4 | G33: D | H33: Medial 2 | I33: 1 | V33: 2 | W33: 6 | X33: 1 | Z33: 116 | AA33: 1 | AC33: 2 | AD33: 10 | AE33: 2 | AG33: 105 | AH33: 1
A34: 26.Mar.19 | B34: Rab7 | C34: 1a | D34: M | E34: AG | F34: 4 | G34: D | H34: Basal 2 | I34: 0 | K34: Rab35
A35: 26.Mar.19 | B35: Rab7 | C35: 1a | D35: M | E35: AG | F35: 4 | G35: C | H35: Apical 2 | I35: 0 | K35: 0 | N35: 198 | R35: 185 | U35: Medial | V35: 1 | W35: 36 | X35: 13 | Z35: 66 | AA35: 0 | AC35: 1 | AD35: 52 | AE35: 12 | AG35: 59 | AH35: 0
A36: 26.Mar.19 | B36: Rab7 | C36: 1a | D36: M | E36: AG | F36: 4 | G36: C | H36: Medial 2 | I36: 0 | K36: 1 | L36: 90 | M36: 34 | N36: 345 | P36: 136 | Q36: 32 | R36: 328 | V36: 2 | W36: 2 | X36: 3 | Z36: 115 | AA36: 1 | AC36: 2 | AD36: 11 | AE36: 2 | AG36: 112 | AH36: 1
A37: 26.Mar.19 | B37: Rab7 | C37: 1a | D37: M | E37: AG | F37: 4 | G37: C | H37: Basal 2 | I37: 0 | K37: 2 | L37: 15 | M37: 4 | P37: 30 | Q37: 5
A38: 26.Mar.19 | B38: Rab7 | C38: 1a | D38: M | E38: AG | F38: 5 | G38: P | H38: Apical 2 | I38: 0 | K38: TOTAL | L38: =SUM(L36:L37) -> 105 | M38: =SUM(M36:M37) -> 38 | N38: =SUM(N35:N37) -> 543 | P38: =SUM(P36:P37) -> 166 | Q38: 37 | R38: =SUM(R35:R37) -> 513 | U38: Basal | V38: 1 | W38: 28 | X38: 13 | Z38: 67 | AA38: 0 | AC38: 1 | AD38: 53 | AE38: 13 | AG38: 60 | AH38: 0
A39: 26.Mar.19 | B39: Rab7 | C39: 1a | D39: M | E39: AG | F39: 5 | G39: P | H39: Medial 2 | I39: 1 | V39: 2 | W39: 7 | X39: 0 | Z39: 114 | AA39: 1 | AC39: 2 | AD39: 9 | AE39: 1 | AG39: 111 | AH39: 1
A40: 26.Mar.19 | B40: Rab7 | C40: 1a | D40: M | E40: AG | F40: 5 | G40: P | H40: Basal 2 | I40: 0
A41: 26.Mar.19 | B41: Rab7 | C41: 1a | D41: M | E41: AG | F41: 5 | G41: D | H41: Apical 2 | I41: 1
A42: 26.Mar.19 | B42: Rab7 | C42: 1a | D42: M | E42: AG | F42: 5 | G42: D | H42: Medial 2 | I42: 1
A43: 26.Mar.19 | B43: Rab7 | C43: 1a | D43: M | E43: AG | F43: 5 | G43: D | H43: Basal 2 | I43: 0
A44: 26.Mar.19 | B44: Rab7 | C44: 1a | D44: M | E44: AG | F44: 5 | G44: C | H44: Apical 2 | I44: 0 | K44: Number of flies
A45: 26.Mar.19 | B45: Rab7 | C45: 1a | D45: M | E45: AG | F45: 5 | G45: C | H45: Medial 2 | I45: 0 | L45: M | M45: V | R45: FIG. 2C | T45: COUNT OF REGIONS WITH YRAB DETECTED (SUM OF CATEGORIES FROM FREQ TABLE) | AE45: SUM OF REGIONS DETECTED
A46: 26.Mar.19 | B46: Rab7 | C46: 1a | D46: M | E46: AG | F46: 5 | G46: C | H46: Basal 2 | I46: 0 | K46: Rab11 | L46: 13 | M46: 11 | V46: VIRGIN | Z46: MATED | AF46: V | AJ46: M
A47: 26.Mar.19 | B47: Rab7 | C47: 1a | D47: M | E47: AG | F47: 6 | G47: P | H47: Apical 2 | I47: 2 | K47: Rab35 | L47: 21 | M47: 17 | V47: P | W47: C | X47: D | Z47: P | AA47: C | AB47: D | AF47: P | AG47: C | AH47: D | AJ47: P | AK47: C | AL47: D
A48: 26.Mar.19 | B48: Rab7 | C48: 1a | D48: M | E48: AG | F48: 6 | G48: P | H48: Medial 2 | I48: 1 | K48: Rab5 | L48: 11 | M48: 10 | T48: Rab5 | U48: Apical | V48: 74 | W48: 0 | X48: 47 | Z48: 62 | AA48: 1 | AB48: 20
A49: 26.Mar.19 | B49: Rab7 | C49: 1a | D49: M | E49: AG | F49: 6 | G49: P | H49: Basal 2 | I49: 1 | K49: Rab7 | L49: 13 | M49: 14 | U49: Medial | V49: 72 | W49: 0 | X49: 45 | Z49: 61 | AA49: 0 | AB49: 14 | AE49: SPT
A50: 26.Mar.19 | B50: Rab7 | C50: 1a | D50: M | E50: AG | F50: 6 | G50: D | H50: Apical 2 | I50: 1 | U50: Basal | V50: 80 | W50: 0 | X50: 44 | Z50: 64 | AA50: 1 | AB50: 17 | AE50: Rab5 | AF50: 226 | AG50: 0 | AH50: 136 | AJ50: 187 | AK50: 2 | AL50: 51
A51: 26.Mar.19 | B51: Rab7 | C51: 1a | D51: M | E51: AG | F51: 6 | G51: D | H51: Medial 2 | I51: 1 | AE51: Rab7 | AF51: 277 | AG51: 80 | AH51: 259 | AJ51: 176 | AK51: 24 | AL51: 188
A52: 26.Mar.19 | B52: Rab7 | C52: 1a | D52: M | E52: AG | F52: 6 | G52: D | H52: Basal 2 | I52: 0 | T52: Rab7 | U52: Apical | V52: 92 | W52: 35 | X52: 92 | Z52: 60 | AA52: 13 | AB52: 65 | AE52: Rab11 | AF52: 66 | AG52: 31 | AH52: 325 | AJ52: 77 | AK52: 19 | AL52: 262
A53: 26.Mar.19 | B53: Rab7 | C53: 1a | D53: M | E53: AG | F53: 6 | G53: C | H53: Apical 2 | I53: 0 | U53: Medial | V53: 94 | W53: 25 | X53: 86 | Z53: 62 | AA53: 5 | AB53: 64 | AE53: Rab35 | AF53: 105 | AG53: 38 | AH53: 345 | AJ53: 166 | AK53: 37 | AL53: 328
A54: 26.Mar.19 | B54: Rab7 | C54: 1a | D54: M | E54: AG | F54: 6 | G54: C | H54: Medial 2 | I54: 0 | U54: Basal | V54: 91 | W54: 22 | X54: 80 | Z54: 54 | AA54: 6 | AB54: 59
A55: 26.Mar.19 | B55: Rab7 | C55: 1a | D55: M | E55: AG | F55: 6 | G55: C | H55: Basal 2 | I55: 0
A56: 26.Mar.19 | B56: Rab7 | C56: 1a | D56: M | E56: AG | F56: 7 | G56: P | H56: Apical 2 | I56: 1 | T56: Rab11 | U56: Apical | V56: 38 | W56: 21 | X56: 108 | Z56: 37 | AA56: 11 | AB56: 82
A57: 26.Mar.19 | B57: Rab7 | C57: 1a | D57: M | E57: AG | F57: 7 | G57: P | H57: Medial 2 | I57: 0 | U57: Medial | V57: 20 | W57: 8 | X57: 109 | Z57: 23 | AA57: 5 | AB57: 92
A58: 26.Mar.19 | B58: Rab7 | C58: 1a | D58: M | E58: AG | F58: 7 | G58: P | H58: Basal 2 | I58: 0 | U58: Basal | V58: 8 | W58: 2 | X58: 108 | Z58: 17 | AA58: 3 | AB58: 88
A59: 26.Mar.19 | B59: Rab7 | C59: 1a | D59: M | E59: AG | F59: 7 | G59: D | H59: Apical 2 | I59: 1
A60: 26.Mar.19 | B60: Rab7 | C60: 1a | D60: M | E60: AG | F60: 7 | G60: D | H60: Medial 2 | I60: 1 | T60: Rab35 | U60: Apical | V60: 32 | W60: 9 | X60: 116 | Z60: 41 | AA60: 9 | AB60: 105
A61: 26.Mar.19 | B61: Rab7 | C61: 1a | D61: M | E61: AG | F61: 7 | G61: D | H61: Basal 2 | I61: 1 | U61: Medial | V61: 38 | W61: 16 | X61: 115 | Z61: 63 | AA61: 14 | AB61: 112
A62: 26.Mar.19 | B62: Rab7 | C62: 1a | D62: M | E62: AG | F62: 7 | G62: C | H62: Apical 2 | I62: 0 | U62: Basal | V62: 35 | W62: 13 | X62: 114 | Z62: 62 | AA62: 14 | AB62: 111
A63: 26.Mar.19 | B63: Rab7 | C63: 1a | D63: M | E63: AG | F63: 7 | G63: C | H63: Medial 2 | I63: 0
A64: 26.Mar.19 | B64: Rab7 | C64: 1a | D64: M | E64: AG | F64: 7 | G64: C | H64: Basal 2 | I64: 0
A65: 26.Mar.19 | B65: Rab7 | C65: 1a | D65: M | E65: AG | F65: 8 | G65: P | H65: Apical 2 | I65: 0 | T65: DISTRIBUTION OF RABS IN REGIONS
A66: 26.Mar.19 | B66: Rab7 | C66: 1a | D66: M | E66: AG | F66: 8 | G66: P | H66: Medial 2 | I66: 0 | V66: P | W66: C | X66: D | Z66: P | AA66: C | AB66: D
A67: 26.Mar.19 | B67: Rab7 | C67: 1a | D67: M | E67: AG | F67: 8 | G67: P | H67: Basal 2 | I67: 1 | V67: Count | W67: Count | X67: Count | Z67: Count | AA67: Count | AB67: Count
A68: 26.Mar.19 | B68: Rab7 | C68: 1a | D68: M | E68: AG | F68: 8 | G68: D | H68: Apical 2 | I68: 1 | T68: Rab5 | U68: Apical | V68: 32.7 | W68: 0.0 | X68: 34.6 | Z68: 33.2 | AA68: 50.0 | AB68: 39.2 | AD68: 70
A69: 26.Mar.19 | B69: Rab7 | C69: 1a | D69: M | E69: AG | F69: 8 | G69: D | H69: Medial 2 | I69: 1 | U69: Medial | V69: 31.9 | W69: 0.0 | X69: 33.1 | Z69: 32.6 | AA69: 0.0 | AB69: 27.5 | AD69: 60
A70: 26.Mar.19 | B70: Rab7 | C70: 1a | D70: M | E70: AG | F70: 8 | G70: D | H70: Basal 2 | I70: 1 | U70: Basal | V70: 35.4 | W70: 0.0 | X70: 32.4 | Z70: 34.2 | AA70: 50.0 | AB70: 33.3 | AD70: 50
A71: 26.Mar.19 | B71: Rab7 | C71: 1a | D71: M | E71: AG | F71: 8 | G71: C | H71: Apical 2 | I71: 0 | AD71: 40
A72: 26.Mar.19 | B72: Rab7 | C72: 1a | D72: M | E72: AG | F72: 8 | G72: C | H72: Medial 2 | I72: 0 | T72: Rab7 | U72: Apical | V72: 33.2 | W72: 43.8 | X72: 35.5 | Z72: 34.1 | AA72: 54.2 | AB72: 34.6 | AD72: 30
A73: 26.Mar.19 | B73: Rab7 | C73: 1a | D73: M | E73: AG | F73: 8 | G73: C | H73: Basal 2 | I73: 0 | U73: Medial | V73: 33.9 | W73: 31.3 | X73: 33.2 | Z73: 35.2 | AA73: 20.8 | AB73: 34.0 | AD73: 20
A74: 26.Mar.19 | B74: Rab7 | C74: 2a | D74: M | E74: AG | F74: 1 | G74: P | H74: Apical 2 | I74: 1 | U74: Basal | V74: 32.9 | W74: 27.5 | X74: 30.9 | Z74: 30.7 | AA74: 25.0 | AB74: 31.4 | AD74: 10
A75: 26.Mar.19 | B75: Rab7 | C75: 2a | D75: M | E75: AG | F75: 1 | G75: P | H75: Medial 2 | I75: 0 | AD75: 5
A76: 26.Mar.19 | B76: Rab7 | C76: 2a | D76: M | E76: AG | F76: 1 | G76: P | H76: Basal 2 | I76: 0 | T76: Rab11 | U76: Apical | V76: 57.6 | W76: 67.7 | X76: 32.3 | Z76: 48.1 | AA76: 57.9 | AB76: 31.3 | AD76: 0
A77: 26.Mar.19 | B77: Rab7 | C77: 2a | D77: M | E77: AG | F77: 1 | G77: D | H77: Apical 2 | I77: 1 | U77: Medial | V77: 30.3 | W77: 25.8 | X77: 32.6 | Z77: 29.9 | AA77: 26.3 | AB77: 35.1
A78: 26.Mar.19 | B78: Rab7 | C78: 2a | D78: M | E78: AG | F78: 1 | G78: D | H78: Medial 2 | I78: 1 | U78: Basal | V78: 12.1 | W78: 6.5 | X78: 32.3 | Z78: 22.1 | AA78: 15.8 | AB78: 33.6
A79: 26.Mar.19 | B79: Rab7 | C79: 2a | D79: M | E79: AG | F79: 1 | G79: D | H79: Basal 2 | I79: 1
A80: 26.Mar.19 | B80: Rab7 | C80: 2a | D80: M | E80: AG | F80: 1 | G80: C | H80: Apical 2 | I80: 0 | T80: Rab35 | U80: Apical | V80: 30.5 | W80: 23.7 | X80: 33.6 | Z80: 24.7 | AA80: 24.3 | AB80: 32.0
A81: 26.Mar.19 | B81: Rab7 | C81: 2a | D81: M | E81: AG | F81: 1 | G81: C | H81: Medial 2 | I81: 0 | U81: Medial | V81: 36.2 | W81: 42.1 | X81: 33.3 | Z81: 38.0 | AA81: 37.8 | AB81: 34.1
A82: 26.Mar.19 | B82: Rab7 | C82: 2a | D82: M | E82: AG | F82: 1 | G82: C | H82: Basal 2 | I82: 0 | U82: Basal | V82: 33.3 | W82: 34.2 | X82: 33.0 | Z82: 37.3 | AA82: 37.8 | AB82: 33.8
A83: 26.Mar.19 | B83: Rab7 | C83: 2a | D83: M | E83: AG | F83: 2 | G83: P | H83: Apical 2 | I83: 1
A84: 26.Mar.19 | B84: Rab7 | C84: 2a | D84: M | E84: AG | F84: 2 | G84: P | H84: Medial 2 | I84: 0
A85: 26.Mar.19 | B85: Rab7 | C85: 2a | D85: M | E85: AG | F85: 2 | G85: P | H85: Basal 2 | I85: 1
A86: 26.Mar.19 | B86: Rab7 | C86: 2a | D86: M | E86: AG | F86: 2 | G86: D | H86: Apical 2 | I86: 1
A87: 26.Mar.19 | B87: Rab7 | C87: 2a | D87: M | E87: AG | F87: 2 | G87: D | H87: Medial 2 | I87: 1
A88: 26.Mar.19 | B88: Rab7 | C88: 2a | D88: M | E88: AG | F88: 2 | G88: D | H88: Basal 2 | I88: 1
A89: 26.Mar.19 | B89: Rab7 | C89: 2a | D89: M | E89: AG | F89: 2 | G89: C | H89: Apical 2 | I89: 0
A90: 26.Mar.19 | B90: Rab7 | C90: 2a | D90: M | E90: AG | F90: 2 | G90: C | H90: Medial 2 | I90: 0
A91: 26.Mar.19 | B91: Rab7 | C91: 2a | D91: M | E91: AG | F91: 2 | G91: C | H91: Basal 2 | I91: 0
A92: 26.Mar.19 | B92: Rab7 | C92: 2a | D92: M | E92: AG | F92: 3 | G92: P | H92: Apical 2 | I92: 1
A93: 26.Mar.19 | B93: Rab7 | C93: 2a | D93: M | E93: AG | F93: 3 | G93: P | H93: Medial 2 | I93: 2
A94: 26.Mar.19 | B94: Rab7 | C94: 2a | D94: M | E94: AG | F94: 3 | G94: P | H94: Basal 2 | I94: 1
A95: 26.Mar.19 | B95: Rab7 | C95: 2a | D95: M | E95: AG | F95: 3 | G95: D | H95: Apical 2 | I95: 1 | R95: FIG. 2C End Apparatus
A96: 26.Mar.19 | B96: Rab7 | C96: 2a | D96: M | E96: AG | F96: 3 | G96: D | H96: Medial 2 | I96: 1
A97: 26.Mar.19 | B97: Rab7 | C97: 2a | D97: M | E97: AG | F97: 3 | G97: D | H97: Basal 2 | I97: 1 | T97: Gland | U97: Rab | V97: Mating | W97: Sections | X97: C | Y97: D | AA97: %C | AB97: %D | AC97: %P | AD97: No EA
A98: 26.Mar.19 | B98: Rab7 | C98: 2a | D98: M | E98: AG | F98: 3 | G98: C | H98: Apical 2 | I98: 0 | T98: Spt | U98: Rab11 | V98: V | W98: 127 | X98: 5 | Y98: 34 | Z98: P | AA98: 3.9 | AB98: 26.8 | AC98: 18.9 | AD98: 50.4
A99: 26.Mar.19 | B99: Rab7 | C99: 2a | D99: M | E99: AG | F99: 3 | G99: C | H99: Medial 2 | I99: 0 | T99: Spt | U99: Rab11 | V99: M | W99: 117 | X99: 2 | Y99: 20 | Z99: 24 | AA99: 1.7 | AB99: 17.1 | AC99: 20.5 | AD99: 60.7
A100: 26.Mar.19 | B100: Rab7 | C100: 2a | D100: M | E100: AG | F100: 3 | G100: C | H100: Basal 2 | I100: 0 | T100: Spt | U100: Rab35 | V100: V | W100: 184 | X100: 0 | Y100: 43 | Z100: 24 | AA100: 0.0 | AB100: 23.4 | AC100: 1.1 | AD100: 75.5
A101: 26.Mar.19 | B101: Rab7 | C101: 2a | D101: M | E101: AG | F101: 4 | G101: P | H101: Apical 2 | I101: 1 | T101: Spt | U101: Rab35 | V101: M | W101: 168 | X101: 0 | Y101: 66 | Z101: 2 | AA101: 0.0 | AB101: 39.3 | AC101: 0.0 | AD101: 60.7
A102: 26.Mar.19 | B102: Rab7 | C102: 2a | D102: M | E102: AG | F102: 4 | G102: P | H102: Medial 2 | I102: 1 | T102: Spt | U102: Rab5 | V102: V | W102: 80 | X102: 0 | Y102: 0 | Z102: 0 | AA102: 0.0 | AB102: 0.0 | AC102: 0.0 | AD102: 100.0
A103: 26.Mar.19 | B103: Rab7 | C103: 2a | D103: M | E103: AG | F103: 4 | G103: P | H103: Basal 2 | I103: 0 | T103: Spt | U103: Rab5 | V103: M | W103: 74 | X103: 0 | Y103: 0 | Z103: 0 | AA103: 0.0 | AB103: 0.0 | AC103: 0.0 | AD103: 100.0
A104: 26.Mar.19 | B104: Rab7 | C104: 2a | D104: M | E104: AG | F104: 4 | G104: D | H104: Apical 2 | I104: 1 | T104: Spt | U104: Rab7 | V104: V | W104: 122 | X104: 0 | Y104: 4 | Z104: 0 | AA104: 0.0 | AB104: 3.3 | AC104: 2.5 | AD104: 94.3
A105: 26.Mar.19 | B105: Rab7 | C105: 2a | D105: M | E105: AG | F105: 4 | G105: D | H105: Medial 2 | I105: 1 | T105: Spt | U105: Rab7 | V105: M | W105: 91 | X105: 0 | Y105: 6 | Z105: 3 | AA105: 0.0 | AB105: 6.6 | AC105: 7.7 | AD105: 85.7
A106: 26.Mar.19 | B106: Rab7 | C106: 2a | D106: M | E106: AG | F106: 4 | G106: D | H106: Basal 2 | I106: 1 | Z106: 7
A107: 26.Mar.19 | B107: Rab7 | C107: 2a | D107: M | E107: AG | F107: 4 | G107: C | H107: Apical 2 | I107: 0
A108: 26.Mar.19 | B108: Rab7 | C108: 2a | D108: M | E108: AG | F108: 4 | G108: C | H108: Medial 2 | I108: 0
A109: 26.Mar.19 | B109: Rab7 | C109: 2a | D109: M | E109: AG | F109: 4 | G109: C | H109: Basal 2 | I109: 0
A110: 26.Mar.19 | B110: Rab7 | C110: 2a | D110: M | E110: AG | F110: 5 | G110: P | H110: Apical 2 | I110: 1
A111: 26.Mar.19 | B111: Rab7 | C111: 2a | D111: M | E111: AG | F111: 5 | G111: P | H111: Medial 2 | I111: 1
A112: 26.Mar.19 | B112: Rab7 | C112: 2a | D112: M | E112: AG | F112: 5 | G112: P | H112: Basal 2 | I112: 1
A113: 26.Mar.19 | B113: Rab7 | C113: 2a | D113: M | E113: AG | F113: 5 | G113: D | H113: Apical 2 | I113: 1
A114: 26.Mar.19 | B114: Rab7 | C114: 2a | D114: M | E114: AG | F114: 5 | G114: D | H114: Medial 2 | I114: 1
A115: 26.Mar.19 | B115: Rab7 | C115: 2a | D115: M | E115: AG | F115: 5 | G115: D | H115: Basal 2 | I115: 1
A116: 26.Mar.19 | B116: Rab7 | C116: 2a | D116: M | E116: AG | F116: 5 | G116: C | H116: Apical 2 | I116: 0
A117: 26.Mar.19 | B117: Rab7 | C117: 2a | D117: M | E117: AG | F117: 5 | G117: C | H117: Medial 2 | I117: 0
A118: 26.Mar.19 | B118: Rab7 | C118: 2a | D118: M | E118: AG | F118: 5 | G118: C | H118: Basal 2 | I118: 0
A119: 26.Mar.19 | B119: Rab7 | C119: 2a | D119: M | E119: AG | F119: 6 | G119: P | H119: Apical 2 | I119: 1
A120: 26.Mar.19 | B120: Rab7 | C120: 2a | D120: M | E120: AG | F120: 6 | G120: P | H120: Medial 2 | I120: 0
A121: 26.Mar.19 | B121: Rab7 | C121: 2a | D121: M | E121: AG | F121: 6 | G121: P | H121: Basal 2 | I121: 1
A122: 26.Mar.19 | B122: Rab7 | C122: 2a | D122: M | E122: AG | F122: 6 | G122: D | H122: Apical 2 | I122: 1
A123: 26.Mar.19 | B123: Rab7 | C123: 2a | D123: M | E123: AG | F123: 6 | G123: D | H123: Medial 2 | I123: 1
A124: 26.Mar.19 | B124: Rab7 | C124: 2a | D124: M | E124: AG | F124: 6 | G124: D | H124: Basal 2 | I124: 1
A125: 26.Mar.19 | B125: Rab7 | C125: 2a | D125: M | E125: AG | F125: 6 | G125: C | H125: Apical 2 | I125: 0
A126: 26.Mar.19 | B126: Rab7 | C126: 2a | D126: M | E126: AG | F126: 6 | G126: C | H126: Medial 2 | I126: 0
A127: 26.Mar.19 | B127: Rab7 | C127: 2a | D127: M | E127: AG | F127: 6 | G127: C | H127: Basal 2 | I127: 0
A128: 26.Mar.19 | B128: Rab7 | C128: 2a | D128: M | E128: AG | F128: 7 | G128: P | H128: Apical 2 | I128: 1
A129: 26.Mar.19 | B129: Rab7 | C129: 2a | D129: M | E129: AG | F129: 7 | G129: P | H129: Medial 2 | I129: 1
A130: 26.Mar.19 | B130: Rab7 | C130: 2a | D130: M | E130: AG | F130: 7 | G130: P | H130: Basal 2 | I130: 1
A131: 26.Mar.19 | B131: Rab7 | C131: 2a | D131: M | E131: AG | F131: 7 | G131: D | H131: Apical 2 | I131: 1
A132: 26.Mar.19 | B132: Rab7 | C132: 2a | D132: M | E132: AG | F132: 7 | G132: D | H132: Medial 2 | I132: 1
A133: 26.Mar.19 | B133: Rab7 | C133: 2a | D133: M | E133: AG | F133: 7 | G133: D | H133: Basal 2 | I133: 1
A134: 26.Mar.19 | B134: Rab7 | C134: 2a | D134: M | E134: AG | F134: 7 | G134: C | H134: Apical 2 | I134: 0
A135: 26.Mar.19 | B135: Rab7 | C135: 2a | D135: M | E135: AG | F135: 7 | G135: C | H135: Medial 2 | I135: 0
A136: 26.Mar.19 | B136: Rab7 | C136: 2a | D136: M | E136: AG | F136: 7 | G136: C | H136: Basal 2 | I136: 0
A137: 26.Mar.19 | B137: Rab7 | C137: 2a | D137: M | E137: AG | F137: 8 | G137: P | H137: Apical 2 | I137: 1
A138: 26.Mar.19 | B138: Rab7 | C138: 2a | D138: M | E138: AG | F138: 8 | G138: P | H138: Medial 2 | I138: 1
A139: 26.Mar.19 | B139: Rab7 | C139: 2a | D139: M | E139: AG | F139: 8 | G139: P | H139: Basal 2 | I139: 1
A140: 26.Mar.19 | B140: Rab7 | C140: 2a | D140: M | E140: AG | F140: 8 | G140: D | H140: Apical 2 | I140: 1
A141: 26.Mar.19 | B141: Rab7 | C141: 2a | D141: M | E141: AG | F141: 8 | G141: D | H141: Medial 2 | I141: 1
A142: 26.Mar.19 | B142: Rab7 | C142: 2a | D142: M | E142: AG | F142: 8 | G142: D | H142: Basal 2 | I142: 1
A143: 26.Mar.19 | B143: Rab7 | C143: 2a | D143: M | E143: AG | F143: 8 | G143: C | H143: Apical 2 | I143: 0
A144: 26.Mar.19 | B144: Rab7 | C144: 2a | D144: M | E144: AG | F144: 8 | G144: C | H144: Medial 2 | I144: 0
A145: 26.Mar.19 | B145: Rab7 | C145: 2a | D145: M | E145: AG | F145: 8 | G145: C | H145: Basal 2 | I145: 0
A146: 26.Mar.19 | B146: Rab7 | C146: 1a | D146: V | E146: AG | F146: 1 | G146: P | H146: Apical 2 | I146: 1
A147: 26.Mar.19 | B147: Rab7 | C147: 1a | D147: V | E147: AG | F147: 1 | G147: P | H147: Medial 2 | I147: 1
A148: 26.Mar.19 | B148: Rab7 | C148: 1a | D148: V | E148: AG | F148: 1 | G148: P | H148: Basal 2 | I148: 0
A149: 26.Mar.19 | B149: Rab7 | C149: 1a | D149: V | E149: AG | F149: 1 | G149: D | H149: Apical 2 | I149: 1
A150: 26.Mar.19 | B150: Rab7 | C150: 1a | D150: V | E150: AG | F150: 1 | G150: D | H150: Medial 2 | I150: 1
A151: 26.Mar.19 | B151: Rab7 | C151: 1a | D151: V | E151: AG | F151: 1 | G151: D | H151: Basal 2 | I151: 0
A152: 26.Mar.19 | B152: Rab7 | C152: 1a | D152: V | E152: AG | F152: 1 | G152: C | H152: Apical 2 | I152: 0
A153: 26.Mar.19 | B153: Rab7 | C153: 1a | D153: V | E153: AG | F153: 1 | G153: C | H153: Medial 2 | I153: 0
A154: 26.Mar.19 | B154: Rab7 | C154: 1a | D154: V | E154: AG | F154: 1 | G154: C | H154: Basal 2 | I154: 0
A155: 26.Mar.19 | B155: Rab7 | C155: 1a | D155: V | E155: AG | F155: 2 | G155: P | H155: Apical 2 | I155: 0
A156: 26.Mar.19 | B156: Rab7 | C156: 1a | D156: V | E156: AG | F156: 2 | G156: P | H156: Medial 2 | I156: 1
A157: 26.Mar.19 | B157: Rab7 | C157: 1a | D157: V | E157: AG | F157: 2 | G157: P | H157: Basal 2 | I157: 1
A158: 26.Mar.19 | B158: Rab7 | C158: 1a | D158: V | E158: AG | F158: 2 | G158: D | H158: Apical 2 | I158: 1
A159: 26.Mar.19 | B159: Rab7 | C159: 1a | D159: V | E159: AG | F159: 2 | G159: D | H159: Medial 2 | I159: 1
A160: 26.Mar.19 | B160: Rab7 | C160: 1a | D160: V | E160: AG | F160: 2 | G160: D | H160: Basal 2 | I160: 0
A161: 26.Mar.19 | B161: Rab7 | C161: 1a | D161: V | E161: AG | F161: 2 | G161: C | H161: Apical 2 | I161: 0
A162: 26.Mar.19 | B162: Rab7 | C162: 1a | D162: V | E162: AG | F162: 2 | G162: C | H162: Medial 2 | I162: 0
A163: 26.Mar.19 | B163: Rab7 | C163: 1a | D163: V | E163: AG | F163: 2 | G163: C | H163: Basal 2 | I163: 0
A164: 26.Mar.19 | B164: Rab7 | C164: 1a | D164: V | E164: AG | F164: 3 | G164: P | H164: Apical 2 | I164: 1
A165: 26.Mar.19 | B165: Rab7 | C165: 1a | D165: V | E165: AG | F165: 3 | G165: P | H165: Medial 2 | I165: 0
A166: 26.Mar.19 | B166: Rab7 | C166: 1a | D166: V | E166: AG | F166: 3 | G166: P | H166: Basal 2 | I166: 0
A167: 26.Mar.19 | B167: Rab7 | C167: 1a | D167: V | E167: AG | F167: 3 | G167: D | H167: Apical 2 | I167: 1
A168: 26.Mar.19 | B168: Rab7 | C168: 1a | D168: V | E168: AG | F168: 3 | G168: D | H168: Medial 2 | I168: 1
A169: 26.Mar.19 | B169: Rab7 | C169: 1a | D169: V | E169: AG | F169: 3 | G169: D | H169: Basal 2 | I169: 1
A170: 26.Mar.19 | B170: Rab7 | C170: 1a | D170: V | E170: AG | F170: 3 | G170: C | H170: Apical 2 | I170: 0
A171: 26.Mar.19 | B171: Rab7 | C171: 1a | D171: V | E171: AG | F171: 3 | G171: C | H171: Medial 2 | I171: 0
A172: 26.Mar.19 | B172: Rab7 | C172: 1a | D172: V | E172: AG | F172: 3 | G172: C | H172: Basal 2 | I172: 0
A173: 26.Mar.19 | B173: Rab7 | C173: 1a | D173: V | E173: AG | F173: 4 | G173: P | H173: Apical 2 | I173: 2
A174: 26.Mar.19 | B174: Rab7 | C174: 1a | D174: V | E174: AG | F174: 4 | G174: P | H174: Medial 2 | I174: 1
A175: 26.Mar.19 | B175: Rab7 | C175: 1a | D175: V | E175: AG | F175: 4 | G175: P | H175: Basal 2 | I175: 1
A176: 26.Mar.19 | B176: Rab7 | C176: 1a | D176: V | E176: AG | F176: 4 | G176: D | H176: Apical 2 | I176: 1
A177: 26.Mar.19 | B177: Rab7 | C177: 1a | D177: V | E177: AG | F177: 4 | G177: D | H177: Medial 2 | I177: 1
A178: 26.Mar.19 | B178: Rab7 | C178: 1a | D178: V | E178: AG | F178: 4 | G178: D | H178: Basal 2 | I178: 1
A179: 26.Mar.19 | B179: Rab7 | C179: 1a | D179: V | E179: AG | F179: 4 | G179: C | H179: Apical 2 | I179: 0
A180: 26.Mar.19 | B180: Rab7 | C180: 1a | D180: V | E180: AG | F180: 4 | G180: C | H180: Medial 2 | I180: 0
A181: 26.Mar.19 | B181: Rab7 | C181: 1a | D181: V | E181: AG | F181: 4 | G181: C | H181: Basal 2 | I181: 0
A182: 26.Mar.19 | B182: Rab7 | C182: 1a | D182: V | E182: AG | F182: 5 | G182: P | H182: Apical 2 | I182: 2
A183: 26.Mar.19 | B183: Rab7 | C183: 1a | D183: V | E183: AG | F183: 5 | G183: P | H183: Medial 2 | I183: 1
A184: 26.Mar.19 | B184: Rab7 | C184: 1a | D184: V | E184: AG | F184: 5 | G184: P | H184: Basal 2 | I184: 0
A185: 26.Mar.19 | B185: Rab7 | C185: 1a | D185: V | E185: AG | F185: 5 | G185: D | H185: Apical 2 | I185: 1
A186: 26.Mar.19 | B186: Rab7 | C186: 1a | D186: V | E186: AG | F186: 5 | G186: D | H186: Medial 2 | I186: 1
A187: 26.Mar.19 | B187: Rab7 | C187: 1a | D187: V | E187: AG | F187: 5 | G187: D | H187: Basal 2 | I187: 1
A188: 26.Mar.19 | B188: Rab7 | C188: 1a | D188: V | E188: AG | F188: 5 | G188: C | H188: Apical 2 | I188: 0
A189: 26.Mar.19 | B189: Rab7 | C189: 1a | D189: V | E189: AG | F189: 5 | G189: C | H189: Medial 2 | I189: 0
A190: 26.Mar.19 | B190: Rab7 | C190: 1a | D190: V | E190: AG | F190: 5 | G190: C | H190: Basal 2 | I190: 0
A191: 26.Mar.19 | B191: Rab7 | C191: 1a | D191: V | E191: AG | F191: 6 | G191: P | H191: Apical 2 | I191: 0
A192: 26.Mar.19 | B192: Rab7 | C192: 1a | D192: V | E192: AG | F192: 6 | G192: P | H192: Medial 2 | I192: 1
A193: 26.Mar.19 | B193: Rab7 | C193: 1a | D193: V | E193: AG | F193: 6 | G193: P | H193: Basal 2 | I193: 0
A194: 26.Mar.19 | B194: Rab7 | C194: 1a | D194: V | E194: AG | F194: 6 | G194: D | H194: Apical 2 | I194: 1
A195: 26.Mar.19 | B195: Rab7 | C195: 1a | D195: V | E195: AG | F195: 6 | G195: D | H195: Medial 2 | I195: 1
A196: 26.Mar.19 | B196: Rab7 | C196: 1a | D196: V | E196: AG | F196: 6 | G196: D | H196: Basal 2 | I196: 1
A197: 26.Mar.19 | B197: Rab7 | C197: 1a | D197: V | E197: AG | F197: 6 | G197: C | H197: Apical 2 | I197: 0
A198: 26.Mar.19 | B198: Rab7 | C198: 1a | D198: V | E198: AG | F198: 6 | G198: C | H198: Medial 2 | I198: 0
A199: 26.Mar.19 | B199: Rab7 | C199: 1a | D199: V | E199: AG | F199: 6 | G199: C | H199: Basal 2 | I199: 0
A200: 26.Mar.19 | B200: Rab7 | C200: 1a | D200: V | E200: AG | F200: 7 | G200: P | H200: Apical 2 | I200: 1
... 4300 more rows

Sheet Fig3b, S3e
A1: timepoint | B1: female | C1: number | D1: region | E1: Area | F1: Length | G1: GFP
A2: V | B2: V2 | C2: 1 | D2: EA | E2: 48.1 | F2: 0.0 | G2: 3357.8 | I2: Timepoint | J2: Time of assessment
A3: V | B3: V2 | C3: 1 | D3: EA | E3: 49.3 | F3: 0.0 | G3: 2408.8 | J3: V - Virgin, 0h, 90min, 3, 6, 24 and 72h
A4: V | B4: V2 | C4: 1 | D4: EA | E4: 73.9 | F4: 0.0 | G4: 1965.3
A5: V | B5: V2 | C5: 1 | D5: EA | E5: 73.0 | F5: 0.0 | G5: 2153.0 | I5: Female | J5: Number of fly in the experiment
A6: V | B6: V2 | C6: 1 | D6: EA | E6: 61.4 | F6: 0.0 | G6: 1455.0 | I6: Number | J6: Number of fly in the mating group | K6: Individual End apparatus area
A7: V | B7: V2 | C7: 1 | D7: EA | E7: 57.3 | F7: 0.0 | G7: 3051.5 | I7: Region | J7: Region of analysis: | K7: Length of individual EA
A8: V | B8: V2 | C8: 1 | D8: EA | E8: 51.1 | F8: 0.0 | G8: 2355.1 | J8: EA | K8: Width of individual EA
A9: V | B9: V2 | C9: 1 | D9: EA | E9: 68.5 | F9: 0.0 | G9: 2294.5 | J9: L
A10: V | B10: V2 | C10: 1 | D10: EA | E10: 43.3 | F10: 0.0 | G10: 2180.6 | J10: W
A11: V | B11: V2 | C11: 1 | D11: EA | E11: 33.0 | F11: 0.0 | G11: 1774.4
A12: V | B12: V2 | C12: 1 | D12: L | E12: 1.0 | F12: 6.8 | G12: 3635.4 | I12: Area | J12: Measured area in µm2
A13: V | B13: V2 | C13: 1 | D13: W | E13: 1.2 | F13: 8.6 | G13: 4045.6 | I13: Length | J13: distance of length or width of EA in µm2
A14: V | B14: V2 | C14: 1 | D14: L | E14: 1.1 | F14: 7.9 | G14: 2122.7 | I14: GFP | J14: Corrected mean fluorescence (mean - average bkg mean gray value "mean")
A15: V | B15: V2 | C15: 1 | D15: W | E15: 1.1 | F15: 7.9 | G15: 2583.2
A16: V | B16: V2 | C16: 1 | D16: L | E16: 1.2 | F16: 8.4 | G16: 3082.9
A17: V | B17: V2 | C17: 1 | D17: W | E17: 1.2 | F17: 8.2 | G17: 3305.8
A18: V | B18: V2 | C18: 1 | D18: L | E18: 1.9 | F18: 13.3 | G18: 2177.3
A19: V | B19: V2 | C19: 1 | D19: W | E19: 0.8 | F19: 5.3 | G19: 2024.7
A20: V | B20: V2 | C20: 1 | D20: L | E20: 1.3 | F20: 8.8 | G20: 1503.5
A21: V | B21: V2 | C21: 1 | D21: W | E21: 1.1 | F21: 7.9 | G21: 1927.7
A22: V | B22: V2 | C22: 1 | D22: L | E22: 1.5 | F22: 10.6 | G22: 2336.8
A23: V | B23: V2 | C23: 1 | D23: W | E23: 1.1 | F23: 7.7 | G23: 2242.3
A24: V | B24: V2 | C24: 1 | D24: L | E24: 1.7 | F24: 11.9 | G24: 2343.8
A25: V | B25: V2 | C25: 1 | D25: W | E25: 0.9 | F25: 6.4 | G25: 1795.8
A26: V | B26: V2 | C26: 1 | D26: L | E26: 1.1 | F26: 7.8 | G26: 2163.3
A27: V | B27: V2 | C27: 1 | D27: W | E27: 0.9 | F27: 6.2 | G27: 3009.4
A28: V | B28: V2 | C28: 1 | D28: L | E28: 1.3 | F28: 9.3 | G28: 2222.4
A29: V | B29: V2 | C29: 1 | D29: W | E29: 0.8 | F29: 5.5 | G29: 2722.1
A30: V | B30: V2 | C30: 1 | D30: L | E30: 0.9 | F30: 6.4 | G30: 1839.9
A31: V | B31: V2 | C31: 1 | D31: W | E31: 0.8 | F31: 5.6 | G31: 2263.4
A32: V | B32: V1a | C32: 3 | D32: EA | E32: 137.5 | F32: 0.0 | G32: 2081.9
A33: V | B33: V1a | C33: 3 | D33: EA | E33: 90.0 | F33: 0.0 | G33: 3747.9
A34: V | B34: V1a | C34: 3 | D34: EA | E34: 62.0 | F34: 0.0 | G34: 3067.9
A35: V | B35: V1a | C35: 3 | D35: EA | E35: 36.9 | F35: 0.0 | G35: 2800.0
A36: V | B36: V1a | C36: 3 | D36: EA | E36: 76.9 | F36: 0.0 | G36: 5147.4
A37: V | B37: V1a | C37: 3 | D37: EA | E37: 94.2 | F37: 0.0 | G37: 2246.9
A38: V | B38: V1a | C38: 3 | D38: EA | E38: 93.0 | F38: 0.0 | G38: 1051.5
A39: V | B39: V1a | C39: 3 | D39: EA | E39: 56.7 | F39: 0.0 | G39: 2198.8
A40: V | B40: V1a | C40: 3 | D40: EA | E40: 98.4 | F40: 0.0 | G40: 1511.3
A41: V | B41: V1a | C41: 3 | D41: EA | E41: 90.6 | F41: 0.0 | G41: 2096.8
A42: V | B42: V1a | C42: 3 | D42: L | E42: 2.6 | F42: 15.3 | G42: 2051.0
A43: V | B43: V1a | C43: 3 | D43: W | E43: 1.6 | F43: 9.7 | G43: 1938.3
A44: V | B44: V1a | C44: 3 | D44: L | E44: 2.1 | F44: 12.3 | G44: 5467.3
A45: V | B45: V1a | C45: 3 | D45: W | E45: 1.2 | F45: 7.2 | G45: 5181.4
A46: V | B46: V1a | C46: 3 | D46: L | E46: 2.4 | F46: 14.0 | G46: 4365.9
A47: V | B47: V1a | C47: 3 | D47: W | E47: 1.1 | F47: 6.7 | G47: 5419.3
A48: V | B48: V1a | C48: 3 | D48: L | E48: 2.7 | F48: 16.0 | G48: 1080.6
A49: V | B49: V1a | C49: 3 | D49: W | E49: 1.2 | F49: 6.9 | G49: 1189.4
A50: V | B50: V1a | C50: 3 | D50: L | E50: 1.7 | F50: 10.1 | G50: 2618.0
A51: V | B51: V1a | C51: 3 | D51: W | E51: 0.8 | F51: 4.5 | G51: 2955.2
A52: V | B52: V1a | C52: 3 | D52: L | E52: 1.9 | F52: 11.4 | G52: 1375.1
A53: V | B53: V1a | C53: 3 | D53: W | E53: 1.8 | F53: 10.7 | G53: 2027.5
A54: V | B54: V1a | C54: 3 | D54: L | E54: 2.0 | F54: 11.6 | G54: 3703.3
A55: V | B55: V1a | C55: 3 | D55: W | E55: 1.1 | F55: 6.1 | G55: 2405.1
A56: V | B56: V1a | C56: 3 | D56: L | E56: 2.3 | F56: 13.5 | G56: 1952.0
A57: V | B57: V1a | C57: 3 | D57: W | E57: 1.0 | F57: 6.0 | G57: 2516.4
A58: V | B58: V1a | C58: 3 | D58: L | E58: 2.1 | F58: 12.3 | G58: 2210.6
A59: V | B59: V1a | C59: 3 | D59: W | E59: 0.8 | F59: 4.7 | G59: 1876.9
A60: V | B60: V1a | C60: 3 | D60: L | E60: 4.3 | F60: 25.5 | G60: 1679.0
A61: V | B61: V1a | C61: 3 | D61: W | E61: 0.6 | F61: 3.2 | G61: 1973.8
A62: V | B62: V1b | C62: 4 | D62: EA | E62: 131.9 | F62: 0.0 | G62: 1062.4
A63: V | B63: V1b | C63: 4 | D63: EA | E63: 117.7 | F63: 0.0 | G63: 1458.6
A64: V | B64: V1b | C64: 4 | D64: EA | E64: 80.8 | F64: 0.0 | G64: 1000.3
A65: V | B65: V1b | C65: 4 | D65: EA | E65: 91.5 | F65: 0.0 | G65: 2150.1
A66: V | B66: V1b | C66: 4 | D66: EA | E66: 123.1 | F66: 0.0 | G66: 1051.4
A67: V | B67: V1b | C67: 4 | D67: EA | E67: 78.5 | F67: 0.0 | G67: 2160.1
A68: V | B68: V1b | C68: 4 | D68: EA | E68: 114.8 | F68: 0.0 | G68: 1234.9
A69: V | B69: V1b | C69: 4 | D69: EA | E69: 105.2 | F69: 0.0 | G69: 601.5
A70: V | B70: V1b | C70: 4 | D70: EA | E70: 100.0 | F70: 0.0 | G70: 358.4
A71: V | B71: V1b | C71: 4 | D71: EA | E71: 63.7 | F71: 0.0 | G71: 1149.2
A72: V | B72: V1b | C72: 4 | D72: L | E72: 1.9 | F72: 11.1 | G72: 2566.6
A73: V | B73: V1b | C73: 4 | D73: W | E73: 1.5 | F73: 8.7 | G73: 2921.1
A74: V | B74: V1b | C74: 4 | D74: L | E74: 2.3 | F74: 13.3 | G74: 1211.8
A75: V | B75: V1b | C75: 4 | D75: W | E75: 1.9 | F75: 11.3 | G75: 1156.8
A76: V | B76: V1b | C76: 4 | D76: L | E76: 1.8 | F76: 10.6 | G76: 379.8
A77: V | B77: V1b | C77: 4 | D77: W | E77: 1.7 | F77: 10.1 | G77: 451.1
A78: V | B78: V1b | C78: 4 | D78: L | E78: 1.8 | F78: 10.7 | G78: 2414.6
A79: V | B79: V1b | C79: 4 | D79: W | E79: 1.8 | F79: 10.5 | G79: 2906.2
A80: V | B80: V1b | C80: 4 | D80: L | E80: 2.2 | F80: 12.9 | G80: 1180.2
A81: V | B81: V1b | C81: 4 | D81: W | E81: 1.7 | F81: 10.0 | G81: 1225.4
A82: V | B82: V1b | C82: 4 | D82: L | E82: 2.6 | F82: 15.4 | G82: 613.3
A83: V | B83: V1b | C83: 4 | D83: W | E83: 1.4 | F83: 8.2 | G83: 664.7
A84: V | B84: V1b | C84: 4 | D84: L | E84: 1.4 | F84: 8.5 | G84: 1099.1
A85: V | B85: V1b | C85: 4 | D85: W | E85: 1.4 | F85: 8.5 | G85: 1195.1
A86: V | B86: V1b | C86: 4 | D86: L | E86: 2.3 | F86: 13.7 | G86: 1695.6
A87: V | B87: V1b | C87: 4 | D87: W | E87: 1.6 | F87: 9.3 | G87: 1667.7
A88: V | B88: V1b | C88: 4 | D88: L | E88: 2.2 | F88: 13.1 | G88: 1345.9
A89: V | B89: V1b | C89: 4 | D89: W | E89: 1.9 | F89: 11.3 | G89: 1536.6
A90: V | B90: V1b | C90: 4 | D90: L | E90: 1.7 | F90: 10.0 | G90: 1128.0
A91: V | B91: V1b | C91: 4 | D91: W | E91: 1.4 | F91: 8.5 | G91: 1276.0
A92: V | B92: V2a | C92: 5 | D92: EA | E92: 47.5 | F92: 0.0 | G92: 4166.1
A93: V | B93: V2a | C93: 5 | D93: EA | E93: 24.5 | F93: 0.0 | G93: 3457.7
A94: V | B94: V2a | C94: 5 | D94: EA | E94: 66.7 | F94: 0.0 | G94: 2567.4
A95: V | B95: V2a | C95: 5 | D95: EA | E95: 33.9 | F95: 0.0 | G95: 5191.0
A96: V | B96: V2a | C96: 5 | D96: EA | E96: 39.4 | F96: 0.0 | G96: 4163.6
A97: V | B97: V2a | C97: 5 | D97: EA | E97: 48.8 | F97: 0.0 | G97: 3272.9
A98: V | B98: V2a | C98: 5 | D98: EA | E98: 54.5 | F98: 0.0 | G98: 2009.7
A99: V | B99: V2a | C99: 5 | D99: EA | E99: 34.5 | F99: 0.0 | G99: 6067.6
A100: V | B100: V2a | C100: 5 | D100: EA | E100: 59.2 | F100: 0.0 | G100: 3096.6
A101: V | B101: V2a | C101: 5 | D101: EA | E101: 50.2 | F101: 0.0 | G101: 5841.1
A102: V | B102: V2a | C102: 5 | D102: L | E102: 1.1 | F102: 6.6 | G102: 5101.5
A103: V | B103: V2a | C103: 5 | D103: W | E103: 1.2 | F103: 6.8 | G103: 4241.4
A104: V | B104: V2a | C104: 5 | D104: L | E104: 1.0 | F104: 6.0 | G104: 3119.2
A105: V | B105: V2a | C105: 5 | D105: W | E105: 0.9 | F105: 4.9 | G105: 3997.6
A106: V | B106: V2a | C106: 5 | D106: L | E106: 1.1 | F106: 6.4 | G106: 5189.8
A107: V | B107: V2a | C107: 5 | D107: W | E107: 1.4 | F107: 8.5 | G107: 5244.7
A108: V | B108: V2a | C108: 5 | D108: L | E108: 2.0 | F108: 11.8 | G108: 2930.9
A109: V | B109: V2a | C109: 5 | D109: W | E109: 1.1 | F109: 6.5 | G109: 2705.4
A110: V | B110: V2a | C110: 5 | D110: L | E110: 1.4 | F110: 8.3 | G110: 4198.6
A111: V | B111: V2a | C111: 5 | D111: W | E111: 1.0 | F111: 5.9 | G111: 4132.4
A112: V | B112: V2a | C112: 5 | D112: L | E112: 1.4 | F112: 8.2 | G112: 2916.9
A113: V | B113: V2a | C113: 5 | D113: W | E113: 1.6 | F113: 9.2 | G113: 3268.7
A114: V | B114: V2a | C114: 5 | D114: L | E114: 1.4 | F114: 8.2 | G114: 2373.3
A115: V | B115: V2a | C115: 5 | D115: W | E115: 1.1 | F115: 6.6 | G115: 2367.2
A116: V | B116: V2a | C116: 5 | D116: L | E116: 1.2 | F116: 7.2 | G116: 5595.6
A117: V | B117: V2a | C117: 5 | D117: W | E117: 1.0 | F117: 6.0 | G117: 7841.3
A118: V | B118: V2a | C118: 5 | D118: L | E118: 1.2 | F118: 7.0 | G118: 5125.7
A119: V | B119: V2a | C119: 5 | D119: W | E119: 0.9 | F119: 5.4 | G119: 6197.8
A120: V | B120: V2a | C120: 5 | D120: L | E120: 1.7 | F120: 10.2 | G120: 6201.3
A121: V | B121: V2a | C121: 5 | D121: W | E121: 0.8 | F121: 4.9 | G121: 7168.9
A122: V | B122: V2b | C122: 6 | D122: EA | E122: 37.2 | F122: 0.0 | G122: 1770.3
A123: V | B123: V2b | C123: 6 | D123: EA | E123: 27.4 | F123: 0.0 | G123: 1352.4
A124: V | B124: V2b | C124: 6 | D124: EA | E124: 24.3 | F124: 0.0 | G124: 2706.0
A125: V | B125: V2b | C125: 6 | D125: EA | E125: 27.6 | F125: 0.0 | G125: 2319.4
A126: V | B126: V2b | C126: 6 | D126: EA | E126: 61.8 | F126: 0.0 | G126: 1976.1
A127: V | B127: V2b | C127: 6 | D127: EA | E127: 32.3 | F127: 0.0 | G127: 2724.2
A128: V | B128: V2b | C128: 6 | D128: EA | E128: 62.4 | F128: 0.0 | G128: 3293.6
A129: V | B129: V2b | C129: 6 | D129: EA | E129: 30.7 | F129: 0.0 | G129: 2890.8
A130: V | B130: V2b | C130: 6 | D130: EA | E130: 37.1 | F130: 0.0 | G130: 1890.2
A131: V | B131: V2b | C131: 6 | D131: EA | E131: 29.8 | F131: 0.0 | G131: 1032.1
A132: V | B132: V2b | C132: 6 | D132: L | E132: 1.7 | F132: 10.2 | G132: 2050.3
A133: V | B133: V2b | C133: 6 | D133: W | E133: 1.2 | F133: 7.2 | G133: 2167.1
A134: V | B134: V2b | C134: 6 | D134: L | E134: 1.0 | F134: 6.0 | G134: 1073.1
A135: V | B135: V2b | C135: 6 | D135: W | E135: 1.1 | F135: 6.2 | G135: 1035.1
A136: V | B136: V2b | C136: 6 | D136: L | E136: 1.0 | F136: 6.0 | G136: 3331.8
A137: V | B137: V2b | C137: 6 | D137: W | E137: 0.9 | F137: 5.6 | G137: 2943.5
A138: V | B138: V2b | C138: 6 | D138: L | E138: 1.7 | F138: 10.0 | G138: 3575.6
A139: V | B139: V2b | C139: 6 | D139: W | E139: 1.2 | F139: 6.9 | G139: 4862.2
A140: V | B140: V2b | C140: 6 | D140: L | E140: 1.0 | F140: 5.9 | G140: 3185.3
A141: V | B141: V2b | C141: 6 | D141: W | E141: 0.9 | F141: 5.5 | G141: 2790.5
A142: V | B142: V2b | C142: 6 | D142: L | E142: 1.1 | F142: 6.3 | G142: 1999.8
A143: V | B143: V2b | C143: 6 | D143: W | E143: 1.1 | F143: 6.3 | G143: 2212.6
A144: V | B144: V2b | C144: 6 | D144: L | E144: 0.9 | F144: 5.3 | G144: 2679.0
A145: V | B145: V2b | C145: 6 | D145: W | E145: 0.9 | F145: 5.0 | G145: 2699.8
A146: V | B146: V2b | C146: 6 | D146: L | E146: 0.9 | F146: 5.4 | G146: 2355.0
A147: V | B147: V2b | C147: 6 | D147: W | E147: 0.9 | F147: 5.4 | G147: 2513.1
A148: V | B148: V2b | C148: 6 | D148: L | E148: 1.2 | F148: 7.0 | G148: 1895.5
A149: V | B149: V2b | C149: 6 | D149: W | E149: 1.0 | F149: 5.6 | G149: 1943.4
A150: V | B150: V2b | C150: 6 | D150: L | E150: 1.0 | F150: 6.1 | G150: 1375.4
A151: V | B151: V2b | C151: 6 | D151: W | E151: 0.9 | F151: 5.5 | G151: 1431.7
A152: V | B152: V4a | C152: 7 | D152: EA | E152: 43.5 | F152: 0.0 | G152: 2325.8
A153: V | B153: V4a | C153: 7 | D153: EA | E153: 71.8 | F153: 0.0 | G153: 1237.9
A154: V | B154: V4a | C154: 7 | D154: EA | E154: 28.8 | F154: 0.0 | G154: 1634.1
A155: V | B155: V4a | C155: 7 | D155: EA | E155: 71.6 | F155: 0.0 | G155: 995.5
A156: V | B156: V4a | C156: 7 | D156: EA | E156: 65.4 | F156: 0.0 | G156: 1132.3
A157: V | B157: V4a | C157: 7 | D157: EA | E157: 49.3 | F157: 0.0 | G157: 2070.1
A158: V | B158: V4a | C158: 7 | D158: EA | E158: 53.4 | F158: 0.0 | G158: 1486.9
A159: V | B159: V4a | C159: 7 | D159: EA | E159: 39.8 | F159: 0.0 | G159: 2087.7
A160: V | B160: V4a | C160: 7 | D160: EA | E160: 88.5 | F160: 0.0 | G160: 1129.7
A161: V | B161: V4a | C161: 7 | D161: EA | E161: 43.5 | F161: 0.0 | G161: 1653.1
A162: V | B162: V4a | C162: 7 | D162: L | E162: 3.2 | F162: 19.0 | G162: 1110.3
A163: V | B163: V4a | C163: 7 | D163: W | E163: 0.6 | F163: 3.7 | G163: 1130.4
A164: V | B164: V4a | C164: 7 | D164: L | E164: 1.9 | F164: 11.5 | G164: 2444.6
A165: V | B165: V4a | C165: 7 | D165: W | E165: 0.7 | F165: 4.1 | G165: 2179.1
A166: V | B166: V4a | C166: 7 | D166: L | E166: 0.9 | F166: 5.2 | G166: 1742.1
A167: V | B167: V4a | C167: 7 | D167: W | E167: 1.0 | F167: 6.0 | G167: 1955.7
A168: V | B168: V4a | C168: 7 | D168: L | E168: 1.7 | F168: 9.8 | G168: 2292.1
A169: V | B169: V4a | C169: 7 | D169: W | E169: 0.8 | F169: 4.5 | G169: 2435.2
A170: V | B170: V4a | C170: 7 | D170: L | E170: 1.9 | F170: 11.4 | G170: 2516.9
A171: V | B171: V4a | C171: 7 | D171: W | E171: 0.6 | F171: 3.5 | G171: 2973.7
A172: V | B172: V4a | C172: 7 | D172: L | E172: 2.3 | F172: 13.3 | G172: 1569.1
A173: V | B173: V4a | C173: 7 | D173: W | E173: 0.8 | F173: 4.4 | G173: 1947.8
A174: V | B174: V4a | C174: 7 | D174: L | E174: 3.4 | F174: 20.4 | G174: 1291.8
A175: V | B175: V4a | C175: 7 | D175: W | E175: 0.8 | F175: 4.5 | G175: 1544.3
A176: V | B176: V4a | C176: 7 | D176: L | E176: 2.9 | F176: 17.1 | G176: 918.2
A177: V | B177: V4a | C177: 7 | D177: W | E177: 0.7 | F177: 4.0 | G177: 1110.5
A178: V | B178: V4a | C178: 7 | D178: L | E178: 2.5 | F178: 15.0 | G178: 1122.8
A179: V | B179: V4a | C179: 7 | D179: W | E179: 1.2 | F179: 6.8 | G179: 1119.8
A180: V | B180: V4a | C180: 7 | D180: L | E180: 2.6 | F180: 15.1 | G180: 2049.6
A181: V | B181: V4a | C181: 7 | D181: W | E181: 0.4 | F181: 2.5 | G181: 1300.5
A182: V | B182: V1a | C182: 10 | D182: EA | E182: 99.3 | F182: 0.0 | G182: 105.4
A183: V | B183: V1a | C183: 10 | D183: EA | E183: 35.0 | F183: 0.0 | G183: 379.6
A184: V | B184: V1a | C184: 10 | D184: EA | E184: 65.9 | F184: 0.0 | G184: 349.1
A185: V | B185: V1a | C185: 10 | D185: EA | E185: 58.2 | F185: 0.0 | G185: 302.0
A186: V | B186: V1a | C186: 10 | D186: EA | E186: 62.8 | F186: 0.0 | G186: 268.2
A187: V | B187: V1a | C187: 10 | D187: EA | E187: 132.4 | F187: 0.0 | G187: 169.6
A188: V | B188: V1a | C188: 10 | D188: EA | E188: 115.5 | F188: 0.0 | G188: 126.0
A189: V | B189: V1a | C189: 10 | D189: EA | E189: 132.1 | F189: 0.0 | G189: 210.9
A190: V | B190: V1a | C190: 10 | D190: EA | E190: 127.5 | F190: 0.0 | G190: 151.8
A191: V | B191: V1a | C191: 10 | D191: EA | E191: 116.7 | F191: 0.0 | G191: 133.7
A192: V | B192: V1a | C192: 10 | D192: L | E192: 2.9 | F192: 15.8 | G192: 148.5
A193: V | B193: V1a | C193: 10 | D193: W | E193: 1.3 | F193: 7.0 | G193: 185.9
A194: V | B194: V1a | C194: 10 | D194: L | E194: 2.9 | F194: 15.7 | G194: 120.7
A195: V | B195: V1a | C195: 10 | D195: W | E195: 1.6 | F195: 8.5 | G195: 110.8
A196: V | B196: V1a | C196: 10 | D196: L | E196: 2.1 | F196: 11.2 | G196: 218.4
A197: V | B197: V1a | C197: 10 | D197: W | E197: 1.0 | F197: 5.3 | G197: 279.7
A198: V | B198: V1a | C198: 10 | D198: L | E198: 2.2 | F198: 12.3 | G198: 118.7
A199: V | B199: V1a | C199: 10 | D199: W | E199: 1.8 | F199: 9.9 | G199: 139.6
A200: V | B200: V1a | C200: 10 | D200: L | E200: 2.3 | F200: 12.8 | G200: 138.4
... 3521 more rows

Sheet Fig S3b, c
A1: timepoint | B1: number | C1: region | D1: Area | E1: GFP
A2: V | B2: 1 | C2: At | D2: 11930.0 | E2: 240757684.5 | G2: Timepoint | H2: Time of assessment
A3: V | B3: 1 | C3: Aea | D3: 5539.8 | E3: 193267448.6 | H3: V - Virgin, 0h, 90min, 3, 6, 24 and 72h
A4: V | B4: 3 | C4: At | D4: 14871.2 | E4: 351076856.6
A5: V | B5: 3 | C5: Aea | D5: 2907.0 | E5: 149612522.4 | G5: Number | H5: Number of spermatheca in the mating group
A6: V | B6: 4 | C6: At | D6: 17490.0 | E6: 209148572.2 | G6: Region | H6: Region of analysis:
A7: V | B7: 4 | C7: Aea | D7: 6396.8 | E7: 108328786.6 | H7: At
A8: V | B8: 5 | C8: At | D8: 10653.3 | E8: 308807203.9 | H8: Aea | I8: Total spermatheca Area
A9: V | B9: 5 | C9: Aea | D9: 3131.0 | E9: 210877246.0 | I9: Only End apparatus area
A10: V | B10: 6 | C10: At | D10: 11349.4 | E10: 141024287.6 | G10: Area | H10: Measured area in µm2
A11: V | B11: 6 | C11: Aea | D11: 3535.2 | E11: 83754479.5 | G11: GFP | H11: Corrected total fluorescence = RawIntDen - (Area of the object * average bkg mean gray value "mean")
A12: V | B12: 7 | C12: At | D12: 18018.0 | E12: 270531813.5
A13: V | B13: 7 | C13: Aea | D13: 5650.5 | E13: 100900880.8
A14: V | B14: 10 | C14: At | D14: 16180.1 | E14: 26643939.2
A15: V | B15: 10 | C15: Aea | D15: 3719.8 | E15: 8510335.0
A16: V | B16: 11 | C16: At | D16: 13222.9 | E16: 76523544.9
A17: V | B17: 11 | C17: Aea | D17: 5388.9 | E17: 55130489.0
A18: V | B18: 12 | C18: At | D18: 17840.7 | E18: 121226530.7
A19: V | B19: 12 | C19: Aea | D19: 5554.1 | E19: 68899716.5
A20: V | B20: 13 | C20: At | D20: 10371.8 | E20: 116590148.1
A21: V | B21: 13 | C21: Aea | D21: 1932.3 | E21: 38306256.3
A22: V | B22: 14 | C22: At | D22: 11128.5 | E22: 149065680.6
A23: V | B23: 14 | C23: Aea | D23: 4283.1 | E23: 107576839.7
A24: V | B24: 15 | C24: At | D24: 19164.9 | E24: 305572225.1
A25: V | B25: 15 | C25: Aea | D25: 5327.2 | E25: 143573130.4
A26: V | B26: 16 | C26: At | D26: 15080.0 | E26: 374022010.7
A27: V | B27: 16 | C27: Aea | D27: 5112.1 | E27: 218914795.4
A28: V | B28: 17 | C28: At | D28: 12337.0 | E28: 64330544.6
A29: V | B29: 17 | C29: Aea | D29: 3403.6 | E29: 29707376.3
A30: V | B30: 18 | C30: At | D30: 17931.8 | E30: 81256180.8
A31: V | B31: 18 | C31: Aea | D31: 3399.7 | E31: 19604032.0
A32: 0h | B32: 1 | C32: At | D32: 10930.1 | E32: 47209407.4
A33: 0h | B33: 1 | C33: Aea | D33: 3391.7 | E33: 32016040.9
A34: 0h | B34: 2 | C34: At | D34: 7905.6 | E34: 39273697.3
A35: 0h | B35: 2 | C35: Aea | D35: 2441.4 | E35: 24767747.4
A36: 0h | B36: 3 | C36: At | D36: 13359.2 | E36: 313348839.6
A37: 0h | B37: 3 | C37: Aea | D37: 5874.6 | E37: 216102765.7
A38: 0h | B38: 4 | C38: At | D38: 10039.2 | E38: 265279938.1
A39: 0h | B39: 4 | C39: Aea | D39: 4623.0 | E39: 174503263.1
A40: 0h | B40: 5 | C40: At | D40: 13586.6 | E40: 184015251.0
A41: 0h | B41: 5 | C41: Aea | D41: 5479.5 | E41: 128361998.3
A42: 0h | B42: 6 | C42: At | D42: 18007.7 | E42: 255106215.3
A43: 0h | B43: 6 | C43: Aea | D43: 5318.3 | E43: 167065681.5
A44: 0h | B44: 7 | C44: At | D44: 12102.6 | E44: 207899716.8
A45: 0h | B45: 7 | C45: Aea | D45: 3421.4 | E45: 116329168.7
A46: 0h | B46: 8 | C46: At | D46: 9412.9 | E46: 27216198.5
A47: 0h | B47: 8 | C47: Aea | D47: 2487.7 | E47: 16153760.5
A48: 0h | B48: 9 | C48: At | D48: 7421.1 | E48: 15106095.9
A49: 0h | B49: 9 | C49: Aea | D49: 1963.0 | E49: 10682648.1
A50: 0h | B50: 10 | C50: At | D50: 16422.5 | E50: 53743247.9
A51: 0h | B51: 10 | C51: Aea | D51: 5450.6 | E51: 31536530.6
A52: 0h | B52: 11 | C52: At | D52: 13734.8 | E52: 65338545.1
A53: 0h | B53: 11 | C53: Aea | D53: 4481.8 | E53: 35540234.9
A54: 0h | B54: 12 | C54: At | D54: 20970.6 | E54: 133857275.7
A55: 0h | B55: 12 | C55: Aea | D55: 5396.8 | E55: 44461846.8
A56: 0h | B56: 13 | C56: At | D56: 15425.2 | E56: 88292011.8
A57: 0h | B57: 13 | C57: Aea | D57: 5071.6 | E57: 43533120.3
A58: 0h | B58: 14 | C58: At | D58: 12489.7 | E58: 45515076.6
A59: 0h | B59: 14 | C59: Aea | D59: 5734.2 | E59: 27511768.9
A60: 0h | B60: 15 | C60: At | D60: 12924.8 | E60: 33002362.5
A61: 0h | B61: 15 | C61: Aea | D61: 6924.5 | E61: 21886469.9
A62: 90min | B62: 5 | C62: At | D62: 20389.2 | E62: 357494517.7
A63: 90min | B63: 5 | C63: Aea | D63: 6197.9 | E63: 143866382.2
A64: 90min | B64: 6 | C64: At | D64: 19393.1 | E64: 133695669.2
A65: 90min | B65: 6 | C65: Aea | D65: 6473.0 | E65: 62466220.4
A66: 90min | B66: 7 | C66: At | D66: 17586.2 | E66: 330242158.8
A67: 90min | B67: 7 | C67: Aea | D67: 7331.1 | E67: 175059463.1
A68: 90min | B68: 8 | C68: At | D68: 14922.1 | E68: 162251480.4
A69: 90min | B69: 8 | C69: Aea | D69: 5953.1 | E69: 91150473.0
A70: 90min | B70: 9 | C70: At | D70: 14290.0 | E70: 448222248.5
A71: 90min | B71: 9 | C71: Aea | D71: 6165.7 | E71: 277483932.7
A72: 90min | B72: 10 | C72: At | D72: 15137.4 | E72: 420938158.9
A73: 90min | B73: 10 | C73: Aea | D73: 5956.3 | E73: 226405563.3
A74: 90min | B74: 12 | C74: At | D74: 17466.9 | E74: 174843895.7
A75: 90min | B75: 12 | C75: Aea | D75: 7487.7 | E75: 77311086.9
A76: 90min | B76: 11 | C76: At | D76: 16101.5 | E76: 252327635.5
A77: 90min | B77: 11 | C77: Aea | D77: 6051.7 | E77: 150032492.9
A78: 90min | B78: 1 | C78: At | D78: 14661.6 | E78: 41741812.7
A79: 90min | B79: 1 | C79: Aea | D79: 6315.3 | E79: 24661598.2
A80: 90min | B80: 2 | C80: At | D80: 16086.2 | E80: 342133969.8
A81: 90min | B81: 2 | C81: Aea | D81: 5537.3 | E81: 211891852.3
A82: 90min | B82: 3 | C82: At | D82: 12224.8 | E82: 55249617.5
A83: 90min | B83: 3 | C83: Aea | D83: 5106.3 | E83: 32209181.3
A84: 90min | B84: 4 | C84: At | D84: 15344.8 | E84: 89433904.5
A85: 90min | B85: 4 | C85: Aea | D85: 5455.2 | E85: 46920540.9
A86: 3h | B86: 2 | C86: At | D86: 24256.4 | E86: 252390732.3
A87: 3h | B87: 2 | C87: Aea | D87: 9401.7 | E87: 131707461.0
A88: 3h | B88: 1 | C88: At | D88: 13745.5 | E88: 194702888.3
A89: 3h | B89: 1 | C89: Aea | D89: 2849.0 | E89: 96014047.7
A90: 3h | B90: 3 | C90: At | D90: 16895.3 | E90: 118493155.4
A91: 3h | B91: 3 | C91: Aea | D91: 7247.8 | E91: 72522177.5
A92: 3h | B92: 4 | C92: At | D92: 14648.2 | E92: 191765489.1
A93: 3h | B93: 4 | C93: Aea | D93: 5327.5 | E93: 93146136.5
A94: 3h | B94: 5 | C94: At | D94: 14838.9 | E94: 296265968.6
A95: 3h | B95: 5 | C95: Aea | D95: 5437.2 | E95: 181255148.8
A96: 3h | B96: 6 | C96: At | D96: 16551.7 | E96: 294517088.5
A97: 3h | B97: 6 | C97: Aea | D97: 6420.3 | E97: 188713117.9
A98: 3h | B98: 7 | C98: At | D98: 12890.9 | E98: 71944179.7
A99: 3h | B99: 7 | C99: Aea | D99: 5435.5 | E99: 41436462.6
A100: 3h | B100: 8 | C100: At | D100: 15017.5 | E100: 163872670.0
A101: 3h | B101: 8 | C101: Aea | D101: 6126.4 | E101: 83356894.6
A102: 3h | B102: 9 | C102: At | D102: 16210.8 | E102: 177552670.0
A103: 3h | B103: 9 | C103: Aea | D103: 6370.6 | E103: 98275727.8
A104: 3h | B104: 10 | C104: At | D104: 13281.0 | E104: 102229337.3
A105: 3h | B105: 10 | C105: Aea | D105: 5163.5 | E105: 60960350.5
A106: 3h | B106: 11 | C106: At | D106: 14578.5 | E106: 255620829.6
A107: 3h | B107: 11 | C107: Aea | D107: 5811.0 | E107: 152241388.3
A108: 3h | B108: 12 | C108: At | D108: 12028.5 | E108: 295800186.9
A109: 3h | B109: 12 | C109: Aea | D109: 4754.6 | E109: 198526738.0
A110: 3h | B110: 13 | C110: At | D110: 14719.2 | E110: 210949760.0
A111: 3h | B111: 13 | C111: Aea | D111: 4851.7 | E111: 107626391.3
A112: 3h | B112: 14 | C112: At | D112: 8977.7 | E112: 92011285.9
A113: 3h | B113: 14 | C113: Aea | D113: 4813.7 | E113: 68358368.4
A114: 3h | B114: 15 | C114: At | D114: 11627.6 | E114: 121776829.7
A115: 3h | B115: 15 | C115: Aea | D115: 5246.5 | E115: 89040773.5
A116: 3h | B116: 16 | C116: At | D116: 14147.2 | E116: 136359421.3
A117: 3h | B117: 16 | C117: Aea | D117: 5594.3 | E117: 82603572.5
A118: 3h | B118: 17 | C118: At | D118: 11587.4 | E118: 92239036.0
A119: 3h | B119: 17 | C119: Aea | D119: 5730.0 | E119: 69614765.3
A120: 3h | B120: 18 | C120: At | D120: 9454.6 | E120: 102801270.5
A121: 3h | B121: 18 | C121: Aea | D121: 4549.3 | E121: 65967615.2
A122: 3h | B122: 19 | C122: At | D122: 10065.6 | E122: 69932602.8
A123: 3h | B123: 19 | C123: Aea | D123: 3061.6 | E123: 31954325.0
A124: 3h | B124: 20 | C124: At | D124: 16065.2 | E124: 113934987.0
A125: 3h | B125: 20 | C125: Aea | D125: 5657.3 | E125: 60843412.1
A126: 3h | B126: 21 | C126: At | D126: 16275.7 | E126: 76189914.8
A127: 3h | B127: 21 | C127: Aea | D127: 6776.2 | E127: 37981904.5
A128: 3h | B128: 22 | C128: At | D128: 15672.1 | E128: 35781737.3
A129: 3h | B129: 22 | C129: Aea | D129: 4389.5 | E129: 16656666.6
A130: 3h | B130: 23 | C130: At | D130: 15409.5 | E130: 25012562.0
A131: 3h | B131: 23 | C131: Aea | D131: 5376.3 | E131: 13513860.9
A132: 3h | B132: 24 | C132: At | D132: 8211.7 | E132: 1257930.5
A133: 3h | B133: 24 | C133: Aea | D133: 4210.6 | E133: 231673.0
A134: 3h | B134: 25 | C134: At | D134: 16082.3 | E134: 514349183.5
A135: 3h | B135: 25 | C135: Aea | D135: 6307.5 | E135: 323875538.9
A136: 3h | B136: 26 | C136: At | D136: 15347.1 | E136: 180554652.6
A137: 3h | B137: 26 | C137: Aea | D137: 5372.4 | E137: 83870268.2
A138: 6h | B138: 1 | C138: At | D138: 15998.2 | E138: 202888028.0
A139: 6h | B139: 1 | C139: Aea | D139: 6399.6 | E139: 97750344.2
A140: 6h | B140: 2 | C140: At | D140: 15409.9 | E140: 213013717.8
A141: 6h | B141: 2 | C141: Aea | D141: 5233.9 | E141: 119759946.7
A142: 6h | B142: 3 | C142: At | D142: 17738.7 | E142: 266271160.4
A143: 6h | B143: 3 | C143: Aea | D143: 8953.7 | E143: 130967663.8
A144: 6h | B144: 4 | C144: At | D144: 17283.3 | E144: 274098002.7
A145: 6h | B145: 4 | C145: Aea | D145: 7175.8 | E145: 135477492.9
A146: 6h | B146: 5 | C146: At | D146: 13483.8 | E146: 289562587.7
A147: 6h | B147: 5 | C147: Aea | D147: 5613.1 | E147: 139754064.3
A148: 6h | B148: 6 | C148: At | D148: 15876.3 | E148: 272082829.0
A149: 6h | B149: 6 | C149: Aea | D149: 6926.3 | E149: 165856161.5
A150: 6h | B150: 7 | C150: At | D150: 9754.1 | E150: 133150833.9
A151: 6h | B151: 7 | C151: Aea | D151: 3413.1 | E151: 59941098.5
A152: 6h | B152: 8 | C152: At | D152: 9453.6 | E152: 184505388.8
A153: 6h | B153: 8 | C153: Aea | D153: 3874.0 | E153: 99012055.3
A154: 6h | B154: 9 | C154: At | D154: 15376.4 | E154: 93555895.8
A155: 6h | B155: 9 | C155: Aea | D155: 7295.1 | E155: 59145679.1
A156: 6h | B156: 10 | C156: At | D156: 9385.3 | E156: 70340418.8
A157: 6h | B157: 10 | C157: Aea | D157: 2095.3 | E157: 40893769.4
A158: 6h | B158: 11 | C158: At | D158: 11957.9 | E158: 24194554.7
A159: 6h | B159: 11 | C159: Aea | D159: 4182.8 | E159: 14740383.4
A160: 6h | B160: 12 | C160: At | D160: 16847.7 | E160: 144020374.6
A161: 6h | B161: 12 | C161: Aea | D161: 7464.0 | E161: 84194213.6
A162: 6h | B162: 13 | C162: At | D162: 13619.5 | E162: 41121657.1
A163: 6h | B163: 13 | C163: Aea | D163: 4875.5 | E163: 20295079.4
A164: 6h | B164: 14 | C164: At | D164: 13619.5 | E164: 41121657.1
A165: 6h | B165: 14 | C165: Aea | D165: 4875.5 | E165: 20295079.4
A166: 6h | B166: 15 | C166: At | D166: 14767.5 | E166: 44221983.2
A167: 6h | B167: 15 | C167: Aea | D167: 7972.7 | E167: 32663531.9
A168: 6h | B168: 16 | C168: At | D168: 13714.1 | E168: 30227170.6
A169: 6h | B169: 16 | C169: Aea | D169: 4648.8 | E169: 20828669.6
A170: 6h | B170: 17 | C170: At | D170: 11781.0 | E170: 31605043.5
A171: 6h | B171: 17 | C171: Aea | D171: 5070.4 | E171: 20058794.2
A172: 6h | B172: 18 | C172: At | D172: 14678.1 | E172: 61821640.7
A173: 6h | B173: 18 | C173: Aea | D173: 5150.1 | E173: 32301857.0
A174: 6h | B174: 19 | C174: At | D174: 16940.6 | E174: 75979447.8
A175: 6h | B175: 19 | C175: Aea | D175: 5574.1 | E175: 42554959.1
A176: 6h | B176: 20 | C176: At | D176: 15786.2 | E176: 20256837.2
A177: 6h | B177: 20 | C177: Aea | D177: 5471.6 | E177: 13613061.0
A178: 6h | B178: 21 | C178: At | D178: 11687.6 | E178: 26451151.9
A179: 6h | B179: 21 | C179: Aea | D179: 5299.9 | E179: 16647721.7
A180: 6h | B180: 22 | C180: At | D180: 14846.9 | E180: 45943390.4
A181: 6h | B181: 22 | C181: Aea | D181: 4300.1 | E181: 29224091.0
A182: 24h | B182: 14 | C182: At | D182: 15407.3 | E182: 190792091.1
A183: 24h | B183: 14 | C183: Aea | D183: 6152.0 | E183: 119752813.3
A184: 24h | B184: 15 | C184: At | D184: 15313.0 | E184: 300810430.5
A185: 24h | B185: 15 | C185: Aea | D185: 5922.2 | E185: 169511147.4
A186: 24h | B186: 1 | C186: At | D186: 17349.5 | E186: 393989750.1
A187: 24h | B187: 1 | C187: Aea | D187: 7538.5 | E187: 260166241.1
A188: 24h | B188: 2 | C188: At | D188: 19008.9 | E188: 339099528.1
A189: 24h | B189: 2 | C189: Aea | D189: 7627.7 | E189: 212974955.3
A190: 24h | B190: 3 | C190: At | D190: 15484.4 | E190: 207180868.5
A191: 24h | B191: 3 | C191: Aea | D191: 7461.5 | E191: 150410914.3
A192: 24h | B192: 4 | C192: At | D192: 12799.0 | E192: 274388503.0
A193: 24h | B193: 4 | C193: Aea | D193: 7292.4 | E193: 226569227.0
A194: 24h | B194: 5 | C194: At | D194: 13396.3 | E194: 181322259.3
A195: 24h | B195: 5 | C195: Aea | D195: 5022.9 | E195: 149875303.8
A196: 24h | B196: 7 | C196: At | D196: 17103.4 | E196: 268850524.5
A197: 24h | B197: 7 | C197: Aea | D197: 7249.3 | E197: 186300959.0
A198: 24h | B198: 8 | C198: At | D198: 16035.2 | E198: 234850182.5
A199: 24h | B199: 8 | C199: Aea | D199: 8384.8 | E199: 179296321.8
A200: 24h | B200: 9 | C200: At | D200: 14487.6 | E200: 240719049.0
... 49 more rows

Sheet Fig3c
A1: Line | B1: Mate | C1: Spt | D1: Count | E1: Number
A2: Ctrl | B2: V | C2: a | D2: 4 | E2: 1030
A3: Ctrl | B3: V | C3: b | D3: 5 | E3: 816 | G3: Mate | H3: Time post-mating
A4: Ctrl | B4: M24 | C4: a | D4: 8 | E4: 512 | H4: Virgin or 24h post-mating
A5: Ctrl | B5: M24 | C5: a | D5: 9 | E5: 1101
A6: Ctrl | B6: M24 | C6: b | D6: 10 | E6: 1466 | G6: Line | H6: Control flies
A7: Ctrl | B7: V | C7: a | D7: 15 | E7: 122 | G7: Count | H7: Number of spermatheca
A8: Ctrl | B8: V | C8: b | D8: 16 | E8: 305 | G8: Number | H8: Number of Lysotracker red particles
A9: Ctrl | B9: V | C9: a | D9: 17 | E9: 265
A10: Ctrl | B10: V | C10: b | D10: 18 | E10: 273
A11: Ctrl | B11: M24 | C11: a | D11: 23 | E11: 847
A12: Ctrl | B12: M24 | C12: a | D12: 25 | E12: 1518
A13: Ctrl | B13: M24 | C13: a | D13: 27 | E13: 269
A14: Ctrl | B14: M24 | C14: b | D14: 24 | E14: 1015
A15: Ctrl | B15: M24 | C15: b | D15: 26 | E15: 1326
A16: Ctrl | B16: M24 | C16: b | D16: 28 | E16: 421
A17: Ctrl | B17: M24 | C17: b | D17: 30 | E17: 754

Sheet Fig3d
A1: Number | B1: Status | C1: Fly | D1: Spt | E1: No. EA | F1: Lumen
A2: 1 | B2: M24 | C2: 1 | D2: a | E2: 2 | F2: 1 | H2: Number | I2: Number of spermatheca
A3: 2 | B3: M24 | C3: 1 | D3: b | E3: 18 | F3: 0 | H3: Status | I3: Time post-mating
A4: 3 | B4: M24 | C4: 2 | D4: a | E4: 4 | F4: 1 | H4: Fly | I4: Number of fly in the experiment date
A5: 4 | B5: M24 | C5: 2 | D5: b | E5: 3 | F5: 0 | H5: Spt | I5: type of spermatheca from the pair
A6: 5 | B6: M24 | C6: 4 | D6: a | E6: 12 | F6: 1 | H6: No. EA | I6: Number of RFP-myr positive End apparatus
A7: 6 | B7: M24 | C7: 5 | D7: a | E7: 3 | F7: 0 | H7: Lumen | I7: myr-RFP positive material in the lumen
A8: 7 | B8: M24 | C8: 5 | D8: b | E8: 9 | F8: 1 | I8: 0, 1 - absent, present
A9: 8 | B9: M24 | C9: 6 | D9: a | E9: 3 | F9: 1
A10: 9 | B10: M24 | C10: 6 | D10: b | E10: 1 | F10: 0
A11: 10 | B11: M24 | C11: 7 | D11: a | E11: 24 | F11: 1
A12: 11 | B12: M24 | C12: 7 | D12: b | E12: 19 | F12: 0
A13: 12 | B13: M24 | C13: 8 | D13: a | E13: 4 | F13: 1
A14: 13 | B14: M24 | C14: 8 | D14: b | E14: 4 | F14: 1
A15: 14 | B15: V | C15: 1 | D15: a | E15: 2 | F15: 0
A16: 15 | B16: V | C16: 1 | D16: b | E16: 5 | F16: 0
A17: 16 | B17: V | C17: 2 | D17: a | E17: 4 | F17: 1
A18: 17 | B18: V | C18: 2 | D18: b | E18: 4 | F18: 0
A19: 18 | B19: V | C19: 3 | D19: a | E19: 6 | F19: 0
A20: 19 | B20: V | C20: 3 | D20: b | E20: 2 | F20: 1
A21: 20 | B21: V | C21: 4 | D21: a | E21: 3 | F21: 1
A22: 21 | B22: V | C22: 4 | D22: b | E22: 1 | F22: 0
A23: 20 | B23: V | C23: 5 | D23: a | E23: 2 | F23: 0
A24: 21 | B24: V | C24: 1 | D24: a | E24: 0 | F24: 0
A25: 22 | B25: V | C25: 2 | D25: a | E25: 4 | F25: 0
A26: 23 | B26: V | C26: 3 | D26: a | E26: 2 | F26: 1
A27: 24 | B27: V | C27: 3 | D27: b | E27: 1 | F27: 1
A28: 25 | B28: M24 | C28: 1 | D28: a | E28: 13 | F28: 1
A29: 26 | B29: M24 | C29: 4 | D29: a | E29: 20 | F29: 1
A30: 27 | B30: M24 | C30: 4 | D30: b | E30: 19 | F30: 1
A31: 28 | B31: V | C31: 1 | D31: b | E31: 1 | F31: 0
A32: 29 | B32: V | C32: 2 | D32: a | E32: 7 | F32: 1
A33: 30 | B33: M24 | C33: 1 | D33: a | E33: 7 | F33: 1
A34: 31 | B34: M24 | C34: 2 | D34: a | E34: 26 | F34: 0
A35: 32 | B35: M24 | C35: 2 | D35: b | E35: 23 | F35: 1
A36: 33 | B36: M24 | C36: 1 | D36: a | E36: 8 | F36: 1
A37: 34 | B37: M24 | C37: 2 | D37: a | E37: 5 | F37: 1
A38: 35 | B38: M24 | C38: 2 | D38: b | E38: 5 | F38: 1
A39: 36 | B39: V | C39: 1 | D39: a | E39: 2 | F39: 1
A40: 37 | B40: V | C40: 1 | D40: b | E40: 3 | F40: 0
A41: 38 | B41: V | C41: 2 | D41: a | E41: 4 | F41: 1
A42: 39 | B42: V | C42: 3 | D42: a | E42: 1 | F42: 1
A43: 40 | B43: V | C43: 4 | D43: a | E43: 3 | F43: 0
A44: 41 | B44: M24 | C44: 1 | D44: b | E44: 21 | F44: 0
A45: 42 | B45: M24 | C45: 3 | D45: b | E45: 23 | F45: 1
A46: 43 | B46: M24 | C46: 3 | D46: a | E46: 9 | F46: 1

Sheet Fig4c,d
A1: Condition | B1: Time | C1: Fly | D1: Spt | E1: No. End App | F1: Cells w/endo
A2: M | B2: 0 | C2: 1 | D2: a | E2: 8 | F2: 4 | H2: Figures 4c and d
A3: M | B3: 0 | C3: 1 | D3: b | E3: 7 | F3: 2
A4: M | B4: 0 | C4: 2 | D4: a | E4: 9 | F4: 4 | H4: Condition - mated or virgin
A5: M | B5: 0 | C5: 2 | D5: b | E5: 15 | F5: 4 | H5: Time - time of analysis at pulse or 0, 6, 24 or 48h post-mating
A6: M | B6: 0 | C6: 3 | D6: a | E6: 5 | F6: 1 | H6: Fly - number of fly
A7: M | B7: 0 | C7: 3 | D7: b | E7: 12 | F7: 5 | H7: Spt - spt pair (a or b)
A8: M | B8: 0 | C8: 4 | D8: a | E8: 14 | F8: 8 | H8: No end App - number of CD63-GFP-positive EA in the Spt
A9: M | B9: 0 | C9: 4 | D9: b | E9: 8 | F9: 5 | H9: Cells w/endosomes - number of SSC with CD63-GFP-positive endosomes
A10: V | B10: 0 | C10: 1 | D10: a | E10: 14 | F10: 2
A11: V | B11: 0 | C11: 1 | D11: b | E11: 13 | F11: 3
A12: V | B12: 0 | C12: 2 | D12: a | E12: 5 | F12: 3
A13: V | B13: 0 | C13: 2 | D13: b | E13: 1 | F13: 1
A14: V | B14: 0 | C14: 3 | D14: a | E14: 10 | F14: 6
A15: V | B15: 0 | C15: 3 | D15: b | E15: 11 | F15: 4
A16: V | B16: 0 | C16: 4 | D16: a | E16: 9 | F16: 6
A17: V | B17: 0 | C17: 4 | D17: b | E17: 11 | F17: 6
A18: V | B18: 24 | C18: 1 | D18: a | E18: 14 | F18: 10
A19: V | B19: 24 | C19: 2 | D19: a | E19: 16 | F19: 11
A20: V | B20: 24 | C20: 2 | D20: b | E20: 13 | F20: 8
A21: M | B21: 24 | C21: 1 | D21: a | E21: 9 | F21: 5
A22: M | B22: 24 | C22: 1 | D22: b | E22: 15 | F22: 11
A23: M | B23: 24 | C23: 2 | D23: a | E23: 6 | F23: 4
A24: M | B24: 24 | C24: 2 | D24: b | E24: 10 | F24: 7
A25: V | B25: 48 | C25: 1 | D25: a | E25: 2 | F25: 5
A26: V | B26: 48 | C26: 1 | D26: b | E26: 1 | F26: 1
A27: V | B27: 48 | C27: 2 | D27: a | E27: 2 | F27: 0
A28: V | B28: 48 | C28: 2 | D28: b | E28: 0 | F28: 0
A29: M | B29: 48 | C29: 1 | D29: a | E29: 0 | F29: 0
A30: M | B30: 48 | C30: 1 | D30: b | E30: 1 | F30: 0
A31: M | B31: 48 | C31: 2 | D31: a | E31: 19 | F31: 2
A32: M | B32: 48 | C32: 2 | D32: b | E32: 0 | F32: 2
A33: V | B33: 0 | C33: 1 | D33: a | E33: 3 | F33: 4
A34: V | B34: 0 | C34: 1 | D34: b | E34: 6 | F34: 3
A35: V | B35: 0 | C35: 2 | D35: a | E35: 6 | F35: 4
A36: V | B36: 0 | C36: 2 | D36: b | E36: 6 | F36: 2
A37: M | B37: 0 | C37: 1 | D37: a | E37: 9 | F37: 1
A38: M | B38: 0 | C38: 1 | D38: b | E38: 16 | F38: 1
A39: M | B39: 0 | C39: 2 | D39: a | E39: 5 | F39: 2
A40: M | B40: 0 | C40: 2 | D40: b | E40: 4 | F40: 3
A41: M | B41: 0 | C41: 3 | D41: a | E41: 10 | F41: 0
A42: M | B42: 0 | C42: 3 | D42: b | E42: 5 | F42: 0
A43: V | B43: 48 | C43: 1 | D43: a | E43: 8 | F43: 3
A44: V | B44: 48 | C44: 1 | D44: b | E44: 8 | F44: 1
A45: V | B45: 48 | C45: 2 | D45: a | E45: 6 | F45: 3
A46: V | B46: 48 | C46: 2 | D46: b | E46: 9 | F46: 2
A47: V | B47: 48 | C47: 3 | D47: a | E47: 9 | F47: 2
A48: V | B48: 48 | C48: 3 | D48: b | E48: 19 | F48: 5
A49: M | B49: 48 | C49: 1 | D49: a | E49: 11 | F49: 5
A50: M | B50: 48 | C50: 2 | D50: a | E50: 2 | F50: 2
A51: M | B51: 48 | C51: 2 | D51: b | E51: 2 | F51: 2
A52: M | B52: 48 | C52: 3 | D52: a | E52: 5 | F52: 3
A53: M | B53: 48 | C53: 3 | D53: b | E53: 5 | F53: 2
A54: V | B54: P | C54: 1 | D54: a | E54: 6 | F54: 4
A55: V | B55: P | C55: 2 | D55: a | E55: 13 | F55: 8
A56: V | B56: P | C56: 2 | D56: b | E56: 12 | F56: 9
A57: V | B57: P | C57: 3 | D57: a | E57: 6 | F57: 0
A58: V | B58: P | C58: 3 | D58: b | E58: 6 | F58: 1
A59: V | B59: P | C59: 4 | D59: a | E59: 9 | F59: 4
A60: V | B60: P | C60: 4 | D60: b | E60: 8 | F60: 3
A61: V | B61: P | C61: 1 | D61: a | E61: 20 | F61: 11
A62: V | B62: P | C62: 1 | D62: a | E62: 8 | F62: 2
A63: V | B63: P | C63: 2 | D63: a | E63: 9 | F63: 0
A64: V | B64: P | C64: 2 | D64: b | E64: 24 | F64: 0
A65: V | B65: P | C65: 3 | D65: a | E65: 9 | F65: 7
A66: V | B66: P | C66: 3 | D66: b | E66: 9 | F66: 5
A67: V | B67: P | C67: 1 | D67: a | E67: 12 | F67: 3
A68: V | B68: P | C68: 1 | D68: b | E68: 9 | F68: 5
A69: V | B69: P | C69: 2 | D69: a | E69: 17 | F69: 4
A70: V | B70: P | C70: 2 | D70: b | E70: 16 | F70: 3
A71: V | B71: P | C71: 1 | D71: a | E71: 8 | F71: 6
A72: V | B72: P | C72: 1 | D72: b | E72: 10 | F72: 7
A73: V | B73: P | C73: 2 | D73: a | E73: 10 | F73: 6
A74: V | B74: P | C74: 2 | D74: b | E74: 11 | F74: 7
A75: V | B75: P | C75: 3 | D75: a | E75: 9 | F75: 7
A76: V | B76: P | C76: 3 | D76: b | E76: 5 | F76: 2
A77: M | B77: 24 | C77: 1 | D77: a | E77: 10 | F77: 11
A78: M | B78: 24 | C78: 1 | D78: b | E78: 8 | F78: 5
A79: M | B79: 24 | C79: 2 | D79: a | E79: 21 | F79: 0
A80: M | B80: 24 | C80: 3 | D80: a | E80: 11 | F80: 1
A81: M | B81: 24 | C81: 3 | D81: b | E81: 13 | F81: 1
A82: M | B82: 24 | C82: 4 | D82: a | E82: 5 | F82: 4
A83: M | B83: 24 | C83: 4 | D83: b | E83: 8 | F83: 5
A84: M | B84: 24 | C84: 5 | D84: a | E84: 13 | F84: 8
A85: M | B85: 24 | C85: 5 | D85: b | E85: 6 | F85: 6
A86: M | B86: 24 | C86: 6 | D86: a | E86: 5 | F86: 0
A87: M | B87: 24 | C87: 6 | D87: b | E87: 6 | F87: 0
A88: V | B88: 24 | C88: 1 | D88: a | E88: 11 | F88: 8
A89: V | B89: 24 | C89: 1 | D89: b | E89: 8 | F89: 4
A90: V | B90: 24 | C90: 2 | D90: a | E90: 6 | F90: 11
A91: V | B91: 24 | C91: 2 | D91: b | E91: 10 | F91: 7
A92: V | B92: 24 | C92: 3 | D92: a | E92: 5 | F92: 4
A93: V | B93: 24 | C93: 3 | D93: b | E93: 6 | F93: 4
A94: V | B94: 24 | C94: 4 | D94: a | E94: 4 | F94: 3
A95: V | B95: 24 | C95: 4 | D95: b | E95: 6 | F95: 8
A96: V | B96: P | C96: 1 | D96: a | E96: 8 | F96: 4
A97: V | B97: P | C97: 2 | D97: a | E97: 4 | F97: 6
A98: V | B98: P | C98: 2 | D98: b | E98: 5 | F98: 3
A99: V | B99: P | C99: 3 | D99: a | E99: 9 | F99: 3
A100: V | B100: P | C100: 4 | D100: a | E100: 9 | F100: 5
A101: V | B101: P | C101: 4 | D101: b | E101: 7 | F101: 2
A102: V | B102: 0 | C102: 1 | D102: a | E102: 8 | F102: 4
A103: V | B103: 0 | C103: 1 | D103: b | E103: 8 | F103: 3
A104: V | B104: 0 | C104: 2 | D104: a | E104: 6 | F104: 4
A105: V | B105: 0 | C105: 3 | D105: a | E105: 10 | F105: 6
A106: V | B106: 0 | C106: 4 | D106: a | E106: 15 | F106: 2
A107: V | B107: 0 | C107: 4 | D107: b | E107: 19 | F107: 5
A108: V | B108: 0 | C108: 5 | D108: a | E108: 11 | F108: 9
A109: V | B109: 0 | C109: 5 | D109: b | E109: 19 | F109: 4
A110: M | B110: 0 | C110: 1 | D110: a | E110: 17 | F110: 9
A111: M | B111: 0 | C111: 2 | D111: a | E111: 21 | F111: 3
A112: M | B112: 0 | C112: 2 | D112: b | E112: 8 | F112: 3
A113: M | B113: 0 | C113: 3 | D113: a | E113: 11 | F113: 5
A114: M | B114: 0 | C114: 3 | D114: b | E114: 3 | F114: 2
A115: M | B115: 0 | C115: 4 | D115: a | E115: 8 | F115: 3
A116: M | B116: 0 | C116: 4 | D116: b | E116: 7 | F116: 1
A117: M | B117: 0 | C117: 5 | D117: a | E117: 8 | F117: 3
A118: M | B118: 0 | C118: 5 | D118: b | E118: 15 | F118: 10
A119: V | B119: 6 | C119: 1 | D119: a | E119: 19 | F119: 3
A120: V | B120: 6 | C120: 1 | D120: b | E120: 14 | F120: 0
A121: V | B121: 6 | C121: 2 | D121: a | E121: 25 | F121: 6
A122: V | B122: 6 | C122: 2 | D122: b | E122: 31 | F122: 9
A123: V | B123: 6 | C123: 3 | D123: a | E123: 14 | F123: 4
A124: V | B124: 6 | C124: 3 | D124: b | E124: 18 | F124: 2
A125: M | B125: 6 | C125: 1 | D125: a | E125: 20 | F125: 5
A126: M | B126: 6 | C126: 1 | D126: b | E126: 19 | F126: 6
A127: M | B127: 6 | C127: 2 | D127: a | E127: 28 | F127: 8
A128: M | B128: 6 | C128: 2 | D128: b | E128: 24 | F128: 6
A129: M | B129: 6 | C129: 3 | D129: a | E129: 12 | F129: 1
A130: M | B130: 6 | C130: 3 | D130: b | E130: 31 | F130: 0
A131: M | B131: 6 | C131: 1 | D131: a | E131: 11 | F131: 6
A132: M | B132: 6 | C132: 1 | D132: b | E132: 9 | F132: 7
A133: M | B133: 6 | C133: 2 | D133: a | E133: 10 | F133: 5
A134: M | B134: 6 | C134: 3 | D134: a | E134: 6 | F134: 2
A135: V | B135: 6 | C135: 1 | D135: a | E135: 6 | F135: 4
A136: V | B136: 6 | C136: 2 | D136: a | E136: 5 | F136: 2
A137: V | B137: 6 | C137: 2 | D137: b | E137: 6 | F137: 3
A138: V | B138: P | C138: 1 | D138: a | E138: 15 | F138: 1
A139: V | B139: P | C139: 1 | D139: b | E139: 9 | F139: 3
A140: V | B140: P | C140: 2 | D140: a | E140: 10 | F140: 0
A141: V | B141: P | C141: 2 | D141: b | E141: 22 | F141: 0
A142: V | B142: P | C142: 3 | D142: a | E142: 14 | F142: 2
A143: V | B143: P | C143: 3 | D143: b | E143: 18 | F143: 0
A144: V | B144: P | C144: 4 | D144: a | E144: 13 | F144: 0
A145: V | B145: P | C145: 4 | D145: b | E145: 8 | F145: 1
A146: V | B146: P | C146: 5 | D146: a | E146: 7 | F146: 3
A147: V | B147: P | C147: 5 | D147: b | E147: 3 | F147: 1
A148: V | B148: 6 | C148: 5 | D148: b | E148: 18 | F148: 8
A149: V | B149: 6 | C149: 5 | D149: a | E149: 27 | F149: 17
A150: V | B150: 6 | C150: 4 | D150: b | E150: 11 | F150: 7
A151: V | B151: 6 | C151: 4 | D151: a | E151: 7 | F151: 1
A152: V | B152: 6 | C152: 3 | D152: a | E152: 21 | F152: 5
A153: V | B153: 6 | C153: 2 | D153: b | E153: 25 | F153: 12
A154: V | B154: 6 | C154: 2 | D154: a | E154: 20 | F154: 17
A155: V | B155: 6 | C155: 1 | D155: a | E155: 8 | F155: 4
A156: V | B156: 6 | C156: 1 | D156: b | E156: 12 | F156: 7
A157: M | B157: 6 | C157: 6 | D157: b | E157: 21 | F157: 9
A158: M | B158: 6 | C158: 6 | D158: a | E158: 20 | F158: 11
A159: M | B159: 6 | C159: 5 | D159: a | E159: 21 | F159: 7
A160: M | B160: 6 | C160: 4 | D160: a | E160: 25 | F160: 11
A161: M | B161: 6 | C161: 3 | D161: b | E161: 23 | F161: 9
A162: M | B162: 6 | C162: 2 | D162: b | E162: 37 | F162: 10
A163: M | B163: 6 | C163: 2 | D163: a | E163: 13 | F163: 5
A164: M | B164: 6 | C164: 1 | D164: b | E164: 15 | F164: 11
A165: M | B165: 6 | C165: 1 | D165: a | E165: 27 | F165: 11
A166: M | B166: 6 | C166: 5 | D166: b | E166: 22 | F166: 7
A167: M | B167: 6 | C167: 5 | D167: a | E167: 21 | F167: 16
A168: M | B168: 6 | C168: 4 | D168: b | E168: 22 | F168: 11
A169: M | B169: 6 | C169: 4 | D169: a | E169: 16 | F169: 8
A170: M | B170: 6 | C170: 3 | D170: b | E170: 26 | F170: 9
A171: M | B171: 6 | C171: 3 | D171: a | E171: 17 | F171: 4
A172: M | B172: 6 | C172: 2 | D172: a | E172: 8 | F172: 4
A173: M | B173: 6 | C173: 1 | D173: b | E173: 11 | F173: 5
A174: M | B174: 6 | C174: 1 | D174: a | E174: 26 | F174: 14
A175: V | B175: 6 | C175: 5 | D175: b | E175: 17 | F175: 11
A176: V | B176: 6 | C176: 5 | D176: a | E176: 13 | F176: 9
A177: V | B177: 6 | C177: 4 | D177: a | E177: 10 | F177: 4
A178: V | B178: 6 | C178: 3 | D178: b | E178: 30 | F178: 18
A179: V | B179: 6 | C179: 3 | D179: a | E179: 20 | F179: 12
A180: V | B180: 6 | C180: 2 | D180: b | E180: 16 | F180: 9
A181: V | B181: 6 | C181: 2 | D181: a | E181: 6 | F181: 5
A182: V | B182: 6 | C182: 1 | D182: a | E182: 14 | F182: 6
A183: M | B183: 24 | C183: 1 | D183: a | E183: 3 | F183: 1
A184: M | B184: 24 | C184: 1 | D184: b | E184: 3 | F184: 2
A185: M | B185: 24 | C185: 2 | D185: a | E185: 5 | F185: 0
A186: M | B186: 24 | C186: 2 | D186: b | E186: 7 | F186: 3
A187: M | B187: 24 | C187: 3 | D187: a | E187: 4 | F187: 0
A188: M | B188: 24 | C188: 3 | D188: b | E188: 6 | F188: 4
A189: M | B189: 24 | C189: 4 | D189: a | E189: 4 | F189: 2
A190: M | B190: 24 | C190: 4 | D190: b | E190: 2 | F190: 2
A191: V | B191: 24 | C191: 1 | D191: a | E191: 9 | F191: 3
A192: V | B192: 24 | C192: 1 | D192: b | E192: 2 | F192: 1
A193: V | B193: 24 | C193: 2 | D193: a | E193: 8 | F193: 2
A194: V | B194: 24 | C194: 2 | D194: b | E194: 4 | F194: 1

Sheet FigS4b
A1: Condition | B1: Time | C1: Fly | D1: Spt | E1: Type | F1: SSC ratio
A2: V | B2: P | C2: 1 | D2: a | E2: 1 | F2: 0.5 | H2: Condition | I2: mated / virgin
A3: V | B3: P | C3: 1 | D3: a | E3: 2 | F3: 0 | H3: Time | I3: time of analysis at pulse or 0, 6, 24 or 48h post-mating
A4: V | B4: P | C4: 1 | D4: a | E4: 3 | F4: 0 | H4: Fly | I4: number of fly
A5: V | B5: P | C5: 1 | D5: a | E5: 4 | F5: 0.5 | H5: Spt | I5: spt pair a or b
A6: V | B6: P | C6: 1 | D6: a | E6: 5 | F6: 0 | H6: Type | I6: Subcellular localization pattern of endosomes
A7: V | B7: P | C7: 1 | D7: a | E7: 6 | F7: 0 | H7: SSC ratio | I7: Ratio of SSC per Spermatheca in the type of localization
A8: V | B8: P | C8: 1 | D8: a | E8: 7 | F8: 0
A9: V | B9: P | C9: 1 | D9: b | E9: 1 | F9: 0 | H9: Type of localization of endosomes in the subcellular regions
A10: V | B10: P | C10: 1 | D10: b | E10: 2 | F10: 0.1428571429 | H10: 1 | I10: Apical only
A11: V | B11: P | C11: 1 | D11: b | E11: 3 | F11: 0.2857142857 | H11: 3 | I11: Apical and medial only
A12: V | B12: P | C12: 1 | D12: b | E12: 4 | F12: 0 | H12: 2 | I12: Medial only
A13: V | B13: P | C13: 1 | D13: b | E13: 5 | F13: 0.2857142857 | H13: 5 | I13: Apical and basal only
A14: V | B14: P | C14: 1 | D14: b | E14: 6 | F14: 0 | H14: 6 | I14: Medial and basal only
A15: V | B15: P | C15: 1 | D15: b | E15: 7 | F15: 0.2857142857 | H15: 7 | I15: Apical, medial and basal only
A16: V | B16: P | C16: 2 | D16: a | E16: 1 | F16: 0.1111111111 | H16: 4 | I16: Basal only
A17: V | B17: P | C17: 2 | D17: a | E17: 2 | F17: 0
A18: V | B18: P | C18: 2 | D18: a | E18: 3 | F18: 0
A19: V | B19: P | C19: 2 | D19: a | E19: 4 | F19: 0.3333333333 | H19: Average of Count of score of endo. | I19: Column Labels
A20: V | B20: P | C20: 2 | D20: a | E20: 5 | F20: 0.4444444444 | I20: M | L20: V
A21: V | B21: P | C21: 2 | D21: a | E21: 6 | F21: 0.1111111111 | H21: Row Labels | I21: 0 | J21: 24 | K21: 6 | L21: 0 | M21: 24 | N21: 6 | O21: P
A22: V | B22: P | C22: 2 | D22: a | E22: 7 | F22: 0 | H22: 1 | I22: 0.0306122449 | J22: 0.1319444444 | K22: 0.04054308786 | L22: 0.03650793651 | M22: 0.09439393939 | N22: 0.1218948723 | O22: 0.05362616311
A23: V | B23: P | C23: 2 | D23: b | E23: 1 | F23: 0.2 | H23: 2 | I23: 0.09931972789 | J23: 0.005050505051 | K23: 0 | L23: 0.09493464052 | M23: 0 | N23: 0 | O23: 0.05035577449
A24: V | B24: P | C24: 2 | D24: b | E24: 2 | F24: 0 | H24: 3 | I24: 0.09013605442 | J24: 0.1230920314 | K24: 0.09706929975 | L24: 0.1386321195 | M24: 0.02285714286 | N24: 0.08624881905 | O24: 0.117430845
A25: V | B25: P | C25: 2 | D25: b | E25: 3 | F25: 0 | H25: 4 | I25: 0.2256235828 | J25: 0.4589526215 | K25: 0.317996339 | L25: 0.2405929038 | M25: 0.2931096681 | N25: 0.2767048437 | O25: 0.2236390047
A26: V | B26: P | C26: 2 | D26: b | E26: 4 | F26: 0.2 | H26: 5 | I26: 0.1183673469 | J26: 0.1124118166 | K26: 0.1490493138 | L26: 0.09484126984 | M26: 0.09733044733 | N26: 0.2524951105 | O26: 0.2138846785
A27: V | B27: P | C27: 2 | D27: b | E27: 5 | F27: 0.2 | H27: 6 | I27: 0.3096371882 | J27: 0.1237253487 | K27: 0.1494289936 | L27: 0.2305322129 | M27: 0.3311183261 | N27: 0.08021743214 | O27: 0.180289251
A28: V | B28: P | C28: 2 | D28: b | E28: 6 | F28: 0.2 | H28: 7 | I28: 0.1263038549 | J28: 0.04482323232 | K28: 0.245912966 | L28: 0.1639589169 | M28: 0.1611904762 | N28: 0.1824389223 | O28: 0.1607742832
A29: V | B29: P | C29: 2 | D29: b | E29: 7 | F29: 0.2
A30: V | B30: P | C30: 3 | D30: a | E30: 1 | F30: 0
A31: V | B31: P | C31: 3 | D31: a | E31: 2 | F31: 0 | H31: Heatmap S4b
A32: V | B32: P | C32: 3 | D32: a | E32: 3 | F32: 0.3333333333 | H32: Percentage | K32: V | O32: M
A33: V | B33: P | C33: 3 | D33: a | E33: 4 | F33: 0.1666666667 | H33: Row Labels | I33: P | K33: 0 | L33: 6 | M33: 24 | O33: 0 | P33: 6 | Q33: 24 | T33: 0
A34: V | B34: P | C34: 3 | D34: a | E34: 5 | F34: 0.1666666667 | H34: 1 | I34: 5.4% | K34: 3.7% | L34: 12.2% | M34: 9.4% | O34: 3.1% | P34: 4.1% | Q34: 13.2% | T34: 5
A35: V | B35: P | C35: 3 | D35: a | E35: 6 | F35: 0.1666666667 | H35: 3 | I35: 11.7% | K35: 13.9% | L35: 8.6% | M35: 2.3% | O35: 9.0% | P35: 9.7% | Q35: 12.3% | T35: 10
A36: V | B36: P | C36: 3 | D36: a | E36: 7 | F36: 0.1666666667 | H36: 2 | I36: 5.0% | K36: 9.5% | L36: 0.0% | M36: 0.0% | O36: 9.9% | P36: 0.0% | Q36: 0.5% | T36: 15
A37: M | B37: 6 | C37: 1 | D37: a | E37: 1 | F37: 0 | H37: 5 | I37: 21.4% | K37: 9.5% | L37: 25.2% | M37: 9.7% | O37: 11.8% | P37: 14.9% | Q37: 11.2% | T37: 20
A38: M | B38: 6 | C38: 1 | D38: a | E38: 2 | F38: 0 | H38: 6 | I38: 18.0% | K38: 23.1% | L38: 8.0% | M38: 33.1% | O38: 31.0% | P38: 14.9% | Q38: 12.4% | T38: 25
A39: M | B39: 6 | C39: 1 | D39: a | E39: 3 | F39: 0.3333333333 | H39: 7 | I39: 16.1% | K39: 16.4% | L39: 18.2% | M39: 16.1% | O39: 12.6% | P39: 24.6% | Q39: 4.5% | T39: 30
A40: M | B40: 6 | C40: 1 | D40: a | E40: 4 | F40: 0.1666666667 | H40: 4 | I40: 22.4% | K40: 24.1% | L40: 27.7% | M40: 29.3% | O40: 22.6% | P40: 31.8% | Q40: 45.9% | T40: 35
A41: M | B41: 6 | C41: 1 | D41: a | E41: 5 | F41: 0.1666666667 | T41: 40
A42: M | B42: 6 | C42: 1 | D42: a | E42: 6 | F42: 0.3333333333 | T42: 45
A43: M | B43: 6 | C43: 1 | D43: a | E43: 7 | F43: 0 | T43: 50
A44: M | B44: 6 | C44: 1 | D44: b | E44: 1 | F44: 0
A45: M | B45: 6 | C45: 1 | D45: b | E45: 2 | F45: 0
A46: M | B46: 6 | C46: 1 | D46: b | E46: 3 | F46: 0
A47: M | B47: 6 | C47: 1 | D47: b | E47: 4 | F47: 1
A48: M | B48: 6 | C48: 1 | D48: b | E48: 5 | F48: 0
A49: M | B49: 6 | C49: 1 | D49: b | E49: 6 | F49: 0
A50: M | B50: 6 | C50: 1 | D50: b | E50: 7 | F50: 0
A51: M | B51: 6 | C51: 2 | D51: a | E51: 1 | F51: 0
A52: M | B52: 6 | C52: 2 | D52: a | E52: 2 | F52: 0
A53: M | B53: 6 | C53: 2 | D53: a | E53: 3 | F53: 0.2
A54: M | B54: 6 | C54: 2 | D54: a | E54: 4 | F54: 0.4
A55: M | B55: 6 | C55: 2 | D55: a | E55: 5 | F55: 0.2
A56: M | B56: 6 | C56: 2 | D56: a | E56: 6 | F56: 0.2
A57: M | B57: 6 | C57: 2 | D57: a | E57: 7 | F57: 0
A58: M | B58: 6 | C58: 3 | D58: a | E58: 1 | F58: 0
A59: M | B59: 6 | C59: 3 | D59: a | E59: 2 | F59: 0
A60: M | B60: 6 | C60: 3 | D60: a | E60: 3 | F60: 0
A61: M | B61: 6 | C61: 3 | D61: a | E61: 4 | F61: 0.5
A62: M | B62: 6 | C62: 3 | D62: a | E62: 5 | F62: 0
A63: M | B63: 6 | C63: 3 | D63: a | E63: 6 | F63: 0
A64: M | B64: 6 | C64: 3 | D64: a | E64: 7 | F64: 0.5
A65: V | B65: 6 | C65: 1 | D65: a | E65: 1 | F65: 0.2
A66: V | B66: 6 | C66: 1 | D66: a | E66: 2 | F66: 0
A67: V | B67: 6 | C67: 1 | D67: a | E67: 3 | F67: 0.4
A68: V | B68: 6 | C68: 1 | D68: a | E68: 4 | F68: 0
A69: V | B69: 6 | C69: 1 | D69: a | E69: 5 | F69: 0.4
A70: V | B70: 6 | C70: 1 | D70: a | E70: 6 | F70: 0
A71: V | B71: 6 | C71: 1 | D71: a | E71: 7 | F71: 0
A72: V | B72: 6 | C72: 2 | D72: a | E72: 1 | F72: 0
A73: V | B73: 6 | C73: 2 | D73: a | E73: 2 | F73: 0
A74: V | B74: 6 | C74: 2 | D74: a | E74: 3 | F74: 0.2
A75: V | B75: 6 | C75: 2 | D75: a | E75: 4 | F75: 0.2
A76: V | B76: 6 | C76: 2 | D76: a | E76: 5 | F76: 0.4
A77: V | B77: 6 | C77: 2 | D77: a | E77: 6 | F77: 0.2
A78: V | B78: 6 | C78: 2 | D78: a | E78: 7 | F78: 0
A79: V | B79: 6 | C79: 2 | D79: b | E79: 1 | F79: 0.5
A80: V | B80: 6 | C80: 2 | D80: b | E80: 2 | F80: 0
A81: V | B81: 6 | C81: 2 | D81: b | E81: 3 | F81: 0
A82: V | B82: 6 | C82: 2 | D82: b | E82: 4 | F82: 0.5
A83: V | B83: 6 | C83: 2 | D83: b | E83: 5 | F83: 0
A84: V | B84: 6 | C84: 2 | D84: b | E84: 6 | F84: 0
A85: V | B85: 6 | C85: 2 | D85: b | E85: 7 | F85: 0
A86: V | B86: P | C86: 1 | D86: a | E86: 1 | F86: 0
A87: V | B87: P | C87: 1 | D87: a | E87: 2 | F87: 0
A88: V | B88: P | C88: 1 | D88: a | E88: 3 | F88: 0
A89: V | B89: P | C89: 1 | D89: a | E89: 4 | F89: 0.625
A90: V | B90: P | C90: 1 | D90: a | E90: 5 | F90: 0.125
A91: V | B91: P | C91: 1 | D91: a | E91: 6 | F91: 0
A92: V | B92: P | C92: 1 | D92: a | E92: 7 | F92: 0.25
A93: V | B93: P | C93: 1 | D93: b | E93: 1 | F93: 0
A94: V | B94: P | C94: 1 | D94: b | E94: 2 | F94: 0
A95: V | B95: P | C95: 1 | D95: b | E95: 3 | F95: 0.25
A96: V | B96: P | C96: 1 | D96: b | E96: 4 | F96: 0.25
A97: V | B97: P | C97: 1 | D97: b | E97: 5 | F97: 0.25
A98: V | B98: P | C98: 1 | D98: b | E98: 6 | F98: 0.25
A99: V | B99: P | C99: 1 | D99: b | E99: 7 | F99: 0
A100: V | B100: P | C100: 2 | D100: a | E100: 1 | F100: 0
A101: V | B101: P | C101: 2 | D101: a | E101: 2 | F101: 0.25
A102: V | B102: P | C102: 2 | D102: a | E102: 3 | F102: 0.5
A103: V | B103: P | C103: 2 | D103: a | E103: 4 | F103: 0
A104: V | B104: P | C104: 2 | D104: a | E104: 5 | F104: 0
A105: V | B105: P | C105: 2 | D105: a | E105: 6 | F105: 0.25
A106: V | B106: P | C106: 2 | D106: a | E106: 7 | F106: 0
A107: V | B107: P | C107: 2 | D107: b | E107: 1 | F107: 0
A108: V | B108: P | C108: 2 | D108: b | E108: 2 | F108: 0
A109: V | B109: P | C109: 2 | D109: b | E109: 3 | F109: 0
A110: V | B110: P | C110: 2 | D110: b | E110: 4 | F110: 0.5
A111: V | B111: P | C111: 2 | D111: b | E111: 5 | F111: 0.5
A112: V | B112: P | C112: 2 | D112: b | E112: 6 | F112: 0
A113: V | B113: P | C113: 2 | D113: b | E113: 7 | F113: 0
A114: V | B114: P | C114: 3 | D114: a | E114: 1 | F114: 0
A115: V | B115: P | C115: 3 | D115: a | E115: 2 | F115: 0
A116: V | B116: P | C116: 3 | D116: a | E116: 3 | F116: 0
A117: V | B117: P | C117: 3 | D117: a | E117: 4 | F117: 0.2857142857
A118: V | B118: P | C118: 3 | D118: a | E118: 5 | F118: 0.4285714286
A119: V | B119: P | C119: 3 | D119: a | E119: 6 | F119: 0.1428571429
A120: V | B120: P | C120: 3 | D120: a | E120: 7 | F120: 0.1428571429
A121: V | B121: P | C121: 3 | D121: b | E121: 1 | F121: 0.1428571429
A122: V | B122: P | C122: 3 | D122: b | E122: 2 | F122: 0.1428571429
A123: V | B123: P | C123: 3 | D123: b | E123: 3 | F123: 0
A124: V | B124: P | C124: 3 | D124: b | E124: 4 | F124: 0.1428571429
A125: V | B125: P | C125: 3 | D125: b | E125: 5 | F125: 0.1428571429
A126: V | B126: P | C126: 3 | D126: b | E126: 6 | F126: 0
A127: V | B127: P | C127: 3 | D127: b | E127: 7 | F127: 0.4285714286
A128: V | B128: P | C128: 4 | D128: a | E128: 1 | F128: 0
A129: V | B129: P | C129: 4 | D129: a | E129: 2 | F129: 0
A130: V | B130: P | C130: 4 | D130: a | E130: 3 | F130: 0
A131: V | B131: P | C131: 4 | D131: a | E131: 4 | F131: 0.2857142857
A132: V | B132: P | C132: 4 | D132: a | E132: 5 | F132: 0
A133: V | B133: P | C133: 4 | D133: a | E133: 6 | F133: 0.4285714286
A134: V | B134: P | C134: 4 | D134: a | E134: 7 | F134: 0.2857142857
A135: V | B135: P | C135: 4 | D135: b | E135: 1 | F135: 0
A136: V | B136: P | C136: 4 | D136: b | E136: 2 | F136: 0
A137: V | B137: P | C137: 4 | D137: b | E137: 3 | F137: 0
A138: V | B138: P | C138: 4 | D138: b | E138: 4 | F138: 0.4
A139: V | B139: P | C139: 4 | D139: b | E139: 5 | F139: 0
A140: V | B140: P | C140: 4 | D140: b | E140: 6 | F140: 0.6
A141: V | B141: P | C141: 4 | D141: b | E141: 7 | F141: 0
A142: M | B142: 6 | C142: 1 | D142: a | E142: 1 | F142: 0.1
A143: M | B143: 6 | C143: 1 | D143: a | E143: 2 | F143: 0
A144: M | B144: 6 | C144: 1 | D144: a | E144: 3 | F144: 0.1
A145: M | B145: 6 | C145: 1 | D145: a | E145: 4 | F145: 0.1
A146: M | B146: 6 | C146: 1 | D146: a | E146: 5 | F146: 0.1
A147: M | B147: 6 | C147: 1 | D147: a | E147: 6 | F147: 0
A148: M | B148: 6 | C148: 1 | D148: a | E148: 7 | F148: 0.6
A149: M | B149: 6 | C149: 1 | D149: b | E149: 1 | F149: 0.08333333333
A150: M | B150: 6 | C150: 1 | D150: b | E150: 2 | F150: 0
A151: M | B151: 6 | C151: 1 | D151: b | E151: 3 | F151: 0
A152: M | B152: 6 | C152: 1 | D152: b | E152: 4 | F152: 0.3333333333
A153: M | B153: 6 | C153: 1 | D153: b | E153: 5 | F153: 0.25
A154: M | B154: 6 | C154: 1 | D154: b | E154: 6 | F154: 0.08333333333
A155: M | B155: 6 | C155: 1 | D155: b | E155: 7 | F155: 0.25
A156: M | B156: 6 | C156: 2 | D156: a | E156: 1 | F156: 0
A157: M | B157: 6 | C157: 2 | D157: a | E157: 2 | F157: 0
A158: M | B158: 6 | C158: 2 | D158: a | E158: 3 | F158: 0
A159: M | B159: 6 | C159: 2 | D159: a | E159: 4 | F159: 0.2
A160: M | B160: 6 | C160: 2 | D160: a | E160: 5 | F160: 0.2
A161: M | B161: 6 | C161: 2 | D161: a | E161: 6 | F161: 0.2
A162: M | B162: 6 | C162: 2 | D162: a | E162: 7 | F162: 0.4
A163: M | B163: 6 | C163: 2 | D163: b | E163: 1 | F163: 0.2307692308
A164: M | B164: 6 | C164: 2 | D164: b | E164: 2 | F164: 0
A165: M | B165: 6 | C165: 2 | D165: b | E165: 3 | F165: 0.07692307692
A166: M | B166: 6 | C166: 2 | D166: b | E166: 4 | F166: 0.3846153846
A167: M | B167: 6 | C167: 2 | D167: b | E167: 5 | F167: 0.1538461538
A168: M | B168: 6 | C168: 2 | D168: b | E168: 6 | F168: 0.07692307692
A169: M | B169: 6 | C169: 2 | D169: b | E169: 7 | F169: 0.07692307692
A170: M | B170: 6 | C170: 3 | D170: a | E170: 1 | F170: 0
A171: M | B171: 6 | C171: 3 | D171: a | E171: 2 | F171: 0
A172: M | B172: 6 | C172: 3 | D172: a | E172: 3 | F172: 0
A173: M | B173: 6 | C173: 3 | D173: a | E173: 4 | F173: 0.6666666667
A174: M | B174: 6 | C174: 3 | D174: a | E174: 5 | F174: 0
A175: M | B175: 6 | C175: 3 | D175: a | E175: 6 | F175: 0.3333333333
A176: M | B176: 6 | C176: 3 | D176: a | E176: 7 | F176: 0
A177: M | B177: 6 | C177: 3 | D177: b | E177: 1 | F177: 0
A178: M | B178: 6 | C178: 3 | D178: b | E178: 2 | F178: 0
A179: M | B179: 6 | C179: 3 | D179: b | E179: 3 | F179: 0
A180: M | B180: 6 | C180: 3 | D180: b | E180: 4 | F180: 0.5
A181: M | B181: 6 | C181: 3 | D181: b | E181: 5 | F181: 0.25
A182: M | B182: 6 | C182: 3 | D182: b | E182: 6 | F182: 0.25
A183: M | B183: 6 | C183: 3 | D183: b | E183: 7 | F183: 0
A184: V | B184: 6 | C184: 1 | D184: a | E184: 1 | F184: 0
A185: V | B185: 6 | C185: 1 | D185: a | E185: 2 | F185: 0
A186: V | B186: 6 | C186: 1 | D186: a | E186: 3 | F186: 0
A187: V | B187: 6 | C187: 1 | D187: a | E187: 4 | F187: 0.75
A188: V | B188: 6 | C188: 1 | D188: a | E188: 5 | F188: 0
A189: V | B189: 6 | C189: 1 | D189: a | E189: 6 | F189: 0
A190: V | B190: 6 | C190: 1 | D190: a | E190: 7 | F190: 0.25
A191: V | B191: 6 | C191: 1 | D191: b | E191: 1 | F191: 0
A192: V | B192: 6 | C192: 1 | D192: b | E192: 2 | F192: 0
A193: V | B193: 6 | C193: 1 | D193: b | E193: 3 | F193: 0.5
A194: V | B194: 6 | C194: 1 | D194: b | E194: 4 | F194: 0
A195: V | B195: 6 | C195: 1 | D195: b | E195: 5 | F195: 0.5
A196: V | B196: 6 | C196: 1 | D196: b | E196: 6 | F196: 0
A197: V | B197: 6 | C197: 1 | D197: b | E197: 7 | F197: 0
A198: V | B198: 6 | C198: 2 | D198: a | E198: 1 | F198: 0
A199: V | B199: 6 | C199: 2 | D199: a | E199: 2 | F199: 0
A200: V | B200: 6 | C200: 2 | D200: a | E200: 3 | F200: 0
... 879 more rows

Sheet Fig4e
A1: Time | B1: Condition | C1: SSC | D1: Spt | E1: Region | F1: Count | G1: % SSC | I1: Figure 4e
A2: P | B2: V | C2: 1 | D2: 8 | E2: A | F2: 3 | G2: 37.5 | I2: Time | J2: time of analysis at pulse or 0, 6, 24 or 48h post-mating
A3: P | B3: V | C3: 1 | D3: 8 | E3: M | F3: 2 | G3: 25.0 | I3: Condition | J3: mated / virgin
A4: P | B4: V | C4: 1 | D4: 8 | E4: B | F4: 8 | G4: 100.0 | I4: SSC | J4: Number of SSC
A5: P | B5: V | C5: 2 | D5: 4 | E5: A | F5: 2 | G5: 50.0 | I5: Spt | J5: number of spermatheca
A6: P | B6: V | C6: 2 | D6: 4 | E6: M | F6: 2 | G6: 50.0 | I6: Region | J6: region within the SSC: apical (A), medial (M) or basal (B)
A7: P | B7: V | C7: 2 | D7: 4 | E7: B | F7: 3 | G7: 75.0 | I7: Count | J7: number of subcellular regions with endosomes
A8: P | B8: V | C8: 3 | D8: 4 | E8: A | F8: 2 | G8: 50.0
A9: P | B9: V | C9: 3 | D9: 4 | E9: M | F9: 4 | G9: 100.0 | I9: Average of % Cell A | J9: Column Labels
A10: P | B10: V | C10: 3 | D10: 4 | E10: B | F10: 1 | G10: 25.0 | J10: M | M10: V
A11: P | B11: V | C11: 4 | D11: 2 | E11: A | F11: 1 | G11: 50.0 | I11: Row Labels | J11: 0 | K11: 24 | L11: 6 | M11: 0 | N11: 24 | O11: 6 | P11: P
A12: P | B12: V | C12: 4 | D12: 2 | E12: M | F12: 0 | G12: 0.0 | I12: A | J12: 38.37535014 | K12: 31.93019481 | L12: 53.25746674 | M12: 45.58531746 | N12: 41.70634921 | O12: 64.1657976 | P12: 54.57159699
A13: P | B13: V | C13: 4 | D13: 2 | E13: B | F13: 2 | G13: 100.0 | I13: B | J13: 78.45238095 | K13: 76.52651515 | L13: 86.23876124 | M13: 71.30456349 | N13: 88.80952381 | O13: 79.68638943 | P13: 77.85872174
A14: P | B14: V | C14: 5 | D14: 7 | E14: A | F14: 4 | G14: 57.1 | I14: M | J14: 56.61764706 | K14: 28.78805916 | L14: 49.24112594 | M14: 64.12698413 | N14: 53.16468254 | O14: 34.61947138 | P14: 50.88501537
A15: P | B15: V | C15: 5 | D15: 7 | E15: M | F15: 2 | G15: 28.6
A16: P | B16: V | C16: 5 | D16: 7 | E16: B | F16: 7 | G16: 100.0 | I16: Percentage of events in each area
A17: P | B17: V | C17: 6 | D17: 7 | E17: A | F17: 5 | G17: 71.4
A18: P | B18: V | C18: 6 | D18: 7 | E18: M | F18: 4 | G18: 57.1 | L18: V | P18: M
A19: P | B19: V | C19: 6 | D19: 7 | E19: B | F19: 5 | G19: 71.4 | J19: P | L19: 0 | M19: 6 | N19: 24 | P19: 0 | Q19: 6 | R19: 24
A20: P | B20: V | C20: 7 | D20: 7 | E20: A | F20: 2 | G20: 28.6 | I20: Apical | J20: 54.6 | L20: 45.6 | M20: 64.2 | N20: 41.7 | P20: 38.4 | Q20: 53.3 | R20: 31.9 | T20: 27 | U20: 27
A21: P | B21: V | C21: 7 | D21: 7 | E21: M | F21: 5 | G21: 71.4 | I21: Medial | J21: 50.9 | L21: 64.1 | M21: 34.6 | N21: 53.2 | P21: 56.6 | Q21: 49.2 | R21: 28.8 | T21: 36 | U21: 36
A22: P | B22: V | C22: 7 | D22: 7 | E22: B | F22: 7 | G22: 100.0 | I22: Basal | J22: 77.9 | L22: 71.3 | M22: 79.7 | N22: 88.8 | P22: 78.5 | Q22: 86.2 | R22: 76.5 | T22: 45 | U22: 45
A23: P | B23: V | C23: 8 | D23: 5 | E23: A | F23: 0 | G23: 0.0 | T23: 54 | U23: 54
A24: P | B24: V | C24: 8 | D24: 5 | E24: M | F24: 3 | G24: 60.0 | T24: 63 | U24: 63
A25: P | B25: V | C25: 8 | D25: 5 | E25: B | F25: 5 | G25: 100.0 | T25: 72 | U25: 72
A26: P | B26: V | C26: 9 | D26: 3 | E26: A | F26: 3 | G26: 100.0 | T26: 81 | U26: 81
A27: P | B27: V | C27: 9 | D27: 3 | E27: M | F27: 1 | G27: 33.3 | T27: 90 | U27: 90
A28: P | B28: V | C28: 9 | D28: 3 | E28: B | F28: 3 | G28: 100.0
A29: P | B29: V | C29: 10 | D29: 6 | E29: A | F29: 2 | G29: 33.3
A30: P | B30: V | C30: 10 | D30: 6 | E30: M | F30: 5 | G30: 83.3
A31: P | B31: V | C31: 10 | D31: 6 | E31: B | F31: 5 | G31: 83.3
A32: P | B32: V | C32: 11 | D32: 13 | E32: A | F32: 7 | G32: 53.8
A33: P | B33: V | C33: 11 | D33: 13 | E33: M | F33: 8 | G33: 61.5
A34: P | B34: V | C34: 11 | D34: 13 | E34: B | F34: 12 | G34: 92.3
A35: P | B35: V | C35: 12 | D35: 2 | E35: A | F35: 1 | G35: 50.0
A36: P | B36: V | C36: 12 | D36: 2 | E36: M | F36: 1 | G36: 50.0
A37: P | B37: V | C37: 12 | D37: 2 | E37: B | F37: 1 | G37: 50.0
A38: P | B38: V | C38: 13 | D38: 8 | E38: A | F38: 3 | G38: 37.5
A39: P | B39: V | C39: 13 | D39: 8 | E39: M | F39: 6 | G39: 75.0
A40: P | B40: V | C40: 13 | D40: 8 | E40: B | F40: 7 | G40: 87.5
A41: P | B41: V | C41: 14 | D41: 4 | E41: A | F41: 2 | G41: 50.0
A42: P | B42: V | C42: 14 | D42: 4 | E42: M | F42: 0 | G42: 0.0
A43: P | B43: V | C43: 14 | D43: 4 | E43: B | F43: 2 | G43: 50.0
A44: P | B44: V | C44: 15 | D44: 7 | E44: A | F44: 6 | G44: 85.7
A45: P | B45: V | C45: 15 | D45: 7 | E45: M | F45: 5 | G45: 71.4
A46: P | B46: V | C46: 15 | D46: 7 | E46: B | F46: 4 | G46: 57.1
A47: P | B47: V | C47: 16 | D47: 9 | E47: A | F47: 5 | G47: 55.6
A48: P | B48: V | C48: 16 | D48: 9 | E48: M | F48: 1 | G48: 11.1
A49: P | B49: V | C49: 16 | D49: 9 | E49: B | F49: 8 | G49: 88.9
A50: P | B50: V | C50: 17 | D50: 5 | E50: A | F50: 3 | G50: 60.0
A51: P | B51: V | C51: 17 | D51: 5 | E51: M | F51: 2 | G51: 40.0
A52: P | B52: V | C52: 17 | D52: 5 | E52: B | F52: 4 | G52: 80.0
A53: P | B53: V | C53: 18 | D53: 6 | E53: A | F53: 4 | G53: 66.7
A54: P | B54: V | C54: 18 | D54: 6 | E54: M | F54: 4 | G54: 66.7
A55: P | B55: V | C55: 18 | D55: 6 | E55: B | F55: 4 | G55: 66.7
A56: P | B56: V | C56: 19 | D56: 4 | E56: A | F56: 2 | G56: 50.0
A57: P | B57: V | C57: 19 | D57: 4 | E57: M | F57: 2 | G57: 50.0
A58: P | B58: V | C58: 19 | D58: 4 | E58: B | F58: 3 | G58: 75.0
A59: P | B59: V | C59: 20 | D59: 3 | E59: A | F59: 2 | G59: 66.7
A60: P | B60: V | C60: 20 | D60: 3 | E60: M | F60: 0 | G60: 0.0
A61: P | B61: V | C61: 20 | D61: 3 | E61: B | F61: 3 | G61: 100.0
A62: P | B62: V | C62: 21 | D62: 3 | E62: A | F62: 3 | G62: 100.0
A63: P | B63: V | C63: 21 | D63: 3 | E63: M | F63: 1 | G63: 33.3
A64: P | B64: V | C64: 21 | D64: 3 | E64: B | F64: 3 | G64: 100.0
A65: P | B65: V | C65: 22 | D65: 6 | E65: A | F65: 2 | G65: 33.3
A66: P | B66: V | C66: 22 | D66: 6 | E66: M | F66: 5 | G66: 83.3
A67: P | B67: V | C67: 22 | D67: 6 | E67: B | F67: 4 | G67: 66.7
A68: P | B68: V | C68: 23 | D68: 7 | E68: A | F68: 3 | G68: 42.9
A69: P | B69: V | C69: 23 | D69: 7 | E69: M | F69: 5 | G69: 71.4
A70: P | B70: V | C70: 23 | D70: 7 | E70: B | F70: 5 | G70: 71.4
A71: P | B71: V | C71: 24 | D71: 4 | E71: A | F71: 3 | G71: 75.0
A72: P | B72: V | C72: 24 | D72: 4 | E72: M | F72: 4 | G72: 100.0
A73: P | B73: V | C73: 24 | D73: 4 | E73: B | F73: 3 | G73: 75.0
A74: P | B74: V | C74: 25 | D74: 9 | E74: A | F74: 3 | G74: 33.3
A75: P | B75: V | C75: 25 | D75: 9 | E75: M | F75: 6 | G75: 66.7
A76: P | B76: V | C76: 25 | D76: 9 | E76: B | F76: 8 | G76: 88.9
A77: P | B77: V | C77: 26 | D77: 9 | E77: A | F77: 8 | G77: 88.9
A78: P | B78: V | C78: 26 | D78: 9 | E78: M | F78: 4 | G78: 44.4
A79: P | B79: V | C79: 26 | D79: 9 | E79: B | F79: 8 | G79: 88.9
A80: P | B80: V | C80: 27 | D80: 3 | E80: A | F80: 2 | G80: 66.7
A81: P | B81: V | C81: 27 | D81: 3 | E81: M | F81: 1 | G81: 33.3
A82: P | B82: V | C82: 27 | D82: 3 | E82: B | F82: 1 | G82: 33.3
A83: P | B83: V | C83: 28 | D83: 5 | E83: A | F83: 3 | G83: 60.0
A84: P | B84: V | C84: 28 | D84: 5 | E84: M | F84: 4 | G84: 80.0
A85: P | B85: V | C85: 28 | D85: 5 | E85: B | F85: 3 | G85: 60.0
A86: P | B86: V | C86: 29 | D86: 7 | E86: A | F86: 2 | G86: 28.6
A87: P | B87: V | C87: 29 | D87: 7 | E87: M | F87: 2 | G87: 28.6
A88: P | B88: V | C88: 29 | D88: 7 | E88: B | F88: 5 | G88: 71.4
A89: 0 | B89: V | C89: 30 | D89: 9 | E89: A | F89: 3 | G89: 33.3
A90: 0 | B90: V | C90: 30 | D90: 9 | E90: M | F90: 4 | G90: 44.4
A91: 0 | B91: V | C91: 30 | D91: 9 | E91: B | F91: 7 | G91: 77.8
A92: 0 | B92: V | C92: 31 | D92: 4 | E92: A | F92: 2 | G92: 50.0
A93: 0 | B93: V | C93: 31 | D93: 4 | E93: M | F93: 3 | G93: 75.0
A94: 0 | B94: V | C94: 31 | D94: 4 | E94: B | F94: 4 | G94: 100.0
A95: 0 | B95: V | C95: 32 | D95: 3 | E95: A | F95: 0 | G95: 0.0
A96: 0 | B96: V | C96: 32 | D96: 3 | E96: M | F96: 2 | G96: 66.7
A97: 0 | B97: V | C97: 32 | D97: 3 | E97: B | F97: 3 | G97: 100.0
A98: 0 | B98: V | C98: 33 | D98: 5 | E98: A | F98: 2 | G98: 40.0
A99: 0 | B99: V | C99: 33 | D99: 5 | E99: M | F99: 3 | G99: 60.0
A100: 0 | B100: V | C100: 33 | D100: 5 | E100: B | F100: 3 | G100: 60.0
A101: 0 | B101: V | C101: 34 | D101: 6 | E101: A | F101: 1 | G101: 16.7
A102: 0 | B102: V | C102: 34 | D102: 6 | E102: M | F102: 2 | G102: 33.3
A103: 0 | B103: V | C103: 34 | D103: 6 | E103: B | F103: 6 | G103: 100.0
A104: 0 | B104: V | C104: 35 | D104: 5 | E104: A | F104: 2 | G104: 40.0
A105: 0 | B105: V | C105: 35 | D105: 5 | E105: M | F105: 5 | G105: 100.0
A106: 0 | B106: V | C106: 35 | D106: 5 | E106: B | F106: 2 | G106: 40.0
A107: 0 | B107: V | C107: 36 | D107: 3 | E107: A | F107: 0 | G107: 0.0
A108: 0 | B108: V | C108: 36 | D108: 3 | E108: M | F108: 1 | G108: 33.3
A109: 0 | B109: V | C109: 36 | D109: 3 | E109: B | F109: 3 | G109: 100.0
A110: 0 | B110: M | C110: 37 | D110: 10 | E110: A | F110: 1 | G110: 10.0
A111: 0 | B111: M | C111: 37 | D111: 10 | E111: M | F111: 10 | G111: 100.0
A112: 0 | B112: M | C112: 37 | D112: 10 | E112: B | F112: 7 | G112: 70.0
A113: 0 | B113: M | C113: 38 | D113: 5 | E113: A | F113: 1 | G113: 20.0
A114: 0 | B114: M | C114: 38 | D114: 5 | E114: M | F114: 3 | G114: 60.0
A115: 0 | B115: M | C115: 38 | D115: 5 | E115: B | F115: 5 | G115: 100.0
A116: 0 | B116: M | C116: 39 | D116: 5 | E116: A | F116: 1 | G116: 20.0
A117: 0 | B117: M | C117: 39 | D117: 5 | E117: M | F117: 2 | G117: 40.0
A118: 0 | B118: M | C118: 39 | D118: 5 | E118: B | F118: 5 | G118: 100.0
A119: 0 | B119: M | C119: 40 | D119: 4 | E119: A | F119: 0 | G119: 0.0
A120: 0 | B120: M | C120: 40 | D120: 4 | E120: M | F120: 4 | G120: 100.0
A121: 0 | B121: M | C121: 40 | D121: 4 | E121: B | F121: 4 | G121: 100.0
A122: 0 | B122: M | C122: 41 | D122: 8 | E122: A | F122: 4 | G122: 50.0
A123: 0 | B123: M | C123: 41 | D123: 8 | E123: M | F123: 5 | G123: 62.5
A124: 0 | B124: M | C124: 41 | D124: 8 | E124: B | F124: 7 | G124: 87.5
A125: 0 | B125: M | C125: 42 | D125: 6 | E125: A | F125: 2 | G125: 33.3
A126: 0 | B126: M | C126: 42 | D126: 6 | E126: M | F126: 6 | G126: 100.0
A127: 0 | B127: M | C127: 42 | D127: 6 | E127: B | F127: 3 | G127: 50.0
A128: 0 | B128: M | C128: 43 | D128: 7 | E128: A | F128: 4 | G128: 57.1
A129: 0 | B129: M | C129: 43 | D129: 7 | E129: M | F129: 4 | G129: 57.1
A130: 0 | B130: M | C130: 43 | D130: 7 | E130: B | F130: 5 | G130: 71.4
A131: 0 | B131: M | C131: 44 | D131: 2 | E131: A | F131: 0 | G131: 0.0
A132: 0 | B132: M | C132: 44 | D132: 2 | E132: M | F132: 1 | G132: 50.0
A133: 0 | B133: M | C133: 44 | D133: 2 | E133: B | F133: 1 | G133: 50.0
A134: 0 | B134: M | C134: 45 | D134: 3 | E134: A | F134: 2 | G134: 66.7
A135: 0 | B135: M | C135: 45 | D135: 3 | E135: M | F135: 1 | G135: 33.3
A136: 0 | B136: M | C136: 45 | D136: 3 | E136: B | F136: 2 | G136: 66.7
A137: 0 | B137: M | C137: 46 | D137: 6 | E137: A | F137: 1 | G137: 16.7
A138: 0 | B138: M | C138: 46 | D138: 6 | E138: M | F138: 3 | G138: 50.0
A139: 0 | B139: M | C139: 46 | D139: 6 | E139: B | F139: 4 | G139: 66.7
A140: 0 | B140: M | C140: 47 | D140: 7 | E140: A | F140: 2 | G140: 28.6
A141: 0 | B141: M | C141: 47 | D141: 7 | E141: M | F141: 3 | G141: 42.9
A142: 0 | B142: M | C142: 47 | D142: 7 | E142: B | F142: 5 | G142: 71.4
A143: 0 | B143: M | C143: 48 | D143: 6 | E143: A | F143: 3 | G143: 50.0
A144: 0 | B144: M | C144: 48 | D144: 6 | E144: M | F144: 2 | G144: 33.3
A145: 0 | B145: M | C145: 48 | D145: 6 | E145: B | F145: 5 | G145: 83.3
A146: 0 | B146: V | C146: 49 | D146: 6 | E146: A | F146: 4 | G146: 66.7
A147: 0 | B147: V | C147: 49 | D147: 6 | E147: M | F147: 3 | G147: 50.0
A148: 0 | B148: V | C148: 49 | D148: 6 | E148: B | F148: 3 | G148: 50.0
A149: 0 | B149: V | C149: 50 | D149: 5 | E149: A | F149: 1 | G149: 20.0
A150: 0 | B150: V | C150: 50 | D150: 5 | E150: M | F150: 3 | G150: 60.0
A151: 0 | B151: V | C151: 50 | D151: 5 | E151: B | F151: 4 | G151: 80.0
A152: 0 | B152: V | C152: 51 | D152: 2 | E152: A | F152: 2 | G152: 100.0
A153: 0 | B153: V | C153: 51 | D153: 2 | E153: M | F153: 1 | G153: 50.0
A154: 0 | B154: V | C154: 51 | D154: 2 | E154: B | F154: 2 | G154: 100.0
A155: 0 | B155: V | C155: 52 | D155: 9 | E155: A | F155: 5 | G155: 55.6
A156: 0 | B156: V | C156: 52 | D156: 9 | E156: M | F156: 7 | G156: 77.8
A157: 0 | B157: V | C157: 52 | D157: 9 | E157: B | F157: 6 | G157: 66.7
A158: 0 | B158: V | C158: 53 | D158: 6 | E158: A | F158: 4 | G158: 66.7
A159: 0 | B159: V | C159: 53 | D159: 6 | E159: M | F159: 5 | G159: 83.3
A160: 0 | B160: V | C160: 53 | D160: 6 | E160: B | F160: 4 | G160: 66.7
A161: 0 | B161: V | C161: 54 | D161: 7 | E161: A | F161: 4 | G161: 57.1
A162: 0 | B162: V | C162: 54 | D162: 7 | E162: M | F162: 4 | G162: 57.1
A163: 0 | B163: V | C163: 54 | D163: 7 | E163: B | F163: 5 | G163: 71.4
A164: 0 | B164: V | C164: 55 | D164: 8 | E164: A | F164: 4 | G164: 50.0
A165: 0 | B165: V | C165: 55 | D165: 8 | E165: M | F165: 6 | G165: 75.0
A166: 0 | B166: V | C166: 55 | D166: 8 | E166: B | F166: 6 | G166: 75.0
A167: 0 | B167: V | C167: 56 | D167: 3 | E167: A | F167: 1 | G167: 33.3
A168: 0 | B168: V | C168: 56 | D168: 3 | E168: M | F168: 3 | G168: 100.0
A169: 0 | B169: V | C169: 56 | D169: 3 | E169: B | F169: 1 | G169: 33.3
A170: 0 | B170: V | C170: 57 | D170: 5 | E170: A | F170: 5 | G170: 100.0
A171: 0 | B171: V | C171: 57 | D171: 5 | E171: M | F171: 3 | G171: 60.0
A172: 0 | B172: V | C172: 57 | D172: 5 | E172: B | F172: 1 | G172: 20.0
A173: 0 | B173: M | C173: 58 | D173: 1 | E173: A | F173: 1 | G173: 100.0
A174: 0 | B174: M | C174: 58 | D174: 1 | E174: M | F174: 1 | G174: 100.0
A175: 0 | B175: M | C175: 58 | D175: 1 | E175: B | F175: 1 | G175: 100.0
A176: 0 | B176: M | C176: 59 | D176: 3 | E176: A | F176: 1 | G176: 33.3
A177: 0 | B177: M | C177: 59 | D177: 3 | E177: M | F177: 1 | G177: 33.3
A178: 0 | B178: M | C178: 59 | D178: 3 | E178: B | F178: 2 | G178: 66.7
A179: 0 | B179: M | C179: 60 | D179: 2 | E179: A | F179: 2 | G179: 100.0
A180: 0 | B180: M | C180: 60 | D180: 2 | E180: M | F180: 1 | G180: 50.0
A181: 0 | B181: M | C181: 60 | D181: 2 | E181: B | F181: 1 | G181: 50.0
A182: 0 | B182: M | C182: 61 | D182: 3 | E182: A | F182: 2 | G182: 66.7
A183: 0 | B183: M | C183: 61 | D183: 3 | E183: M | F183: 0 | G183: 0.0
A184: 0 | B184: M | C184: 61 | D184: 3 | E184: B | F184: 3 | G184: 100.0
A185: 0 | B185: M | C185: 62 | D185: 2 | E185: A | F185: 0 | G185: 0.0
A186: 0 | B186: M | C186: 62 | D186: 2 | E186: M | F186: 1 | G186: 50.0
A187: 0 | B187: M | C187: 62 | D187: 2 | E187: B | F187: 2 | G187: 100.0
A188: 6 | B188: V | C188: 63 | D188: 8 | E188: A | F188: 6 | G188: 75.0
A189: 6 | B189: V | C189: 63 | D189: 8 | E189: M | F189: 3 | G189: 37.5
A190: 6 | B190: V | C190: 63 | D190: 8 | E190: B | F190: 8 | G190: 100.0
A191: 6 | B191: V | C191: 64 | D191: 17 | E191: A | F191: 15 | G191: 88.2
A192: 6 | B192: V | C192: 64 | D192: 17 | E192: M | F192: 8 | G192: 47.1
A193: 6 | B193: V | C193: 64 | D193: 17 | E193: B | F193: 9 | G193: 52.9
A194: 6 | B194: V | C194: 65 | D194: 7 | E194: A | F194: 6 | G194: 85.7
A195: 6 | B195: V | C195: 65 | D195: 7 | E195: M | F195: 5 | G195: 71.4
A196: 6 | B196: V | C196: 65 | D196: 7 | E196: B | F196: 7 | G196: 100.0
A197: 6 | B197: V | C197: 66 | D197: 1 | E197: A | F197: 1 | G197: 100.0
A198: 6 | B198: V | C198: 66 | D198: 1 | E198: M | F198: 0 | G198: 0.0
A199: 6 | B199: V | C199: 66 | D199: 1 | E199: B | F199: 0 | G199: 0.0
A200: 6 | B200: V | C200: 67 | D200: 5 | E200: A | F200: 4 | G200: 80.0
... 242 more rows

Sheet Figure S4a,c
A1: Condition | B1: Time | C1: Fly | D1: Spt | E1: Area | F1: GFP
A2: V | B2: 0 | C2: 4 | D2: b | E2: 10703.1 | F2: 15303846 | H2: Figure S4a, c
A3: V | B3: 0 | C3: 4 | D3: a | E3: 9965.4 | F3: 8946497
A4: V | B4: 0 | C4: 3 | D4: b | E4: 11769.2 | F4: 12378632 | H4: Cond - condition mated / virgin
A5: V | B5: 0 | C5: 3 | D5: a | E5: 13433.1 | F5: 18491826 | H5: Time - time of analysis at pulse or 0, 6, 24 or 48h post-mating
A6: V | B6: 0 | C6: 2 | D6: b | E6: 13238.8 | F6: 3905990 | H6: Fly - number of fly
A7: V | B7: 0 | C7: 2 | D7: a | E7: 13415.9 | F7: 4631607 | H7: Spt - spt pair
A8: V | B8: 0 | C8: 1 | D8: b | E8: 12823.9 | F8: 15020580 | H8: No of cell - number of SSC in the spermatheca
A9: V | B9: 0 | C9: 1 | D9: a | E9: 16595.5 | F9: 20543659
A10: M | B10: 0 | C10: 4 | D10: b | E10: 11260.3 | F10: 10674649 | H10: EA area - area measured in the CD63-GFP EA
A11: M | B11: 0 | C11: 4 | D11: a | E11: 10760.4 | F11: 12114811 | H11: GFP | I11: Corrected mean fluorescence (mean - average bkg mean gray value "mean")
A12: M | B12: 0 | C12: 3 | D12: b | E12: 8115.1 | F12: 10488705
A13: M | B13: 0 | C13: 3 | D13: a | E13: 11819.2 | F13: 3320923
A14: M | B14: 0 | C14: 2 | D14: b | E14: 8897.4 | F14: 9263207
A15: M | B15: 0 | C15: 2 | D15: a | E15: 10316.2 | F15: 5272919
A16: M | B16: 0 | C16: 1 | D16: b | E16: 6797.8 | F16: 2420541
A17: M | B17: 0 | C17: 1 | D17: a | E17: 10675.0 | F17: 4143722
A18: M | B18: 0 | C18: 5 | D18: b | E18: 8851.2 | F18: 11088951
A19: M | B19: 0 | C19: 5 | D19: a | E19: 10463.0 | F19: 5828286
A20: M | B20: 0 | C20: 4 | D20: b | E20: 10979.2 | F20: 8008234
A21: M | B21: 0 | C21: 4 | D21: a | E21: 10830.5 | F21: 9365690
A22: M | B22: 0 | C22: 3 | D22: b | E22: 6405.8 | F22: 3884138
A23: M | B23: 0 | C23: 3 | D23: a | E23: 8406.1 | F23: 12806845
A24: M | B24: 0 | C24: 2 | D24: b | E24: 7332.7 | F24: 6415887
A25: M | B25: 0 | C25: 2 | D25: a | E25: 8132.3 | F25: 16262955
A26: M | B26: 0 | C26: 1 | D26: a | E26: 7322.8 | F26: 16965428
A27: V | B27: 0 | C27: 5 | D27: b | E27: 9046.0 | F27: 14295703
A28: V | B28: 0 | C28: 5 | D28: a | E28: 14198.7 | F28: 16658168
A29: V | B29: 0 | C29: 4 | D29: b | E29: 11214.7 | F29: 11711385
A30: V | B30: 0 | C30: 4 | D30: a | E30: 6562.1 | F30: 5951903
A31: V | B31: 0 | C31: 3 | D31: a | E31: 12053.1 | F31: 9743983
A32: V | B32: 0 | C32: 2 | D32: a | E32: 9525.8 | F32: 3182330
A33: V | B33: 0 | C33: 1 | D33: b | E33: 7683.9 | F33: 3893103
A34: V | B34: 0 | C34: 1 | D34: a | E34: 10454.9 | F34: 7240544
A35: M | B35: 0 | C35: 3 | D35: b | E35: 13825.3 | F35: 11566780
A36: M | B36: 0 | C36: 3 | D36: a | E36: 13204.9 | F36: 11005594
A37: M | B37: 0 | C37: 2 | D37: b | E37: 16745.5 | F37: 10183987
A38: M | B38: 0 | C38: 2 | D38: a | E38: 14300.1 | F38: 6742364
A39: M | B39: 0 | C39: 1 | D39: b | E39: 17447.8 | F39: 15110446
A40: M | B40: 0 | C40: 1 | D40: a | E40: 15048.7 | F40: 15917652
A41: V | B41: 0 | C41: 2 | D41: b | E41: 14820.8 | F41: 6088273
A42: V | B42: 0 | C42: 2 | D42: a | E42: 14026.7 | F42: 10128668
A43: V | B43: 0 | C43: 1 | D43: b | E43: 13003.4 | F43: 4486538
A44: V | B44: 0 | C44: 1 | D44: a | E44: 20737.1 | F44: 6100883
A45: V | B45: 6 | C45: 5 | D45: b | E45: 10048.4 | F45: 14101949
A46: V | B46: 6 | C46: 5 | D46: a | E46: 11233.4 | F46: 16315413
A47: V | B47: 6 | C47: 4 | D47: b | E47: 11064.9 | F47: 13767861
A48: V | B48: 6 | C48: 4 | D48: a | E48: 11029.5 | F48: 4897834
A49: V | B49: 6 | C49: 3 | D49: a | E49: 10274.3 | F49: 10139127
A50: V | B50: 6 | C50: 2 | D50: b | E50: 11035.7 | F50: 22642444
A51: V | B51: 6 | C51: 2 | D51: a | E51: 10431.6 | F51: 26161552
A52: V | B52: 6 | C52: 1 | D52: b | E52: 13608.1 | F52: 14755011
A53: V | B53: 6 | C53: 1 | D53: a | E53: 12360.6 | F53: 5648175
A54: M | B54: 6 | C54: 6 | D54: b | E54: 8950.8 | F54: 10350175
A55: M | B55: 6 | C55: 6 | D55: a | E55: 9804.7 | F55: 14619301
A56: M | B56: 6 | C56: 5 | D56: a | E56: 10383.7 | F56: 13760881
A57: M | B57: 6 | C57: 4 | D57: a | E57: 12638.3 | F57: 12936939
A58: M | B58: 6 | C58: 3 | D58: b | E58: 9030.2 | F58: 13901949
A59: M | B59: 6 | C59: 3 | D59: a | E59: 8245.8 | F59: 16883521
A60: M | B60: 6 | C60: 2 | D60: a | E60: 8410.3 | F60: 5871919
A61: M | B61: 6 | C61: 1 | D61: b | E61: 10089.4 | F61: 11409159
A62: M | B62: 6 | C62: 1 | D62: a | E62: 12833.3 | F62: 24102455
A63: V | B63: 6 | C63: 5 | D63: b | E63: 11955.9 | F63: 6866082
A64: V | B64: 6 | C64: 5 | D64: a | E64: 12450.1 | F64: 6819405
A65: V | B65: 6 | C65: 4 | D65: a | E65: 11067.3 | F65: 4753523
A66: V | B66: 6 | C66: 3 | D66: b | E66: 14031.2 | F66: 23697090
A67: V | B67: 6 | C67: 3 | D67: a | E67: 12301.5 | F67: 17890290
A68: V | B68: 6 | C68: 2 | D68: b | E68: 12306.3 | F68: 5118879
A69: V | B69: 6 | C69: 2 | D69: a | E69: 8572.4 | F69: 2338002
A70: V | B70: 6 | C70: 1 | D70: a | E70: 12072.0 | F70: 6286506
A71: M | B71: 6 | C71: 5 | D71: b | E71: 11376.0 | F71: 11565448
A72: M | B72: 6 | C72: 5 | D72: a | E72: 11837.2 | F72: 15088449
A73: M | B73: 6 | C73: 4 | D73: b | E73: 16494.4 | F73: 13237033
A74: M | B74: 6 | C74: 4 | D74: a | E74: 13367.4 | F74: 15091752
A75: M | B75: 6 | C75: 3 | D75: b | E75: 13409.7 | F75: 9811231
A76: M | B76: 6 | C76: 3 | D76: a | E76: 8105.1 | F76: 7821426
A77: M | B77: 6 | C77: 2 | D77: a | E77: 11537.1 | F77: 5474777
A78: M | B78: 6 | C78: 1 | D78: b | E78: 12160.8 | F78: 7066810
A79: M | B79: 6 | C79: 1 | D79: a | E79: 13415.0 | F79: 20345370
A80: V | B80: 6 | C80: 2 | D80: b | E80: 15037.1 | F80: 4025137
A81: V | B81: 6 | C81: 2 | D81: a | E81: 20538.1 | F81: 6695963
A82: V | B82: 6 | C82: 1 | D82: b | E82: 17477.8 | F82: 7081495
A83: M | B83: 6 | C83: 3 | D83: a | E83: 14896.4 | F83: 4458016
A84: M | B84: 6 | C84: 2 | D84: a | E84: 13758.2 | F84: 17482958
A85: M | B85: 6 | C85: 1 | D85: b | E85: 13376.6 | F85: 8606334
A86: M | B86: 6 | C86: 1 | D86: a | E86: 13341.9 | F86: 12988434
A87: M | B87: 6 | C87: 3 | D87: b | E87: 11666.8 | F87: 3525171
A88: M | B88: 6 | C88: 3 | D88: a | E88: 10031.7 | F88: 5150974
A89: M | B89: 6 | C89: 2 | D89: b | E89: 13828.1 | F89: 12613496
A90: M | B90: 6 | C90: 2 | D90: a | E90: 12613.8 | F90: 11080909
A91: M | B91: 6 | C91: 1 | D91: b | E91: 11802.6 | F91: 14380184
A92: V | B92: 6 | C92: 3 | D92: b | E92: 13293.7 | F92: 10162263
A93: V | B93: 6 | C93: 3 | D93: a | E93: 12149.1 | F93: 5004274
A94: V | B94: 6 | C94: 2 | D94: b | E94: 13358.5 | F94: 23499033
A95: V | B95: 6 | C95: 2 | D95: a | E95: 10112.0 | F95: 16766876
A96: V | B96: 6 | C96: 1 | D96: b | E96: 12234.5 | F96: 12498739
A97: V | B97: 6 | C97: 1 | D97: a | E97: 11494.4 | F97: 17118235
A98: V | B98: 24 | C98: 4 | D98: b | E98: 15912.7 | F98: 12919939
A99: V | B99: 24 | C99: 4 | D99: a | E99: 13302.3 | F99: 5235297
A100: V | B100: 24 | C100: 3 | D100: b | E100: 11213.6 | F100: 3996674
A101: V | B101: 24 | C101: 3 | D101: a | E101: 12252.5 | F101: 7433607
A102: V | B102: 24 | C102: 2 | D102: b | E102: 12369.1 | F102: 15955407
A103: V | B103: 24 | C103: 2 | D103: a | E103: 12343.9 | F103: 15821457
A104: V | B104: 24 | C104: 1 | D104: b | E104: 6254.3 | F104: 5661842
A105: V | B105: 24 | C105: 1 | D105: a | E105: 7993.3 | F105: 10993326
A106: M | B106: 24 | C106: 6 | D106: b | E106: 8384.0 | F106: 746216
A107: M | B107: 24 | C107: 6 | D107: a | E107: 10751.1 | F107: 1097442
A108: M | B108: 24 | C108: 5 | D108: b | E108: 13292.0 | F108: 9593245
A109: M | B109: 24 | C109: 5 | D109: a | E109: 12288.0 | F109: 13308950
A110: M | B110: 24 | C110: 4 | D110: b | E110: 7283.5 | F110: 5978129
A111: M | B111: 24 | C111: 4 | D111: a | E111: 8297.4 | F111: 7639072
A112: M | B112: 24 | C112: 3 | D112: b | E112: 8881.4 | F112: 4398953
A113: M | B113: 24 | C113: 3 | D113: a | E113: 8442.2 | F113: 2359755
A114: M | B114: 24 | C114: 2 | D114: a | E114: 13374.4 | F114: 3677796
A115: M | B115: 24 | C115: 1 | D115: b | E115: 9653.5 | F115: 7371831
A116: M | B116: 24 | C116: 1 | D116: a | E116: 7315.8 | F116: 7884462
A117: M | B117: 24 | C117: 2 | D117: b | E117: 15763.4 | F117: 9114728
A118: M | B118: 24 | C118: 1 | D118: b | E118: 18091.0 | F118: 13863556
A119: M | B119: 24 | C119: 1 | D119: a | E119: 18301.8 | F119: 91992492
A120: V | B120: 24 | C120: 2 | D120: b | E120: 16158.0 | F120: 22202099
A121: V | B121: 24 | C121: 2 | D121: a | E121: 19343.3 | F121: 40783743
A122: V | B122: 24 | C122: 1 | D122: a | E122: 19685.0 | F122: 42037888
A123: M | B123: 48 | C123: 3 | D123: a | E123: 15340.1 | F123: 9558915
A124: M | B124: 48 | C124: 2 | D124: b | E124: 13231.5 | F124: 4160419
A125: M | B125: 48 | C125: 2 | D125: a | E125: 14171.0 | F125: 3134942
A126: M | B126: 48 | C126: 1 | D126: a | E126: 19382.1 | F126: 14566329
A127: V | B127: 48 | C127: 3 | D127: b | E127: 16385.9 | F127: 12356636
A128: V | B128: 48 | C128: 3 | D128: a | E128: 17563.9 | F128: 13256009
A129: V | B129: 48 | C129: 2 | D129: b | E129: 20905.3 | F129: 11152995
A130: V | B130: 48 | C130: 2 | D130: a | E130: 15262.4 | F130: 8505980
A131: V | B131: 48 | C131: 1 | D131: b | E131: 14885.2 | F131: 7911940
A132: V | B132: 48 | C132: 1 | D132: a | E132: 15212.5 | F132: 13061662
A133: V | B133: P | C133: 1 | D133: a | E133: 10274.8 | F133: 8789651
A134: V | B134: P | C134: 1 | D134: b | E134: 12690.1 | F134: 8714678
A135: V | B135: P | C135: 2 | D135: a | E135: 11425.1 | F135: 5095536
A136: V | B136: P | C136: 2 | D136: b | E136: 7309.7 | F136: 8844724
A137: V | B137: P | C137: 3 | D137: a | E137: 9287.6 | F137: 5112128
A138: V | B138: P | C138: 3 | D138: b | E138: 10554.9 | F138: 1151559
A139: V | B139: P | C139: 2 | D139: a | E139: 13195.8 | F139: 1090100
A140: V | B140: P | C140: 4 | D140: b | E140: 8281.9 | F140: 5082640
A141: V | B141: P | C141: 4 | D141: a | E141: 8683.8 | F141: 4721090
A142: V | B142: P | C142: 3 | D142: a | E142: 7939.5 | F142: 172685
A143: V | B143: P | C143: 2 | D143: b | E143: 13375.3 | F143: 965955
A144: V | B144: P | C144: 1 | D144: a | E144: 7067.6 | F144: 2537690
A145: V | B145: P | C145: 3 | D145: a | E145: 14204.0 | F145: 8229105
A146: V | B146: P | C146: 2 | D146: b | E146: 11116.0 | F146: 4595274
A147: V | B147: P | C147: 2 | D147: a | E147: 11739.7 | F147: 5717293
A148: V | B148: P | C148: 1 | D148: b | E148: 15433.6 | F148: 6595937
A149: V | B149: P | C149: 1 | D149: a | E149: 11718.8 | F149: 10909253
A150: V | B150: P | C150: 3 | D150: b | E150: 11571.8 | F150: 1211663
A151: V | B151: P | C151: 3 | D151: a | E151: 8575.5 | F151: 4970822
A152: V | B152: P | C152: 2 | D152: b | E152: 7699.6 | F152: 8952735
A153: V | B153: P | C153: 2 | D153: a | E153: 11958.2 | F153: 5140056
A154: V | B154: P | C154: 1 | D154: b | E154: 12533.8 | F154: 8656739
A155: V | B155: P | C155: 1 | D155: a | E155: 11393.9 | F155: 9015130
A156: V | B156: P | C156: 5 | D156: b | E156: 13445.5 | F156: 1730512
A157: V | B157: P | C157: 5 | D157: a | E157: 10992.9 | F157: 4070941
A158: V | B158: P | C158: 4 | D158: b | E158: 10791.5 | F158: 4334041
A159: V | B159: P | C159: 4 | D159: a | E159: 16489.8 | F159: 7175237
A160: V | B160: P | C160: 3 | D160: b | E160: 17201.9 | F160: 11114780
A161: V | B161: P | C161: 3 | D161: a | E161: 13222.6 | F161: 7427210
A162: V | B162: P | C162: 2 | D162: b | E162: 14103.9 | F162: 14385938
A163: V | B163: P | C163: 2 | D163: a | E163: 10865.2 | F163: 5248142
A164: V | B164: P | C164: 1 | D164: b | E164: 15072.2 | F164: 14627594
A165: V | B165: P | C165: 1 | D165: a | E165: 12196.3 | F165: 9571267
A166: V | B166: P | C166: 2 | D166: a | E166: 14200.5 | F166: 11479413
A167: V | B167: P | C167: 2 | D167: b | E167: 12225.2 | F167: 10599260
A168: V | B168: P | C168: 1 | D168: b | E168: 13641.5 | F168: 13775064
A169: V | B169: P | C169: 1 | D169: a | E169: 16088.5 | F169: 36645982
A170: V | B170: P | C170: 3 | D170: b | E170: 12476.3 | F170: 13509300
A171: V | B171: P | C171: 3 | D171: a | E171: 15633.3 | F171: 12173426
A172: V | B172: P | C172: 2 | D172: b | E172: 12826.4 | F172: 8941264
A173: V | B173: P | C173: 2 | D173: a | E173: 10546.1 | F173: 5043650
A174: V | B174: P | C174: 1 | D174: b | E174: 12319.9 | F174: 5137496
A175: V | B175: P | C175: 1 | D175: a | E175: 12412.6 | F175: 15666698
A176: V | B176: P | C176: 4 | D176: b | E176: 12579.4 | F176: 14665357
A177: V | B177: P | C177: 4 | D177: a | E177: 18662.0 | F177: 14433416
A178: V | B178: P | C178: 3 | D178: b | E178: 15817.8 | F178: 8907084
A179: V | B179: P | C179: 3 | D179: a | E179: 14776.7 | F179: 21717214
A180: V | B180: P | C180: 2 | D180: b | E180: 16497.5 | F180: 23523701
A181: V | B181: P | C181: 2 | D181: a | E181: 12112.2 | F181: 13209512
A182: V | B182: P | C182: 1 | D182: a | E182: 17657.4 | F182: 4212008
A183: M | B183: P | C183: 1 | D183: a | E183: 10274.8 | F183: 8789651
A184: M | B184: P | C184: 1 | D184: b | E184: 12690.1 | F184: 8714678
A185: M | B185: P | C185: 2 | D185: a | E185: 11425.1 | F185: 5095536
A186: M | B186: P | C186: 2 | D186: b | E186: 7309.7 | F186: 8844724
A187: M | B187: P | C187: 3 | D187: a | E187: 9287.6 | F187: 5112128
A188: M | B188: P | C188: 3 | D188: b | E188: 10554.9 | F188: 1151559
A189: M | B189: P | C189: 2 | D189: a | E189: 13195.8 | F189: 1090100
A190: M | B190: P | C190: 4 | D190: b | E190: 8281.9 | F190: 5082640
A191: M | B191: P | C191: 4 | D191: a | E191: 8683.8 | F191: 4721090
A192: M | B192: P | C192: 3 | D192: a | E192: 7939.5 | F192: 172685
A193: M | B193: P | C193: 2 | D193: b | E193: 13375.3 | F193: 965955
A194: M | B194: P | C194: 1 | D194: a | E194: 7067.6 | F194: 2537690
A195: M | B195: P | C195: 3 | D195: a | E195: 14204.0 | F195: 8229105
A196: M | B196: P | C196: 2 | D196: b | E196: 11116.0 | F196: 4595274
A197: M | B197: P | C197: 2 | D197: a | E197: 11739.7 | F197: 5717293
A198: M | B198: P | C198: 1 | D198: b | E198: 15433.6 | F198: 6595937
A199: M | B199: P | C199: 1 | D199: a | E199: 11718.8 | F199: 10909253
A200: M | B200: P | C200: 3 | D200: b | E200: 11571.8 | F200: 1211663
... 32 more rows

Sheet Fig5a and g
A1: Replicate | B1: Sample | C1: Type | D1: Read | E1: Bins | F1: Concentration
A2: 1 | B2: CD63 | C2: M | D2: 4 | E2: 0 | F2: 0 | H2: Replicate | I2: 1, 2, 3, 4
A3: 1 | B3: CD63 | C3: M | D3: 4 | E3: 20 | F3: 0 | H3: Sample
A4: 1 | B4: CD63 | C4: M | D4: 4 | E4: 40 | F4: 0 | H4: CD63 | I4: Flies with SSC expressing CD63-GFP
A5: 1 | B5: CD63 | C5: M | D5: 4 | E5: 60 | F5: 0 | H5: Ecdy | I5: SSC incubated in ecdysone
A6: 1 | B6: CD63 | C6: M | D6: 4 | E6: 80 | F6: 0 | H6: No Ecdy | I6: SSC incubated in media
A7: 1 | B7: CD63 | C7: M | D7: 4 | E7: 100 | F7: 16000000 | H7: mask | I7: media with cell mask as control
A8: 1 | B8: CD63 | C8: M | D8: 4 | E8: 120 | F8: 16000000 | H8: Read | I8: 1, 2, 3, 4
A9: 1 | B9: CD63 | C9: M | D9: 4 | E9: 140 | F9: 8000000 | H9: Bins | I9: Diameter of particles
A10: 1 | B10: CD63 | C10: M | D10: 4 | E10: 160 | F10: 0 | H10: Concentration | I10: Particles per ml
A11: 1 | B11: CD63 | C11: M | D11: 4 | E11: 180 | F11: 8000000
A12: 1 | B12: CD63 | C12: M | D12: 4 | E12: 200 | F12: 0
A13: 1 | B13: CD63 | C13: M | D13: 4 | E13: 220 | F13: 0
A14: 1 | B14: CD63 | C14: M | D14: 4 | E14: 240 | F14: 0
A15: 1 | B15: CD63 | C15: M | D15: 4 | E15: 260 | F15: 0
A16: 1 | B16: CD63 | C16: M | D16: 4 | E16: 280 | F16: 0
A17: 1 | B17: CD63 | C17: M | D17: 4 | E17: 300 | F17: 0
A18: 1 | B18: CD63 | C18: M | D18: 4 | E18: 320 | F18: 0
A19: 1 | B19: CD63 | C19: M | D19: 4 | E19: 340 | F19: 0
A20: 1 | B20: CD63 | C20: M | D20: 4 | E20: 360 | F20: 0
A21: 1 | B21: CD63 | C21: M | D21: 4 | E21: 380 | F21: 0
A22: 1 | B22: CD63 | C22: M | D22: 4 | E22: 400 | F22: 0
A23: 1 | B23: CD63 | C23: M | D23: 4 | E23: 420 | F23: 0
A24: 1 | B24: CD63 | C24: M | D24: 4 | E24: 440 | F24: 0
A25: 1 | B25: CD63 | C25: M | D25: 4 | E25: 460 | F25: 0
A26: 1 | B26: CD63 | C26: M | D26: 4 | E26: 480 | F26: 0
A27: 1 | B27: CD63 | C27: M | D27: 4 | E27: 500 | F27: 0
A28: 1 | B28: CD63 | C28: M | D28: 1 | E28: 0 | F28: 0
A29: 1 | B29: CD63 | C29: M | D29: 1 | E29: 20 | F29: 0
A30: 1 | B30: CD63 | C30: M | D30: 1 | E30: 40 | F30: 0
A31: 1 | B31: CD63 | C31: M | D31: 1 | E31: 60 | F31: 24000000
A32: 1 | B32: CD63 | C32: M | D32: 1 | E32: 80 | F32: 56000000
A33: 1 | B33: CD63 | C33: M | D33: 1 | E33: 100 | F33: 40000000
A34: 1 | B34: CD63 | C34: M | D34: 1 | E34: 120 | F34: 32000000
A35: 1 | B35: CD63 | C35: M | D35: 1 | E35: 140 | F35: 24000000
A36: 1 | B36: CD63 | C36: M | D36: 1 | E36: 160 | F36: 0
A37: 1 | B37: CD63 | C37: M | D37: 1 | E37: 180 | F37: 8000000
A38: 1 | B38: CD63 | C38: M | D38: 1 | E38: 200 | F38: 8000000
A39: 1 | B39: CD63 | C39: M | D39: 1 | E39: 220 | F39: 24000000
A40: 1 | B40: CD63 | C40: M | D40: 1 | E40: 240 | F40: 0
A41: 1 | B41: CD63 | C41: M | D41: 1 | E41: 260 | F41: 0
A42: 1 | B42: CD63 | C42: M | D42: 1 | E42: 280 | F42: 0
A43: 1 | B43: CD63 | C43: M | D43: 1 | E43: 300 | F43: 8000000
A44: 1 | B44: CD63 | C44: M | D44: 1 | E44: 320 | F44: 0
A45: 1 | B45: CD63 | C45: M | D45: 1 | E45: 340 | F45: 0
A46: 1 | B46: CD63 | C46: M | D46: 1 | E46: 360 | F46: 0
A47: 1 | B47: CD63 | C47: M | D47: 1 | E47: 380 | F47: 0
A48: 1 | B48: CD63 | C48: M | D48: 1 | E48: 400 | F48: 0
A49: 1 | B49: CD63 | C49: M | D49: 1 | E49: 420 | F49: 0
A50: 1 | B50: CD63 | C50: M | D50: 1 | E50: 440 | F50: 0
A51: 1 | B51: CD63 | C51: M | D51: 1 | E51: 460 | F51: 0
A52: 1 | B52: CD63 | C52: M | D52: 1 | E52: 480 | F52: 0
A53: 1 | B53: CD63 | C53: M | D53: 1 | E53: 500 | F53: 0
A54: 1 | B54: CD63 | C54: M | D54: 2 | E54: 0 | F54: 0
A55: 1 | B55: CD63 | C55: M | D55: 2 | E55: 20 | F55: 0
A56: 1 | B56: CD63 | C56: M | D56: 2 | E56: 40 | F56: 0
A57: 1 | B57: CD63 | C57: M | D57: 2 | E57: 60 | F57: 72000000
A58: 1 | B58: CD63 | C58: M | D58: 2 | E58: 80 | F58: 32000000
A59: 1 | B59: CD63 | C59: M | D59: 2 | E59: 100 | F59: 16000000
A60: 1 | B60: CD63 | C60: M | D60: 2 | E60: 120 | F60: 0
A61: 1 | B61: CD63 | C61: M | D61: 2 | E61: 140 | F61: 16000000
A62: 1 | B62: CD63 | C62: M | D62: 2 | E62: 160 | F62: 0
A63: 1 | B63: CD63 | C63: M | D63: 2 | E63: 180 | F63: 0
A64: 1 | B64: CD63 | C64: M | D64: 2 | E64: 200 | F64: 0
A65: 1 | B65: CD63 | C65: M | D65: 2 | E65: 220 | F65: 0
A66: 1 | B66: CD63 | C66: M | D66: 2 | E66: 240 | F66: 0
A67: 1 | B67: CD63 | C67: M | D67: 2 | E67: 260 | F67: 0
A68: 1 | B68: CD63 | C68: M | D68: 2 | E68: 280 | F68: 0
A69: 1 | B69: CD63 | C69: M | D69: 2 | E69: 300 | F69: 0
A70: 1 | B70: CD63 | C70: M | D70: 2 | E70: 320 | F70: 0
A71: 1 | B71: CD63 | C71: M | D71: 2 | E71: 340 | F71: 0
A72: 1 | B72: CD63 | C72: M | D72: 2 | E72: 360 | F72: 0
A73: 1 | B73: CD63 | C73: M | D73: 2 | E73: 380 | F73: 0
A74: 1 | B74: CD63 | C74: M | D74: 2 | E74: 400 | F74: 0
A75: 1 | B75: CD63 | C75: M | D75: 2 | E75: 420 | F75: 0
A76: 1 | B76: CD63 | C76: M | D76: 2 | E76: 440 | F76: 0
A77: 1 | B77: CD63 | C77: M | D77: 2 | E77: 460 | F77: 0
A78: 1 | B78: CD63 | C78: M | D78: 2 | E78: 480 | F78: 0
A79: 1 | B79: CD63 | C79: M | D79: 2 | E79: 500 | F79: 0
A80: 1 | B80: CD63 | C80: M | D80: 3 | E80: 0 | F80: 0
A81: 1 | B81: CD63 | C81: M | D81: 3 | E81: 20 | F81: 0
A82: 1 | B82: CD63 | C82: M | D82: 3 | E82: 40 | F82: 0
A83: 1 | B83: CD63 | C83: M | D83: 3 | E83: 60 | F83: 0
A84: 1 | B84: CD63 | C84: M | D84: 3 | E84: 80 | F84: 8000000
A85: 1 | B85: CD63 | C85: M | D85: 3 | E85: 100 | F85: 0
A86: 1 | B86: CD63 | C86: M | D86: 3 | E86: 120 | F86: 8000000
A87: 1 | B87: CD63 | C87: M | D87: 3 | E87: 140 | F87: 0
A88: 1 | B88: CD63 | C88: M | D88: 3 | E88: 160 | F88: 16000000
A89: 1 | B89: CD63 | C89: M | D89: 3 | E89: 180 | F89: 0
A90: 1 | B90: CD63 | C90: M | D90: 3 | E90: 200 | F90: 0
A91: 1 | B91: CD63 | C91: M | D91: 3 | E91: 220 | F91: 0
A92: 1 | B92: CD63 | C92: M | D92: 3 | E92: 240 | F92: 0
A93: 1 | B93: CD63 | C93: M | D93: 3 | E93: 260 | F93: 0
A94: 1 | B94: CD63 | C94: M | D94: 3 | E94: 280 | F94: 0
A95: 1 | B95: CD63 | C95: M | D95: 3 | E95: 300 | F95: 0
A96: 1 | B96: CD63 | C96: M | D96: 3 | E96: 320 | F96: 0
A97: 1 | B97: CD63 | C97: M | D97: 3 | E97: 340 | F97: 0
A98: 1 | B98: CD63 | C98: M | D98: 3 | E98: 360 | F98: 0
A99: 1 | B99: CD63 | C99: M | D99: 3 | E99: 380 | F99: 0
A100: 1 | B100: CD63 | C100: M | D100: 3 | E100: 400 | F100: 0
A101: 1 | B101: CD63 | C101: M | D101: 3 | E101: 420 | F101: 0
A102: 1 | B102: CD63 | C102: M | D102: 3 | E102: 440 | F102: 0
A103: 1 | B103: CD63 | C103: M | D103: 3 | E103: 460 | F103: 0
A104: 1 | B104: CD63 | C104: M | D104: 3 | E104: 480 | F104: 0
A105: 1 | B105: CD63 | C105: M | D105: 3 | E105: 500 | F105: 0
A106: 1 | B106: mask | C106: mask | D106: 3 | E106: 0 | F106: 0
A107: 1 | B107: mask | C107: mask | D107: 3 | E107: 20 | F107: 0
A108: 1 | B108: mask | C108: mask | D108: 3 | E108: 40 | F108: 0
A109: 1 | B109: mask | C109: mask | D109: 3 | E109: 60 | F109: 40000000
A110: 1 | B110: mask | C110: mask | D110: 3 | E110: 80 | F110: 32000000
A111: 1 | B111: mask | C111: mask | D111: 3 | E111: 100 | F111: 48000000
A112: 1 | B112: mask | C112: mask | D112: 3 | E112: 120 | F112: 8000000
A113: 1 | B113: mask | C113: mask | D113: 3 | E113: 140 | F113: 24000000
A114: 1 | B114: mask | C114: mask | D114: 3 | E114: 160 | F114: 8000000
A115: 1 | B115: mask | C115: mask | D115: 3 | E115: 180 | F115: 0
A116: 1 | B116: mask | C116: mask | D116: 3 | E116: 200 | F116: 8000000
A117: 1 | B117: mask | C117: mask | D117: 3 | E117: 220 | F117: 8000000
A118: 1 | B118: mask | C118: mask | D118: 3 | E118: 240 | F118: 0
A119: 1 | B119: mask | C119: mask | D119: 3 | E119: 260 | F119: 0
A120: 1 | B120: mask | C120: mask | D120: 3 | E120: 280 | F120: 0
A121: 1 | B121: mask | C121: mask | D121: 3 | E121: 300 | F121: 0
A122: 1 | B122: mask | C122: mask | D122: 3 | E122: 320 | F122: 0
A123: 1 | B123: mask | C123: mask | D123: 3 | E123: 340 | F123: 0
A124: 1 | B124: mask | C124: mask | D124: 3 | E124: 360 | F124: 0
A125: 1 | B125: mask | C125: mask | D125: 3 | E125: 380 | F125: 0
A126: 1 | B126: mask | C126: mask | D126: 3 | E126: 400 | F126: 0
A127: 1 | B127: mask | C127: mask | D127: 3 | E127: 420 | F127: 0
A128: 1 | B128: mask | C128: mask | D128: 3 | E128: 440 | F128: 0
A129: 1 | B129: mask | C129: mask | D129: 3 | E129: 460 | F129: 0
A130: 1 | B130: mask | C130: mask | D130: 3 | E130: 480 | F130: 0
A131: 1 | B131: mask | C131: mask | D131: 3 | E131: 500 | F131: 0
A132: 1 | B132: mask | C132: mask | D132: 2 | E132: 0 | F132: 0
A133: 1 | B133: mask | C133: mask | D133: 2 | E133: 20 | F133: 0
A134: 1 | B134: mask | C134: mask | D134: 2 | E134: 40 | F134: 0
A135: 1 | B135: mask | C135: mask | D135: 2 | E135: 60 | F135: 74000000
A136: 1 | B136: mask | C136: mask | D136: 2 | E136: 80 | F136: 32888888.89
A137: 1 | B137: mask | C137: mask | D137: 2 | E137: 100 | F137: 98666666.67
A138: 1 | B138: mask | C138: mask | D138: 2 | E138: 120 | F138: 41111111.11
A139: 1 | B139: mask | C139: mask | D139: 2 | E139: 140 | F139: 32888888.89
A140: 1 | B140: mask | C140: mask | D140: 2 | E140: 160 | F140: 8222222.222
A141: 1 | B141: mask | C141: mask | D141: 2 | E141: 180 | F141: 0
A142: 1 | B142: mask | C142: mask | D142: 2 | E142: 200 | F142: 0
A143: 1 | B143: mask | C143: mask | D143: 2 | E143: 220 | F143: 0
A144: 1 | B144: mask | C144: mask | D144: 2 | E144: 240 | F144: 0
A145: 1 | B145: mask | C145: mask | D145: 2 | E145: 260 | F145: 8222222.222
A146: 1 | B146: mask | C146: mask | D146: 2 | E146: 280 | F146: 0
A147: 1 | B147: mask | C147: mask | D147: 2 | E147: 300 | F147: 0
A148: 1 | B148: mask | C148: mask | D148: 2 | E148: 320 | F148: 0
A149: 1 | B149: mask | C149: mask | D149: 2 | E149: 340 | F149: 0
A150: 1 | B150: mask | C150: mask | D150: 2 | E150: 360 | F150: 0
A151: 1 | B151: mask | C151: mask | D151: 2 | E151: 380 | F151: 0
A152: 1 | B152: mask | C152: mask | D152: 2 | E152: 400 | F152: 0
A153: 1 | B153: mask | C153: mask | D153: 2 | E153: 420 | F153: 0
A154: 1 | B154: mask | C154: mask | D154: 2 | E154: 440 | F154: 0
A155: 1 | B155: mask | C155: mask | D155: 2 | E155: 460 | F155: 0
A156: 1 | B156: mask | C156: mask | D156: 2 | E156: 480 | F156: 0
A157: 1 | B157: mask | C157: mask | D157: 2 | E157: 500 | F157: 0
A158: 1 | B158: mask | C158: mask | D158: 4 | E158: 0 | F158: 0
A159: 1 | B159: mask | C159: mask | D159: 4 | E159: 20 | F159: 0
A160: 1 | B160: mask | C160: mask | D160: 4 | E160: 40 | F160: 0
A161: 1 | B161: mask | C161: mask | D161: 4 | E161: 60 | F161: 80000000
A162: 1 | B162: mask | C162: mask | D162: 4 | E162: 80 | F162: 24000000
A163: 1 | B163: mask | C163: mask | D163: 4 | E163: 100 | F163: 64000000
A164: 1 | B164: mask | C164: mask | D164: 4 | E164: 120 | F164: 80000000
A165: 1 | B165: mask | C165: mask | D165: 4 | E165: 140 | F165: 32000000
A166: 1 | B166: mask | C166: mask | D166: 4 | E166: 160 | F166: 32000000
A167: 1 | B167: mask | C167: mask | D167: 4 | E167: 180 | F167: 32000000
A168: 1 | B168: mask | C168: mask | D168: 4 | E168: 200 | F168: 16000000
A169: 1 | B169: mask | C169: mask | D169: 4 | E169: 220 | F169: 0
A170: 1 | B170: mask | C170: mask | D170: 4 | E170: 240 | F170: 8000000
A171: 1 | B171: mask | C171: mask | D171: 4 | E171: 260 | F171: 0
A172: 1 | B172: mask | C172: mask | D172: 4 | E172: 280 | F172: 0
A173: 1 | B173: mask | C173: mask | D173: 4 | E173: 300 | F173: 0
A174: 1 | B174: mask | C174: mask | D174: 4 | E174: 320 | F174: 0
A175: 1 | B175: mask | C175: mask | D175: 4 | E175: 340 | F175: 0
A176: 1 | B176: mask | C176: mask | D176: 4 | E176: 360 | F176: 0
A177: 1 | B177: mask | C177: mask | D177: 4 | E177: 380 | F177: 0
A178: 1 | B178: mask | C178: mask | D178: 4 | E178: 400 | F178: 0
A179: 1 | B179: mask | C179: mask | D179: 4 | E179: 420 | F179: 0
A180: 1 | B180: mask | C180: mask | D180: 4 | E180: 440 | F180: 0
A181: 1 | B181: mask | C181: mask | D181: 4 | E181: 460 | F181: 0
A182: 1 | B182: mask | C182: mask | D182: 4 | E182: 480 | F182: 0
A183: 1 | B183: mask | C183: mask | D183: 4 | E183: 500 | F183: 0
A184: 1 | B184: mask | C184: mask | D184: 1 | E184: 0 | F184: 0
A185: 1 | B185: mask | C185: mask | D185: 1 | E185: 20 | F185: 0
A186: 1 | B186: mask | C186: mask | D186: 1 | E186: 40 | F186: 0
A187: 1 | B187: mask | C187: mask | D187: 1 | E187: 60 | F187: 32000000
A188: 1 | B188: mask | C188: mask | D188: 1 | E188: 80 | F188: 8000000
A189: 1 | B189: mask | C189: mask | D189: 1 | E189: 100 | F189: 32000000
A190: 1 | B190: mask | C190: mask | D190: 1 | E190: 120 | F190: 8000000
A191: 1 | B191: mask | C191: mask | D191: 1 | E191: 140 | F191: 16000000
A192: 1 | B192: mask | C192: mask | D192: 1 | E192: 160 | F192: 40000000
A193: 1 | B193: mask | C193: mask | D193: 1 | E193: 180 | F193: 0
A194: 1 | B194: mask | C194: mask | D194: 1 | E194: 200 | F194: 8000000
A195: 1 | B195: mask | C195: mask | D195: 1 | E195: 220 | F195: 0
A196: 1 | B196: mask | C196: mask | D196: 1 | E196: 240 | F196: 0
A197: 1 | B197: mask | C197: mask | D197: 1 | E197: 260 | F197: 0
A198: 1 | B198: mask | C198: mask | D198: 1 | E198: 280 | F198: 0
A199: 1 | B199: mask | C199: mask | D199: 1 | E199: 300 | F199: 0
A200: 1 | B200: mask | C200: mask | D200: 1 | E200: 320 | F200: 8000000
... 217 more rows

Sheet Fig5h and i
A1: Sample | B1: Type | C1: Read | D1: Concentration | E1: Mean
A2: CD63 | B2: M | C2: 1 | D2: 224000000 | E2: 114.2123188 | G2: Sample | H2: Rab7 RNAi line and control
A3: CD63 | B3: M | C3: 2 | D3: 136000000 | E3: 70.60231542 | G3: CD63 | H3: Flies with SSC expressing CD63-GFP
A4: CD63 | B4: M | C4: 3 | D4: 32000000 | E4: 114.430538 | G4: Ecdy | H4: SSC incubated in ecdysone
A5: CD63 | B5: M | C5: 4 | D5: 48000000 | E5: 118.1496709 | G5: No Ecdy | H5: SSC incubated in media
A6: mask | B6: mask | C6: 1 | D6: 152000000 | E6: 116.4158507 | G6: mask | H6: media with cell mask as control
A7: mask | B7: mask | C7: 2 | D7: 296000000 | E7: 91.27691609
A8: mask | B8: mask | C8: 3 | D8: 176000000 | E8: 96.51655371 | G8: Read | H8: 1,2,3 or 4
A9: mask | B9: mask | C9: 4 | D9: 368000000 | E9: 107.0691034 | G9: Concentration | H9: Mean number of particles
A10: No ecdy | B10: M | C10: 1 | D10: 368000000 | E10: 109.0827766 | G10: Mean | H10: Particle mean diameter
A11: No ecdy | B11: M | C11: 2 | D11: 192000000 | E11: 106.7580186
A12: No ecdy | B12: M | C12: 3 | D12: 168000000 | E12: 101.9680829
A13: No ecdy | B13: M | C13: 4 | D13: 128000000 | E13: 159.5661769
A14: Ecdy | B14: M | C14: 1 | D14: 1072000000 | E14: 107.8583684
A15: Ecdy | B15: M | C15: 2 | D15: 704000000 | E15: 99.69858074
A16: Ecdy | B16: M | C16: 3 | D16: 808000000 | E16: 119.2569715
A17: Ecdy | B17: M | C17: 4 | D17: 712000000 | E17: 110.6588748
A18: No ecdy | B18: M | C18: 1 | D18: 8.20E+08 | E18: 138.0642643
A19: No ecdy | B19: M | C19: 2 | D19: 7.52E+08 | E19: 133.5033988
A20: No ecdy | B20: M | C20: 3 | D20: 836000000 | E20: 135.460734
A21: No ecdy | B21: M | C21: 4 | D21: 7.76E+08 | E21: 113.7127684
A22: Ecdy | B22: M | C22: 1 | D22: 900000000 | E22: 139.3738658
A23: Ecdy | B23: M | C23: 2 | D23: 1132000000 | E23: 123.0777728
A24: Ecdy | B24: M | C24: 3 | D24: 824000000 | E24: 128.7171081
A25: Ecdy | B25: M | C25: 4 | D25: 1232000000 | E25: 138.7654856

Sheet S5f and g
A1: Image | B1: EV no | C1: Diameter (nm) | D1: height (nm) | E1: Young (kPa) | F1: Adhesion (pN)
A2: Region1 | B2: mica | C2: na | D2: na | E2: 3299 | F2: 326.7 | H2: Image | I2: Image1, 2 and mica (control)
A3: Region1 | B3: mica | C3: na | D3: na | E3: 2129 | F3: 330.2 | H3: EV no | I3: Number of EV measured and mica
A4: Region1 | B4: mica | C4: na | D4: na | E4: 3781 | F4: 346.7 | H4: Diameter | I4: Diameter of the EV
A5: Region1 | B5: mica | C5: na | D5: na | E5: 1443 | F5: 307.7 | H5: Height | I5: Height of the EV
A6: Region1 | B6: mica | C6: na | D6: na | E6: 1870 | F6: 330 | H6: Young's Modulus | I6: Per EV, in kPa
A7: Region1 | B7: 1 | C7: 80 | D7: 29 | E7: 558.8 | F7: 418 | H7: Adhesion | I7: Per EV, in pN
A8: Region1 | B8: 2 | C8: 60 | D8: 27 | E8: 427.4 | F8: 404.8
A9: Region1 | B9: 3 | C9: 70 | D9: 30 | E9: 326 | F9: 535.3
A10: Region1 | B10: 4 | C10: 70 | D10: 32 | E10: 351.4 | F10: 508.8
A11: Region1 | B11: 5 | C11: 60 | D11: 31 | E11: 212.2 | F11: 512.8
A12: Region1 | B12: 6 | C12: 50 | D12: 32 | E12: 352.4 | F12: 491.6
A13: Region1 | B13: 7 | C13: 65 | D13: 23 | E13: 568.4 | F13: 407.2
A14: Region1 | B14: 8 | C14: 60 | D14: 29 | E14: 439 | F14: 479.4
A15: Region1 | B15: 9 | C15: 70 | D15: 29 | E15: 725.2 | F15: 506.6
A16: Region1 | B16: 10 | C16: 60 | D16: 31 | E16: 546.8 | F16: 472.4
A17: Region1 | B17: 11 | C17: 55 | D17: 19 | E17: 654 | F17: 409.6
A18: Region1 | B18: 12 | C18: 120 | D18: 46 | E18: 184.8 | F18: 462.5
A19: Region1 | B19: 13 | C19: 55 | D19: 13 | E19: 589.3 | F19: 491.7
A20: Region1 | B20: 14 | C20: 85 | D20: 30 | E20: 375 | F20: 491.7
A21: Region1 | B21: 15 | C21: 60 | D21: 26 | E21: 395 | F21: 495.1
A22: Region1 | B22: 16 | C22: 80 | D22: 28 | E22: 680 | F22: 472.4
A23: Region1 | B23: 17 | C23: 80 | D23: 40 | E23: 288.7 | F23: 497.5
A24: Region1 | B24: 18 | C24: 60 | D24: 29 | E24: 265.7 | F24: 389.7
A25: Region1 | B25: 19 | C25: 70 | D25: 30 | E25: 416.1 | F25: 398.5
A26: Region1 | B26: 20 | C26: 45 | D26: 27 | E26: 303.4 | F26: 388.8
A27: Region1 | B27: 21 | C27: 60 | D27: 28 | E27: 307.4 | F27: 489.2
A28: Region1 | B28: 22 | C28: 120 | D28: 48 | E28: 179.4 | F28: 370.5
A29: Region1 | B29: 23 | C29: 80 | D29: 30 | E29: 273.8 | F29: 430.9
A30: Region1 | B30: 24 | C30: 75 | D30: 14 | E30: 590.6 | F30: 425.7
A31: Region1 | B31: 25 | C31: 50 | D31: 26 | E31: 333.6 | F31: 401
A32: Region1 | B32: 26 | C32: 180 | D32: 32 | E32: 244.5 | F32: 335.7
A33: Region1 | B33: 27 | C33: 65 | D33: 33 | E33: 232.9 | F33: 396.9
A34: Region1 | B34: 28 | C34: 65 | D34: 20 | E34: 336.5 | F34: 489
A35: Region1 | B35: 29 | C35: 65 | D35: 28 | E35: 320.4 | F35: 428.8
A36: Region1 | B36: 30 | C36: 75 | D36: 23 | E36: 284 | F36: 464
A37: Region1 | B37: 31 | C37: 55 | D37: 27 | E37: 416 | F37: 540
A38: Region1 | B38: 32 | C38: 180 | D38: 58 | E38: 357 | F38: 332
A39: Region1 | B39: 33 | C39: 135 | D39: 20 | E39: 485 | F39: 478.3
A40: Region1 | B40: 34 | C40: 70 | D40: 30 | E40: 416 | F40: 302
A41: Region1 | B41: 35 | C41: 71 | D41: 38 | E41: 342 | F41: 343
A42: Region1 | B42: 36 | C42: 95 | D42: 25 | E42: 435 | F42: 424
A43: Region1 | B43: 37 | C43: 50 | D43: 21 | E43: 789 | F43: 868
A44: Region1 | B44: 38 | C44: 75 | D44: 22 | E44: 741 | F44: 683
A45: Region1 | B45: 39 | C45: 70 | D45: 21 | E45: 517 | F45: 587
A46: Region1 | B46: 40 | C46: 70 | D46: 28 | E46: 520 | F46: 395
A47: Region1 | B47: 41 | C47: 70 | D47: 20 | E47: 681 | F47: 524
A48: Region1 | B48: 42 | C48: 65 | D48: 27 | E48: 453 | F48: 541
A49: Region1 | B49: 43 | C49: 50 | D49: 22 | E49: 535 | F49: 504
A50: Region1 | B50: 44 | C50: 70 | D50: 29 | E50: 728 | F50: 580
A51: Region1 | B51: 45 | C51: 70 | D51: 24 | E51: 669 | F51: 653
A52: Region1 | B52: 46 | C52: 70 | D52: 29 | E52: 458 | F52: 561
A53: Region1 | B53: 47 | C53: 75 | D53: 29 | E53: 632 | F53: 516
A54: Region1 | B54: 48 | C54: 60 | D54: 26 | E54: 622.8 | F54: 760
A55: Region1 | B55: 49 | C55: 95 | D55: 47 | E55: 282 | F55: 382
A56: Region1 | B56: 50 | C56: 150 | D56: 24 | E56: 436 | F56: 392
A57: Region1 | B57: 51 | C57: 70 | D57: 23 | E57: 839 | F57: 471
A58: Region1 | B58: 52 | C58: 70 | D58: 27 | E58: 892 | F58: 395
A59: Region1 | B59: 53 | C59: 80 | D59: 34 | E59: 279 | F59: 507
A60: Region1 | B60: 54 | C60: 75 | D60: 28 | E60: 574 | F60: 436
A61: Region1 | B61: 55 | C61: 60 | D61: 33 | E61: 384 | F61: 480
A62: Region1 | B62: 56 | C62: 60 | D62: 27 | E62: 488 | F62: 350
A63: Region1 | B63: 57 | C63: 75 | D63: 26 | E63: 485 | F63: 468
A64: Region1 | B64: 58 | C64: 60 | D64: 32 | E64: 223 | F64: 504
A65: Region1 | B65: 59 | C65: 50 | D65: 22 | E65: 460 | F65: 445
A66: Region1 | B66: 60 | C66: 55 | D66: 25 | E66: 273 | F66: 440
A67: Region1 | B67: 61 | C67: 60 | D67: 37 | E67: 115 | F67: 520
A68: Region1 | B68: 62 | C68: 70 | D68: 28 | E68: 149 | F68: 360
A69: Region1 | B69: 63 | C69: 65 | D69: 24 | E69: 204 | F69: 481
A70: Region2 | B70: mica | C70: na | D70: na | E70: 2309 | F70: 337.8
A71: Region2 | B71: mica | C71: na | D71: na | E71: 2637 | F71: 340
A72: Region2 | B72: mica | C72: na | D72: na | E72: 3292 | F72: 339.1
A73: Region2 | B73: mica | C73: na | D73: na | E73: 2603 | F73: 340.6
A74: Region2 | B74: mica | C74: na | D74: na | F74: 314
A75: Region2 | B75: 2 | C75: 140 | D75: 24 | E75: 307.3 | F75: 413.6
A76: Region2 | B76: 3 | C76: 170 | D76: 15 | E76: 290.1 | F76: 392.9
A77: Region2 | B77: 4 | C77: 185 | D77: 17 | E77: 281.3 | F77: 351.4
A78: Region2 | B78: 5 | C78: 120 | D78: 23 | E78: 306.7 | F78: 384
A79: Region2 | B79: 6 | C79: 110 | D79: 13 | E79: 212.7 | F79: 404
A80: Region2 | B80: 7 | C80: 95 | D80: 12 | E80: 212.3 | F80: 409
A81: Region2 | B81: 8 | C81: 130 | D81: 20 | E81: 220.1 | F81: 411.1
A82: Region2 | B82: 9 | C82: 85 | D82: 17 | E82: 398.7 | F82: 393
A83: Region2 | B83: 10 | C83: 85 | D83: 16 | E83: 404.8 | F83: 384.7
A84: Region2 | B84: 11 | C84: 135 | D84: 24 | E84: 286.5 | F84: 333
A85: Region2 | B85: 12 | C85: 140 | D85: 16 | E85: 234.5 | F85: 454
A86: Region2 | B86: 13 | C86: 165 | D86: 36 | E86: 227.6 | F86: 333
A87: Region2 | B87: 14 | C87: 75 | D87: 11 | E87: 300 | F87: 361
A88: Region2 | B88: 15 | C88: 90 | D88: 10 | E88: 214 | F88: 341
A89: Region2 | B89: 16 | C89: 100 | D89: 23 | E89: 112 | F89: 389
A90: Region2 | B90: 17 | C90: 75 | D90: 26 | E90: 232 | F90: 490
A91: Region2 | B91: 18 | C91: 190 | D91: 51 | E91: 108 | F91: 327
A92: Region2 | B92: 19 | C92: 65 | D92: 7 | E92: 317 | F92: 417
A93: Region2 | B93: 20 | C93: 110 | D93: 21 | E93: 139 | F93: 369
A94: Region2 | B94: 21 | C94: 175 | D94: 31 | E94: 208 | F94: 371
A95: Region2 | B95: 22 | C95: 135 | D95: 22 | E95: 191 | F95: 396
A96: Region2 | B96: 23 | C96: 120 | D96: 22 | E96: 127 | F96: 444
A97: Region2 | B97: 24 | C97: 60 | D97: 11 | E97: 217 | F97: 375
A98: Region2 | B98: 25 | C98: 105 | D98: 23 | E98: 179 | F98: 412
A99: Region2 | B99: 26 | C99: 80 | D99: 20 | E99: 348 | F99: 369
A100: Region2 | B100: 27 | C100: 135 | D100: 20 | E100: 492 | F100: 411
A101: Region2 | B101: 28 | C101: 85 | D101: 17 | E101: 195 | F101: 393
A102: Region2 | B102: 29 | C102: 110 | D102: 13 | E102: 143 | F102: 375
A103: Region2 | B103: 30 | C103: 345 | D103: 126 | E103: 577 | F103: 325
A104: Region2 | B104: 31 | C104: 175 | D104: 34 | E104: 196 | F104: 366
A105: Region2 | B105: 33 | C105: 50 | D105: 7 | E105: 501 | F105: 407
A106: Region2 | B106: 34 | C106: 120 | D106: 30 | E106: 197 | F106: 379
A107: Region2 | B107: 35 | C107: 85 | D107: 13 | E107: 261 | F107: 404
A108: Region2 | B108: 36 | C108: 110 | D108: 32 | E108: 312 | F108: 385
A109: Region2 | B109: 37 | C109: 80 | D109: 16 | E109: 284 | F109: 395
A110: Region2 | B110: 38 | C110: 105 | D110: 22 | E110: 172 | F110: 375
A111: Region2 | B111: 39 | C111: 65 | D111: 7 | E111: 128 | F111: 334
A112: Region2 | B112: 40 | C112: 100 | D112: 30 | E112: 378 | F112: 333
A113: Region2 | B113: 41 | C113: 80 | D113: 16 | E113: 141 | F113: 349
A114: Region2 | B114: 42 | C114: 105 | D114: 17 | E114: 289 | F114: 377
A115: Region2 | B115: 43 | C115: 105 | D115: 15 | E115: 182 | F115: 386
A116: Region2 | B116: 44 | C116: 65 | D116: 8 | E116: 257 | F116: 413
A117: Region2 | B117: 45 | C117: 240 | D117: 78 | E117: 353 | F117: 339
A118: Region2 | B118: 46 | C118: 110 | D118: 13 | E118: 163 | F118: 345
A119: Region2 | B119: 48 | C119: 120 | D119: 28 | E119: 504 | F119: 328
A120: Region2 | B120: 49 | C120: 100 | D120: 9 | E120: 226 | F120: 366
A121: Region2 | B121: 50 | C121: 90 | D121: 11 | E121: 161 | F121: 377
A122: Region2 | B122: 51 | C122: 75 | D122: 14 | E122: 354 | F122: 416
A123: Region2 | B123: 52 | C123: 95 | D123: 16 | E123: 206 | F123: 368
A124: Region2 | B124: 53 | C124: 115 | D124: 28 | E124: 239 | F124: 391
A125: Region2 | B125: 54 | C125: 120 | D125: 17 | E125: 481 | F125: 447
A126: Region2 | B126: 55 | C126: 135 | D126: 22 | E126: 166 | F126: 431
A127: Region2 | B127: 56 | C127: 95 | D127: 29 | E127: 216 | F127: 422
A128: Region2 | B128: 57 | C128: 80 | D128: 10 | E128: 286 | F128: 391
A129: Region2 | B129: 58 | C129: 80 | D129: 10 | E129: 139 | F129: 393
A130: Region2 | B130: 59 | C130: 85 | D130: 12 | E130: 313 | F130: 443
A131: Region2 | B131: 60 | C131: 70 | D131: 8 | E131: 374 | F131: 378
A132: Region2 | B132: 61 | C132: 85 | D132: 23 | E132: 242 | F132: 393
A133: Region2 | B133: 62 | C133: 95 | D133: 13 | E133: 157 | F133: 396
A134: Region2 | B134: 63 | C134: 60 | D134: 17 | E134: 129 | F134: 414
A135: Region2 | B135: 64 | C135: 140 | D135: 29 | E135: 325 | F135: 338
A136: Region2 | B136: 65 | C136: 125 | D136: 20 | E136: 192 | F136: 493
A137: Region2 | B137: 66 | C137: 90 | D137: 23 | E137: 287 | F137: 417
A138: Region2 | B138: 67 | C138: 80 | D138: 8 | E138: 180 | F138: 391
A139: Region2 | B139: 68 | C139: 85 | D139: 16 | E139: 284 | F139: 386
A140: Region2 | B140: 69 | C140: 95 | D140: 18 | E140: 209 | F140: 440
A141: Region2 | B141: 70 | C141: 150 | D141: 27 | E141: 91 | F141: 559
A142: Region2 | B142: 71 | C142: 95 | D142: 24 | E142: 161 | F142: 430
A143: Region2 | B143: 72 | C143: 85 | D143: 13 | E143: 130 | F143: 404
A144: Region2 | B144: 73 | C144: 65 | D144: 16 | E144: 288 | F144: 399
A145: Region2 | B145: 74 | C145: 50 | D145: 13 | E145: 460 | F145: 377
A146: Region2 | B146: 75 | C146: 90 | D146: 23 | E146: 318 | F146: 438
A147: Region2 | B147: 76 | C147: 75 | D147: 14 | E147: 204 | F147: 376
A148: Region2 | B148: 77 | C148: 70 | D148: 7 | E148: 246 | F148: 423
A149: Region2 | B149: 78 | C149: 85 | D149: 16 | E149: 287 | F149: 401
A150: Region2 | B150: 79 | C150: 85 | D150: 18 | E150: 230 | F150: 435
A151: Region2 | B151: 80 | C151: 65 | D151: 12 | E151: 287 | F151: 400

Sheet Fig6ab, S6
A1: femaleID | B1: Line | C1: replica | D1: treatment group | E1: timepoint | F1: eggs | G1: adults | H1: Female
A2: 1001 | B2: ALIX L1 | C2: 1 | D2: control | E2: 1 | F2: 0 | G2: 0 | H2: 1 | J2: Female ID | K2: Fly identifier
A3: 1001 | B3: ALIX L1 | C3: 1 | D3: control | E3: 2 | F3: 46 | G3: 19 | H3: 1 | J3: Line | K3: Alix, Rab11, Hrs and Rab7 in L1 and L2
A4: 1001 | B4: ALIX L1 | C4: 1 | D4: control | E4: 3 | F4: 43 | G4: 18 | H4: 1 | J4: Replicate | K4: 2022-05-01
A5: 1001 | B5: ALIX L1 | C5: 1 | D5: control | E5: 4 | F5: 63 | G5: 25 | H5: 1 | J5: Treatment | K5: Control or treatment (RNAi)
A6: 1001 | B6: ALIX L1 | C6: 1 | D6: control | E6: 5 | F6: 19 | G6: 0 | H6: 1 | J6: Timepoint | K6: 6, 24, 48, 72h and 8d
A7: 1002 | B7: ALIX L1 | C7: 1 | D7: control | E7: 1 | F7: 0 | G7: 0 | H7: 2 | J7: Eggs | K7: Number of eggs laid per female at the given time
A8: 1002 | B8: ALIX L1 | C8: 1 | D8: control | E8: 2 | F8: 37 | G8: 15 | H8: 2 | J8: Adults | K8: Number of adults eclosed of the given time
A9: 1002 | B9: ALIX L1 | C9: 1 | D9: control | E9: 3 | F9: 0 | G9: 0 | H9: 2 | J9: Female | K9: count of females
A10: 1002 | B10: ALIX L1 | C10: 1 | D10: control | E10: 4 | F10: 0 | G10: 0 | H10: 2
A11: 1002 | B11: ALIX L1 | C11: 1 | D11: control | E11: 5 | F11: 0 | G11: 0 | H11: 2
A12: 1003 | B12: ALIX L1 | C12: 1 | D12: control | E12: 1 | F12: 0 | G12: 0 | H12: 3
A13: 1003 | B13: ALIX L1 | C13: 1 | D13: control | E13: 2 | F13: 47 | G13: 25 | H13: 3
A14: 1003 | B14: ALIX L1 | C14: 1 | D14: control | E14: 3 | F14: 47 | G14: 18 | H14: 3
A15: 1003 | B15: ALIX L1 | C15: 1 | D15: control | E15: 4 | F15: 47 | G15: 29 | H15: 3
A16: 1003 | B16: ALIX L1 | C16: 1 | D16: control | E16: 5 | F16: 0 | G16: 0 | H16: 3
A17: 1004 | B17: ALIX L1 | C17: 1 | D17: control | E17: 1 | F17: 0 | G17: 0 | H17: 4
A18: 1004 | B18: ALIX L1 | C18: 1 | D18: control | E18: 2 | F18: 4 | G18: 0 | H18: 4
A19: 1004 | B19: ALIX L1 | C19: 1 | D19: control | E19: 3 | F19: 0 | G19: 0 | H19: 4
A20: 1004 | B20: ALIX L1 | C20: 1 | D20: control | E20: 4 | F20: 28 | G20: 0 | H20: 4
A21: 1004 | B21: ALIX L1 | C21: 1 | D21: control | E21: 5 | F21: 43 | G21: 0 | H21: 4
A22: 1005 | B22: ALIX L1 | C22: 1 | D22: control | E22: 1 | F22: 0 | G22: 0 | H22: 5
A23: 1005 | B23: ALIX L1 | C23: 1 | D23: control | E23: 2 | F23: 1 | G23: 0 | H23: 5
A24: 1005 | B24: ALIX L1 | C24: 1 | D24: control | E24: 3 | F24: 0 | G24: 0 | H24: 5
A25: 1005 | B25: ALIX L1 | C25: 1 | D25: control | E25: 4 | F25: 37 | G25: 0 | H25: 5
A26: 1005 | B26: ALIX L1 | C26: 1 | D26: control | E26: 5 | F26: 1 | G26: 0 | H26: 5
A27: 1006 | B27: ALIX L1 | C27: 1 | D27: control | E27: 1 | F27: 5 | G27: 0 | H27: 6
A28: 1006 | B28: ALIX L1 | C28: 1 | D28: control | E28: 2 | F28: 14 | G28: 9 | H28: 6
A29: 1006 | B29: ALIX L1 | C29: 1 | D29: control | E29: 3 | F29: 18 | G29: 9 | H29: 6
A30: 1006 | B30: ALIX L1 | C30: 1 | D30: control | E30: 4 | F30: 0 | G30: 0 | H30: 6
A31: 1006 | B31: ALIX L1 | C31: 1 | D31: control | E31: 5 | F31: 0 | G31: 0 | H31: 6
A32: 1007 | B32: ALIX L1 | C32: 1 | D32: control | E32: 1 | F32: 0 | G32: 0 | H32: 7
A33: 1007 | B33: ALIX L1 | C33: 1 | D33: control | E33: 2 | F33: 0 | G33: 0 | H33: 7
A34: 1007 | B34: ALIX L1 | C34: 1 | D34: control | E34: 3 | F34: 0 | G34: 0 | H34: 7
A35: 1007 | B35: ALIX L1 | C35: 1 | D35: control | E35: 4 | F35: 0 | G35: 0 | H35: 7
A36: 1007 | B36: ALIX L1 | C36: 1 | D36: control | E36: 5 | F36: 2 | G36: 0 | H36: 7
A37: 1008 | B37: ALIX L1 | C37: 1 | D37: control | E37: 1 | F37: 0 | G37: 0 | H37: 8
A38: 1008 | B38: ALIX L1 | C38: 1 | D38: control | E38: 2 | F38: 0 | G38: 0 | H38: 8
A39: 1008 | B39: ALIX L1 | C39: 1 | D39: control | E39: 3 | F39: 0 | G39: 0 | H39: 8
A40: 1008 | B40: ALIX L1 | C40: 1 | D40: control | E40: 4 | F40: 0 | G40: 0 | H40: 8
A41: 1008 | B41: ALIX L1 | C41: 1 | D41: control | E41: 5 | F41: 17 | G41: 0 | H41: 8
A42: 1009 | B42: ALIX L1 | C42: 1 | D42: control | E42: 1 | F42: 31 | G42: 9 | H42: 9
A43: 1009 | B43: ALIX L1 | C43: 1 | D43: control | E43: 2 | F43: 13 | G43: 9 | H43: 9
A44: 1009 | B44: ALIX L1 | C44: 1 | D44: control | E44: 3 | F44: 49 | G44: 23 | H44: 9
A45: 1009 | B45: ALIX L1 | C45: 1 | D45: control | E45: 4 | F45: 35 | G45: - | H45: 9
A46: 1009 | B46: ALIX L1 | C46: 1 | D46: control | E46: 5 | F46: 0 | G46: 0 | H46: 9
A47: 1010 | B47: ALIX L1 | C47: 1 | D47: control | E47: 1 | F47: 31 | G47: 19 | H47: 10
A48: 1010 | B48: ALIX L1 | C48: 1 | D48: control | E48: 2 | F48: 13 | G48: 10 | H48: 10
A49: 1010 | B49: ALIX L1 | C49: 1 | D49: control | E49: 3 | F49: 57 | G49: 31 | H49: 10
A50: 1010 | B50: ALIX L1 | C50: 1 | D50: control | E50: 4 | F50: 53 | G50: 30 | H50: 10
A51: 1010 | B51: ALIX L1 | C51: 1 | D51: control | E51: 5 | F51: 25 | G51: 0 | H51: 10
A52: 1011 | B52: ALIX L1 | C52: 1 | D52: control | E52: 1 | F52: 0 | G52: 0 | H52: 11
A53: 1011 | B53: ALIX L1 | C53: 1 | D53: control | E53: 2 | F53: 41 | G53: 25 | H53: 11
A54: 1011 | B54: ALIX L1 | C54: 1 | D54: control | E54: 3 | F54: 30 | G54: 18 | H54: 11
A55: 1011 | B55: ALIX L1 | C55: 1 | D55: control | E55: 4 | F55: 51 | G55: 27 | H55: 11
A56: 1011 | B56: ALIX L1 | C56: 1 | D56: control | E56: 5 | F56: 35 | G56: 22 | H56: 11
A57: 1012 | B57: ALIX L1 | C57: 1 | D57: control | E57: 1 | F57: 0 | G57: 0 | H57: 12
A58: 1012 | B58: ALIX L1 | C58: 1 | D58: control | E58: 2 | F58: 41 | G58: 20 | H58: 12
A59: 1012 | B59: ALIX L1 | C59: 1 | D59: control | E59: 3 | F59: 40 | G59: 25 | H59: 12
A60: 1012 | B60: ALIX L1 | C60: 1 | D60: control | E60: 4 | F60: 40 | G60: 21 | H60: 12
A61: 1012 | B61: ALIX L1 | C61: 1 | D61: control | E61: 5 | F61: 12 | G61: 6 | H61: 12
A62: 1013 | B62: ALIX L1 | C62: 1 | D62: control | E62: 1 | F62: 0 | G62: 0 | H62: 13
A63: 1013 | B63: ALIX L1 | C63: 1 | D63: control | E63: 2 | F63: 52 | G63: 33 | H63: 13
A64: 1013 | B64: ALIX L1 | C64: 1 | D64: control | E64: 3 | F64: 49 | G64: 32 | H64: 13
A65: 1013 | B65: ALIX L1 | C65: 1 | D65: control | E65: 4 | F65: 63 | G65: 36 | H65: 13
A66: 1013 | B66: ALIX L1 | C66: 1 | D66: control | E66: 5 | F66: 27 | G66: 0 | H66: 13
A67: 1014 | B67: ALIX L1 | C67: 1 | D67: control | E67: 1 | F67: 0 | G67: 0 | H67: 14
A68: 1014 | B68: ALIX L1 | C68: 1 | D68: control | E68: 2 | F68: 47 | G68: 32 | H68: 14
A69: 1014 | B69: ALIX L1 | C69: 1 | D69: control | E69: 3 | F69: 28 | G69: 19 | H69: 14
A70: 1014 | B70: ALIX L1 | C70: 1 | D70: control | E70: 4 | F70: 1 | G70: 0 | H70: 14
A71: 1014 | B71: ALIX L1 | C71: 1 | D71: control | E71: 5 | F71: 1 | G71: 0 | H71: 14
A72: 1015 | B72: ALIX L1 | C72: 1 | D72: control | E72: 1 | F72: 0 | G72: 0 | H72: 15
A73: 1015 | B73: ALIX L1 | C73: 1 | D73: control | E73: 2 | F73: 0 | G73: 0 | H73: 15
A74: 1015 | B74: ALIX L1 | C74: 1 | D74: control | E74: 3 | F74: 0 | G74: 0 | H74: 15
A75: 1015 | B75: ALIX L1 | C75: 1 | D75: control | E75: 4 | F75: 36 | G75: 0 | H75: 15
A76: 1015 | B76: ALIX L1 | C76: 1 | D76: control | E76: 5 | F76: 0 | G76: 0 | H76: 15
A77: 1016 | B77: ALIX L1 | C77: 1 | D77: control | E77: 1 | F77: 0 | G77: 0 | H77: 16
A78: 1016 | B78: ALIX L1 | C78: 1 | D78: control | E78: 2 | F78: 59 | G78: 36 | H78: 16
A79: 1016 | B79: ALIX L1 | C79: 1 | D79: control | E79: 3 | F79: 48 | G79: 30 | H79: 16
A80: 1016 | B80: ALIX L1 | C80: 1 | D80: control | E80: 4 | F80: 65 | G80: 39 | H80: 16
A81: 1016 | B81: ALIX L1 | C81: 1 | D81: control | E81: 5 | F81: 56 | G81: 12 | H81: 16
A82: 1017 | B82: ALIX L1 | C82: 1 | D82: control | E82: 1 | F82: 27 | G82: 14 | H82: 17
A83: 1017 | B83: ALIX L1 | C83: 1 | D83: control | E83: 2 | F83: 11 | G83: 5 | H83: 17
A84: 1017 | B84: ALIX L1 | C84: 1 | D84: control | E84: 3 | F84: 46 | G84: 22 | H84: 17
A85: 1017 | B85: ALIX L1 | C85: 1 | D85: control | E85: 4 | F85: 41 | G85: 20 | H85: 17
A86: 1017 | B86: ALIX L1 | C86: 1 | D86: control | E86: 5 | F86: 11 | G86: 0 | H86: 17
A87: 1018 | B87: ALIX L1 | C87: 1 | D87: control | E87: 1 | F87: 0 | G87: 0 | H87: 18
A88: 1018 | B88: ALIX L1 | C88: 1 | D88: control | E88: 2 | F88: - | G88: - | H88: 18
A89: 1018 | B89: ALIX L1 | C89: 1 | D89: control | E89: 3 | F89: - | G89: - | H89: 18
A90: 1018 | B90: ALIX L1 | C90: 1 | D90: control | E90: 4 | F90: - | G90: - | H90: 18
A91: 1018 | B91: ALIX L1 | C91: 1 | D91: control | E91: 5 | F91: - | G91: - | H91: 18
A92: 1019 | B92: ALIX L1 | C92: 1 | D92: control | E92: 1 | F92: 0 | G92: 0 | H92: 19
A93: 1019 | B93: ALIX L1 | C93: 1 | D93: control | E93: 2 | F93: - | G93: - | H93: 19
A94: 1019 | B94: ALIX L1 | C94: 1 | D94: control | E94: 3 | F94: - | G94: - | H94: 19
A95: 1019 | B95: ALIX L1 | C95: 1 | D95: control | E95: 4 | F95: - | G95: - | H95: 19
A96: 1019 | B96: ALIX L1 | C96: 1 | D96: control | E96: 5 | F96: - | G96: - | H96: 19
A97: 1020 | B97: ALIX L1 | C97: 1 | D97: control | E97: 1 | F97: 25 | G97: 15 | H97: 20
A98: 1020 | B98: ALIX L1 | C98: 1 | D98: control | E98: 2 | F98: 14 | G98: 4 | H98: 20
A99: 1020 | B99: ALIX L1 | C99: 1 | D99: control | E99: 3 | F99: 52 | G99: 22 | H99: 20
A100: 1020 | B100: ALIX L1 | C100: 1 | D100: control | E100: 4 | F100: 51 | G100: 20 | H100: 20
A101: 1020 | B101: ALIX L1 | C101: 1 | D101: control | E101: 5 | F101: 0 | G101: 0 | H101: 20
A102: 1021 | B102: ALIX L1 | C102: 1 | D102: control | E102: 1 | F102: 0 | G102: 0 | H102: 21
A103: 1021 | B103: ALIX L1 | C103: 1 | D103: control | E103: 2 | F103: 34 | G103: 14 | H103: 21
A104: 1021 | B104: ALIX L1 | C104: 1 | D104: control | E104: 3 | F104: 19 | G104: 11 | H104: 21
A105: 1021 | B105: ALIX L1 | C105: 1 | D105: control | E105: 4 | F105: 45 | G105: 24 | H105: 21
A106: 1021 | B106: ALIX L1 | C106: 1 | D106: control | E106: 5 | F106: 32 | G106: 0 | H106: 21
A107: 1022 | B107: ALIX L1 | C107: 1 | D107: control | E107: 1 | F107: 7 | G107: 4 | H107: 22
A108: 1022 | B108: ALIX L1 | C108: 1 | D108: control | E108: 2 | F108: 44 | G108: 30 | H108: 22
A109: 1022 | B109: ALIX L1 | C109: 1 | D109: control | E109: 3 | F109: 59 | G109: 27 | H109: 22
A110: 1022 | B110: ALIX L1 | C110: 1 | D110: control | E110: 4 | F110: 53 | G110: 25 | H110: 22
A111: 1022 | B111: ALIX L1 | C111: 1 | D111: control | E111: 5 | F111: 0 | G111: 0 | H111: 22
A112: 1023 | B112: ALIX L1 | C112: 1 | D112: control | E112: 1 | F112: 0 | G112: 0 | H112: 23
A113: 1023 | B113: ALIX L1 | C113: 1 | D113: control | E113: 2 | F113: - | G113: - | H113: 23
A114: 1023 | B114: ALIX L1 | C114: 1 | D114: control | E114: 3 | F114: - | G114: - | H114: 23
A115: 1023 | B115: ALIX L1 | C115: 1 | D115: control | E115: 4 | F115: - | G115: - | H115: 23
A116: 1023 | B116: ALIX L1 | C116: 1 | D116: control | E116: 5 | F116: - | G116: - | H116: 23
A117: 1024 | B117: ALIX L1 | C117: 1 | D117: control | E117: 1 | F117: 0 | G117: 0 | H117: 24
A118: 1024 | B118: ALIX L1 | C118: 1 | D118: control | E118: 2 | F118: 22 | G118: 4 | H118: 24
A119: 1024 | B119: ALIX L1 | C119: 1 | D119: control | E119: 3 | F119: 19 | G119: 11 | H119: 24
A120: 1024 | B120: ALIX L1 | C120: 1 | D120: control | E120: 4 | F120: 35 | G120: 21 | H120: 24
A121: 1024 | B121: ALIX L1 | C121: 1 | D121: control | E121: 5 | F121: 0 | G121: 0 | H121: 24
A122: 1025 | B122: ALIX L1 | C122: 1 | D122: control | E122: 1 | F122: 0 | G122: 0 | H122: 25
A123: 1025 | B123: ALIX L1 | C123: 1 | D123: control | E123: 2 | F123: 37 | G123: 20 | H123: 25
A124: 1025 | B124: ALIX L1 | C124: 1 | D124: control | E124: 3 | F124: 45 | G124: 26 | H124: 25
A125: 1025 | B125: ALIX L1 | C125: 1 | D125: control | E125: 4 | F125: 58 | G125: 38 | H125: 25
A126: 1025 | B126: ALIX L1 | C126: 1 | D126: control | E126: 5 | F126: 80 | G126: 0 | H126: 25
A127: 1026 | B127: ALIX L1 | C127: 1 | D127: control | E127: 1 | F127: 0 | G127: 0 | H127: 26
A128: 1026 | B128: ALIX L1 | C128: 1 | D128: control | E128: 2 | F128: 0 | G128: 0 | H128: 26
A129: 1026 | B129: ALIX L1 | C129: 1 | D129: control | E129: 3 | F129: - | G129: - | H129: 26
A130: 1026 | B130: ALIX L1 | C130: 1 | D130: control | E130: 4 | F130: - | G130: - | H130: 26
A131: 1026 | B131: ALIX L1 | C131: 1 | D131: control | E131: 5 | F131: - | G131: - | H131: 26
A132: 1101 | B132: ALIX L1 | C132: 2 | D132: control | E132: 1 | F132: 2 | G132: 1 | H132: 27
A133: 1101 | B133: ALIX L1 | C133: 2 | D133: control | E133: 2 | F133: 9 | G133: 6 | H133: 27
A134: 1101 | B134: ALIX L1 | C134: 2 | D134: control | E134: 3 | F134: 33 | G134: 26 | H134: 27
A135: 1101 | B135: ALIX L1 | C135: 2 | D135: control | E135: 4 | F135: 19 | G135: 11 | H135: 27
A136: 1101 | B136: ALIX L1 | C136: 2 | D136: control | E136: 5 | F136: 0 | G136: 0 | H136: 27
A137: 1102 | B137: ALIX L1 | C137: 2 | D137: control | E137: 1 | F137: 23 | G137: 12 | H137: 28
A138: 1102 | B138: ALIX L1 | C138: 2 | D138: control | E138: 2 | F138: 24 | G138: 14 | H138: 28
A139: 1102 | B139: ALIX L1 | C139: 2 | D139: control | E139: 3 | F139: 36 | G139: 22 | H139: 28
A140: 1102 | B140: ALIX L1 | C140: 2 | D140: control | E140: 4 | F140: 44 | G140: 26 | H140: 28
A141: 1102 | B141: ALIX L1 | C141: 2 | D141: control | E141: 5 | F141: 0 | G141: 0 | H141: 28
A142: 1103 | B142: ALIX L1 | C142: 2 | D142: control | E142: 1 | F142: 0 | G142: 0 | H142: 29
A143: 1103 | B143: ALIX L1 | C143: 2 | D143: control | E143: 2 | F143: 0 | G143: 0 | H143: 29
A144: 1103 | B144: ALIX L1 | C144: 2 | D144: control | E144: 3 | F144: 1 | G144: 1 | H144: 29
A145: 1103 | B145: ALIX L1 | C145: 2 | D145: control | E145: 4 | F145: 0 | G145: 0 | H145: 29
A146: 1103 | B146: ALIX L1 | C146: 2 | D146: control | E146: 5 | F146: 1 | G146: 0 | H146: 29
A147: 1104 | B147: ALIX L1 | C147: 2 | D147: control | E147: 1 | F147: 21 | G147: 17 | H147: 30
A148: 1104 | B148: ALIX L1 | C148: 2 | D148: control | E148: 2 | F148: 6 | G148: 2 | H148: 30
A149: 1104 | B149: ALIX L1 | C149: 2 | D149: control | E149: 3 | F149: 50 | G149: 27 | H149: 30
A150: 1104 | B150: ALIX L1 | C150: 2 | D150: control | E150: 4 | F150: 18 | G150: 7 | H150: 30
A151: 1104 | B151: ALIX L1 | C151: 2 | D151: control | E151: 5 | F151: 0 | G151: 0 | H151: 30
A152: 1105 | B152: ALIX L1 | C152: 2 | D152: control | E152: 1 | F152: 18 | G152: 12 | H152: 31
A153: 1105 | B153: ALIX L1 | C153: 2 | D153: control | E153: 2 | F153: 14 | G153: 6 | H153: 31
A154: 1105 | B154: ALIX L1 | C154: 2 | D154: control | E154: 3 | F154: 34 | G154: 20 | H154: 31
A155: 1105 | B155: ALIX L1 | C155: 2 | D155: control | E155: 4 | F155: 46 | G155: 28 | H155: 31
A156: 1105 | B156: ALIX L1 | C156: 2 | D156: control | E156: 5 | F156: 0 | G156: 0 | H156: 31
A157: 1106 | B157: ALIX L1 | C157: 2 | D157: control | E157: 1 | F157: 2 | G157: 1 | H157: 32
A158: 1106 | B158: ALIX L1 | C158: 2 | D158: control | E158: 2 | F158: 29 | G158: 15 | H158: 32
A159: 1106 | B159: ALIX L1 | C159: 2 | D159: control | E159: 3 | F159: 13 | G159: 10 | H159: 32
A160: 1106 | B160: ALIX L1 | C160: 2 | D160: control | E160: 4 | F160: 0 | G160: 0 | H160: 32
A161: 1106 | B161: ALIX L1 | C161: 2 | D161: control | E161: 5 | F161: 0 | G161: 0 | H161: 32
A162: 1107 | B162: ALIX L1 | C162: 2 | D162: control | E162: 1 | F162: 20 | G162: 9 | H162: 33
A163: 1107 | B163: ALIX L1 | C163: 2 | D163: control | E163: 2 | F163: 8 | G163: 5 | H163: 33
A164: 1107 | B164: ALIX L1 | C164: 2 | D164: control | E164: 3 | F164: 40 | G164: 21 | H164: 33
A165: 1107 | B165: ALIX L1 | C165: 2 | D165: control | E165: 4 | F165: 50 | G165: 30 | H165: 33
A166: 1107 | B166: ALIX L1 | C166: 2 | D166: control | E166: 5 | F166: 0 | G166: 0 | H166: 33
A167: 1108 | B167: ALIX L1 | C167: 2 | D167: control | E167: 1 | F167: 0 | G167: 0 | H167: 34
A168: 1108 | B168: ALIX L1 | C168: 2 | D168: control | E168: 2 | F168: 34 | G168: 20 | H168: 34
A169: 1108 | B169: ALIX L1 | C169: 2 | D169: control | E169: 3 | F169: 33 | G169: 21 | H169: 34
A170: 1108 | B170: ALIX L1 | C170: 2 | D170: control | E170: 4 | F170: 40 | G170: 22 | H170: 34
A171: 1108 | B171: ALIX L1 | C171: 2 | D171: control | E171: 5 | F171: 0 | G171: 0 | H171: 34
A172: 1109 | B172: ALIX L1 | C172: 2 | D172: control | E172: 1 | F172: 24 | G172: 15 | H172: 35
A173: 1109 | B173: ALIX L1 | C173: 2 | D173: control | E173: 2 | F173: 1 | G173: 0 | H173: 35
A174: 1109 | B174: ALIX L1 | C174: 2 | D174: control | E174: 3 | F174: 53 | G174: 28 | H174: 35
A175: 1109 | B175: ALIX L1 | C175: 2 | D175: control | E175: 4 | F175: 39 | G175: 28 | H175: 35
A176: 1109 | B176: ALIX L1 | C176: 2 | D176: control | E176: 5 | F176: 0 | G176: 0 | H176: 35
A177: 1110 | B177: ALIX L1 | C177: 2 | D177: control | E177: 1 | F177: 29 | G177: 16 | H177: 36
A178: 1110 | B178: ALIX L1 | C178: 2 | D178: control | E178: 2 | F178: 11 | G178: 5 | H178: 36
A179: 1110 | B179: ALIX L1 | C179: 2 | D179: control | E179: 3 | F179: 45 | G179: 23 | H179: 36
A180: 1110 | B180: ALIX L1 | C180: 2 | D180: control | E180: 4 | F180: 57 | G180: 41 | H180: 36
A181: 1110 | B181: ALIX L1 | C181: 2 | D181: control | E181: 5 | F181: 0 | G181: 0 | H181: 36
A182: 1111 | B182: ALIX L1 | C182: 2 | D182: control | E182: 1 | F182: 27 | G182: 17 | H182: 37
A183: 1111 | B183: ALIX L1 | C183: 2 | D183: control | E183: 2 | F183: 11 | G183: 4 | H183: 37
A184: 1111 | B184: ALIX L1 | C184: 2 | D184: control | E184: 3 | F184: 42 | G184: 26 | H184: 37
A185: 1111 | B185: ALIX L1 | C185: 2 | D185: control | E185: 4 | F185: 52 | G185: 28 | H185: 37
A186: 1111 | B186: ALIX L1 | C186: 2 | D186: control | E186: 5 | F186: 0 | G186: 0 | H186: 37
A187: 1112 | B187: ALIX L1 | C187: 2 | D187: control | E187: 1 | F187: 27 | G187: 14 | H187: 38
A188: 1112 | B188: ALIX L1 | C188: 2 | D188: control | E188: 2 | F188: 10 | G188: 5 | H188: 38
A189: 1112 | B189: ALIX L1 | C189: 2 | D189: control | E189: 3 | F189: 42 | G189: 30 | H189: 38
A190: 1112 | B190: ALIX L1 | C190: 2 | D190: control | E190: 4 | F190: 53 | G190: 24 | H190: 38
A191: 1112 | B191: ALIX L1 | C191: 2 | D191: control | E191: 5 | F191: 0 | G191: 0 | H191: 38
A192: 1113 | B192: ALIX L1 | C192: 2 | D192: control | E192: 1 | F192: 24 | G192: 13 | H192: 39
A193: 1113 | B193: ALIX L1 | C193: 2 | D193: control | E193: 2 | F193: 9 | G193: 9 | H193: 39
A194: 1113 | B194: ALIX L1 | C194: 2 | D194: control | E194: 3 | F194: 47 | G194: 22 | H194: 39
A195: 1113 | B195: ALIX L1 | C195: 2 | D195: control | E195: 4 | F195: 51 | G195: 31 | H195: 39
A196: 1113 | B196: ALIX L1 | C196: 2 | D196: control | E196: 5 | F196: 0 | G196: 0 | H196: 39
A197: 1114 | B197: ALIX L1 | C197: 2 | D197: control | E197: 1 | F197: 21 | G197: 7 | H197: 40
A198: 1114 | B198: ALIX L1 | C198: 2 | D198: control | E198: 2 | F198: 10 | G198: 4 | H198: 40
A199: 1114 | B199: ALIX L1 | C199: 2 | D199: control | E199: 3 | F199: 43 | G199: 27 | H199: 40
A200: 1114 | B200: ALIX L1 | C200: 2 | D200: control | E200: 4 | F200: 48 | G200: 27 | H200: 40
... 8641 more rows

Sheet Fig6c
A1: Line | B1: Count | C1: Spt | D1: Volume | E1: Number
A2: Alix24 | B2: 15 | C2: a | D2: 0.83 | E2: 1.43
A3: Alix24 | B3: 15 | C3: b | D3: 1.13 | E3: 1.06 | G3: Line | H3: RNAi lines and controls
A4: Alix24 | B4: 16 | C4: a | D4: 0.83 | E4: 1.70 | H4: Alix, Hrs, Rab11 and Rab7
A5: Alix24 | B5: 16 | C5: b | D5: 1.08 | E5: 0.86 | G5: Count | H5: Number of fly
A6: Alix24 | B6: 17 | C6: a | D6: 0.93 | E6: 0.46 | G6: Spt | H6: Spermatheca in the pair a or b
A7: Alix24 | B7: 17 | C7: b | D7: 1.10 | E7: 0.34 | G7: Volume | H7: Mean volume of particles per spermatheca
A8: Alix24 | B8: 18 | C8: a | D8: 1.29 | E8: 0.77 | G8: Number | H8: Mean size of particles per spermatheca
A9: Alix24 | B9: 18 | C9: b | D9: 0.84 | E9: 0.25
A10: Alix24 | B10: 19 | C10: a | D10: 1.20 | E10: 0.57
A11: Alix24 | B11: 19 | C11: b | D11: 0.79 | E11: 0.54
A12: Alix24 | B12: 20 | C12: a | D12: 1.14 | E12: 1.30
A13: Alix24 | B13: 20 | C13: b | D13: 1.00 | E13: 0.88
A14: Alix24 | B14: 21 | C14: b | D14: 0.57 | E14: 0.30
A15: Alix24 | B15: 22 | C15: a | D15: 1.30 | E15: 0.64
A16: Alix24 | B16: 22 | C16: b | D16: 1.26 | E16: 0.63
A17: Alix24 | B17: 23 | C17: a | D17: 0.61 | E17: 0.74
A18: Alix24 | B18: 23 | C18: b | D18: 1.28 | E18: 0.22
A19: Alix24 | B19: 24 | C19: a | D19: 0.59 | E19: 1.08
A20: Alix24 | B20: 24 | C20: b | D20: 1.39 | E20: 0.55
A21: Alix24 | B21: 25 | C21: a | D21: 1.16 | E21: 0.88
A22: Alix24 | B22: 25 | C22: b | D22: 0.71 | E22: 0.77
A23: Alix24 | B23: 26 | C23: a | D23: 1.08 | E23: 0.54
A24: Alix24 | B24: 26 | C24: b | D24: 1.14 | E24: 0.37
A25: Alix24 | B25: 27 | C25: a | D25: 1.51 | E25: 0.57
A26: Alix24 | B26: 27 | C26: b | D26: 1.27 | E26: 0.21
A27: Alix24 | B27: 28 | C27: a | D27: 0.52 | E27: 1.06
A28: AlixCtrl | B28: 1 | C28: a | D28: 1.10 | E28: 1.01
A29: AlixCtrl | B29: 1 | C29: b | D29: 0.74 | E29: 1.00
A30: AlixCtrl | B30: 2 | C30: a | D30: 0.98 | E30: 1.74
A31: AlixCtrl | B31: 2 | C31: b | D31: 0.83 | E31: 1.37
A32: AlixCtrl | B32: 3 | C32: a | D32: 1.06 | E32: 1.28
A33: AlixCtrl | B33: 3 | C33: b | D33: 0.92 | E33: 1.27
A34: AlixCtrl | B34: 4 | C34: a | D34: 0.81 | E34: 1.76
A35: AlixCtrl | B35: 4 | C35: b | D35: 0.83 | E35: 0.83
A36: AlixCtrl | B36: 5 | C36: a | D36: 0.91 | E36: 1.32
A37: AlixCtrl | B37: 5 | C37: b | D37: 0.92 | E37: 1.12
A38: AlixCtrl | B38: 6 | C38: a | D38: 1.24 | E38: 0.71
A39: AlixCtrl | B39: 6 | C39: b | D39: 0.81 | E39: 0.24
A40: AlixCtrl | B40: 7 | C40: a | D40: 1.49 | E40: 1.84
A41: AlixCtrl | B41: 7 | C41: b | D41: 1.09 | E41: 0.84
A42: AlixCtrl | B42: 8 | C42: a | D42: 1.46 | E42: 0.75
A43: AlixCtrl | B43: 8 | C43: b | D43: 0.79 | E43: 0.62
A44: AlixCtrl | B44: 9 | C44: a | D44: 1.76 | E44: 0.84
A45: AlixCtrl | B45: 9 | C45: b | D45: 1.54 | E45: 0.73
A46: AlixCtrl | B46: 10 | C46: a | D46: 1.19 | E46: 0.88
A47: AlixCtrl | B47: 10 | C47: b | D47: 0.71 | E47: 0.44
A48: AlixCtrl | B48: 11 | C48: a | D48: 1.03 | E48: 1.85
A49: AlixCtrl | B49: 11 | C49: b | D49: 0.57 | E49: 1.00
A50: AlixCtrl | B50: 12 | C50: a | D50: 1.17 | E50: 1.46
A51: AlixCtrl | B51: 12 | C51: b | D51: 0.95 | E51: 0.31
A52: AlixCtrl | B52: 13 | C52: a | D52: 0.66 | E52: 0.90
A53: AlixCtrl | B53: 13 | C53: b | D53: 0.62 | E53: 0.56
A54: AlixCtrl | B54: 14 | C54: b | D54: 0.82 | E54: 0.33
A55: HrsCtrl | B55: 70 | C55: a | D55: 0.61 | E55: 0.84
A56: HrsCtrl | B56: 70 | C56: b | D56: 0.38 | E56: 0.52
A57: HrsCtrl | B57: 71 | C57: a | D57: 0.86 | E57: 1.14
A58: HrsCtrl | B58: 71 | C58: b | D58: 0.75 | E58: 1.04
A59: HrsCtrl | B59: 72 | C59: a | D59: 0.99 | E59: 0.70
A60: HrsCtrl | B60: 72 | C60: b | D60: 1.17 | E60: 0.25
A61: HrsCtrl | B61: 73 | C61: a | D61: 0.98 | E61: 0.73
A62: HrsCtrl | B62: 73 | C62: b | D62: 0.83 | E62: 0.58
A63: HrsCtrl | B63: 74 | C63: a | D63: 0.45 | E63: 0.26
A64: HrsCtrl | B64: 74 | C64: b | D64: 0.24 | E64: 0.25
A65: HrsCtrl | B65: 75 | C65: a | D65: 0.92 | E65: 2.39
A66: HrsCtrl | B66: 75 | C66: b | D66: 1.46 | E66: 1.35
A67: HrsCtrl | B67: 76 | C67: a | D67: 0.98 | E67: 3.13
A68: HrsCtrl | B68: 77 | C68: a | D68: 2.24 | E68: 1.44
A69: HrsCtrl | B69: 77 | C69: b | D69: 1.86 | E69: 1.39
A70: HrsCtrl | B70: 78 | C70: a | D70: 1.06 | E70: 0.20
A71: HrsCtrl | B71: 78 | C71: b | D71: 0.24 | E71: 0.38
A72: HrsCtrl | B72: 79 | C72: a | D72: 1.09 | E72: 1.37
A73: HrsCtrl | B73: 80 | C73: a | D73: 1.57 | E73: 1.05
A74: HrsCtrl | B74: 80 | C74: b | D74: 1.34 | E74: 0.97
A75: Rab11Ctrl | B75: 29 | C75: a | D75: 1.02 | E75: 1.30
A76: Rab11Ctrl | B76: 29 | C76: b | D76: 1.15 | E76: 1.21
A77: Rab11Ctrl | B77: 30 | C77: a | D77: 1.28 | E77: 1.55
A78: Rab11Ctrl | B78: 30 | C78: b | D78: 0.47 | E78: 0.14
A79: Rab11Ctrl | B79: 31 | C79: a | D79: 1.15 | E79: 1.12
A80: Rab11Ctrl | B80: 31 | C80: b | D80: 0.74 | E80: 0.55
A81: Rab11Ctrl | B81: 32 | C81: a | D81: 0.74 | E81: 0.55
A82: Rab11Ctrl | B82: 32 | C82: b | D82: 0.43 | E82: 0.56
A83: Rab11Ctrl | B83: 33 | C83: a | D83: 0.98 | E83: 0.96
A84: Rab11Ctrl | B84: 34 | C84: a | D84: 1.08 | E84: 1.62
A85: Rab11Ctrl | B85: 34 | C85: b | D85: 1.49 | E85: 0.82
A86: Rab11Ctrl | B86: 35 | C86: a | D86: 1.38 | E86: 1.32
A87: Rab11Ctrl | B87: 35 | C87: b | D87: 2.15 | E87: 0.61
A88: Rab11Ctrl | B88: 36 | C88: b | D88: 1.30 | E88: 0.87
A89: Rab11Ctrl | B89: 37 | C89: a | D89: 1.08 | E89: 1.85
A90: Rab11Ctrl | B90: 37 | C90: b | D90: 1.23 | E90: 1.29
A91: Rab11Ctrl | B91: 38 | C91: a | D91: 0.77 | E91: 1.35
A92: Rab11Ctrl | B92: 38 | C92: b | D92: 0.96 | E92: 1.02
A93: Rab11Ctrl | B93: 39 | C93: a | D93: 1.01 | E93: 0.78
A94: Rab11Ctrl | B94: 39 | C94: b | D94: 0.63 | E94: 0.69
A95: Rab11Ctrl | B95: 40 | C95: a | D95: 1.05 | E95: 1.14
A96: Rab11Ctrl | B96: 40 | C96: b | D96: 0.91 | E96: 0.96
A97: Rab11Ctrl | B97: 41 | C97: a | D97: 0.79 | E97: 1.44
A98: Rab11Ctrl | B98: 41 | C98: b | D98: 0.65 | E98: 0.62
A99: Rab11Ctrl | B99: 42 | C99: a | D99: 0.65 | E99: 0.83
A100: Rab11Ctrl | B100: 42 | C100: b | D100: 0.82 | E100: 0.81
A101: Rab11Ctrl | B101: 43 | C101: a | D101: 1.09 | E101: 1.23
A102: Rab11Ctrl | B102: 43 | C102: b | D102: 0.99 | E102: 0.82
A103: Rab7Ctrl | B103: 44 | C103: a | D103: 0.68 | E103: 2.29
A104: Rab7Ctrl | B104: 44 | C104: b | D104: 0.92 | E104: 1.93
A105: Rab7Ctrl | B105: 45 | C105: b | D105: 1.01 | E105: 1.29
A106: Rab7Ctrl | B106: 46 | C106: a | D106: 1.33 | E106: 1.97
A107: Rab7Ctrl | B107: 46 | C107: b | D107: 1.31 | E107: 1.83
A108: Rab7Ctrl | B108: 47 | C108: a | D108: 0.78 | E108: 1.30
A109: Rab7Ctrl | B109: 47 | C109: b | D109: 0.47 | E109: 0.70
A110: Rab7Ctrl | B110: 48 | C110: b | D110: 1.11 | E110: 1.07
A111: Rab7Ctrl | B111: 49 | C111: a | D111: 0.41 | E111: 0.47
A112: Rab7Ctrl | B112: 49 | C112: b | D112: 0.72 | E112: 0.33
A113: Rab7Ctrl | B113: 50 | C113: a | D113: 0.75 | E113: 0.47
A114: Rab7Ctrl | B114: 50 | C114: b | D114: 0.61 | E114: 0.34
A115: Rab7Ctrl | B115: 51 | C115: a | D115: 1.17 | E115: 1.56
A116: Rab7Ctrl | B116: 51 | C116: b | D116: 1.25 | E116: 0.22
A117: Rab7Ctrl | B117: 52 | C117: a | D117: 1.00 | E117: 1.51
A118: Rab7Ctrl | B118: 52 | C118: b | D118: 1.19 | E118: 0.94
A119: Rab7Ctrl | B119: 53 | C119: a | D119: 1.29 | E119: 0.88
A120: Rab7Ctrl | B120: 53 | C120: b | D120: 1.60 | E120: 0.41
A121: Rab7Ctrl | B121: 54 | C121: a | D121: 0.74 | E121: 0.71
A122: Rab7Ctrl | B122: 54 | C122: b | D122: 1.22 | E122: 0.55
A123: Rab7Ctrl | B123: 55 | C123: a | D123: 1.08 | E123: 0.77
A124: Rab7Ctrl | B124: 55 | C124: b | D124: 1.35 | E124: 0.48
A125: Hrs | B125: 81 | C125: b | D125: 0.94 | E125: 0.97
A126: Hrs | B126: 82 | C126: a | D126: 0.99 | E126: 2.60
A127: Hrs | B127: 82 | C127: b | D127: 0.55 | E127: 2.01
A128: Hrs | B128: 83 | C128: a | D128: 0.54 | E128: 0.86
A129: Hrs | B129: 83 | C129: b | D129: 0.45 | E129: 0.58
A130: Hrs | B130: 84 | C130: a | D130: 1.70 | E130: 1.72
A131: Hrs | B131: 84 | C131: b | D131: 1.78 | E131: 0.82
A132: Hrs | B132: 85 | C132: a | D132: 0.24 | E132: 0.27
A133: Hrs | B133: 85 | C133: b | D133: 0.24 | E133: 0.25
A134: Hrs | B134: 86 | C134: a | D134: 1.11 | E134: 1.80
A135: Hrs | B135: 86 | C135: b | D135: 1.66 | E135: 0.80
A136: Hrs | B136: 87 | C136: a | D136: 1.53 | E136: 0.46
A137: Hrs | B137: 87 | C137: b | D137: 0.71 | E137: 0.26
A138: Hrs | B138: 88 | C138: b | D138: 1.43 | E138: 0.78
A139: Hrs | B139: 89 | C139: a | D139: 1.03 | E139: 1.87
A140: Hrs | B140: 89 | C140: b | D140: 1.30 | E140: 1.73
A141: Hrs | B141: 90 | C141: a | D141: 0.96 | E141: 2.33
A142: Hrs | B142: 90 | C142: b | D142: 1.17 | E142: 1.35
A143: Hrs | B143: 91 | C143: a | D143: 0.45 | E143: 0.58
A144: Hrs | B144: 91 | C144: b | D144: 0.62 | E144: 0.45
A145: Rab11 | B145: 44 | C145: a | D145: 1.31 | E145: 1.01
A146: Rab11 | B146: 44 | C146: b | D146: 1.15 | E146: 0.94
A147: Rab11 | B147: 45 | C147: a | D147: 1.18 | E147: 1.33
A148: Rab11 | B148: 45 | C148: b | D148: 1.29 | E148: 1.33
A149: Rab11 | B149: 46 | C149: a | D149: 0.77 | E149: 0.81
A150: Rab11 | B150: 46 | C150: b | D150: 1.12 | E150: 0.76
A151: Rab11 | B151: 47 | C151: a | D151: 0.68 | E151: 1.01
A152: Rab11 | B152: 47 | C152: b | D152: 0.78 | E152: 0.60
A153: Rab11 | B153: 48 | C153: a | D153: 0.55 | E153: 0.56
A154: Rab11 | B154: 48 | C154: b | D154: 1.11 | E154: 0.48
A155: Rab11 | B155: 49 | C155: a | D155: 0.74 | E155: 0.73
A156: Rab11 | B156: 49 | C156: b | D156: 0.75 | E156: 0.55
A157: Rab11 | B157: 50 | C157: a | D157: 0.82 | E157: 1.37
A158: Rab11 | B158: 50 | C158: b | D158: 0.91 | E158: 0.59
A159: Rab11 | B159: 51 | C159: a | D159: 0.72 | E159: 1.27
A160: Rab11 | B160: 51 | C160: b | D160: 0.59 | E160: 0.67
A161: Rab11 | B161: 52 | C161: a | D161: 0.94 | E161: 1.54
A162: Rab11 | B162: 52 | C162: b | D162: 0.62 | E162: 0.83
A163: Rab11 | B163: 53 | C163: a | D163: 1.51 | E163: 0.79
A164: Rab11 | B164: 53 | C164: b | D164: 1.49 | E164: 0.57
A165: Rab11 | B165: 54 | C165: a | D165: 1.22 | E165: 1.02
A166: Rab11 | B166: 54 | C166: b | D166: 1.31 | E166: 0.88
A167: Rab11 | B167: 55 | C167: a | D167: 1.15 | E167: 1.48
A168: Rab11 | B168: 55 | C168: b | D168: 1.22 | E168: 0.70
A169: Rab11 | B169: 56 | C169: a | D169: 1.19 | E169: 1.29
A170: Rab11 | B170: 56 | C170: b | D170: 1.52 | E170: 0.40
A171: Rab11 | B171: 57 | C171: a | D171: 1.77 | E171: 0.67
A172: Rab11 | B172: 57 | C172: b | D172: 1.73 | E172: 0.63
A173: Rab11 | B173: 58 | C173: a | D173: 0.68 | E173: 1.97
A174: Rab11 | B174: 58 | C174: b | D174: 0.99 | E174: 1.14
A175: Rab11 | B175: 59 | C175: a | D175: 1.03 | E175: 0.68
A176: Rab11 | B176: 59 | C176: b | D176: 1.07 | E176: 0.29
A177: Rab11 | B177: 60 | C177: a | D177: 0.76 | E177: 1.93
A178: Rab11 | B178: 60 | C178: b | D178: 0.90 | E178: 1.07
A179: Rab11 | B179: 61 | C179: a | D179: 1.05 | E179: 1.35
A180: Rab11 | B180: 61 | C180: b | D180: 1.03 | E180: 1.08
A181: Rab11 | B181: 62 | C181: b | D181: 0.74 | E181: 0.55
A182: Rab7 | B182: 56 | C182: a | D182: 1.20 | E182: 3.01
A183: Rab7 | B183: 56 | C183: b | D183: 1.50 | E183: 2.89
A184: Rab7 | B184: 57 | C184: a | D184: 1.03 | E184: 2.43
A185: Rab7 | B185: 57 | C185: b | D185: 1.28 | E185: 2.09
A186: Rab7 | B186: 58 | C186: a | D186: 1.24 | E186: 3.16
A187: Rab7 | B187: 58 | C187: b | D187: 1.36 | E187: 2.22
A188: Rab7 | B188: 59 | C188: a | D188: 0.83 | E188: 3.44
A189: Rab7 | B189: 59 | C189: b | D189: 0.59 | E189: 2.59
A190: Rab7 | B190: 60 | C190: a | D190: 0.94 | E190: 2.13
A191: Rab7 | B191: 60 | C191: b | D191: 1.20 | E191: 2.03
A192: Rab7 | B192: 61 | C192: a | D192: 0.94 | E192: 1.86
A193: Rab7 | B193: 61 | C193: b | D193: 0.93 | E193: 0.91
A194: Rab7 | B194: 62 | C194: a | D194: 0.93 | E194: 1.51
A195: Rab7 | B195: 62 | C195: b | D195: 0.65 | E195: 1.01
A196: Rab7 | B196: 63 | C196: a | D196: 0.42 | E196: 0.30
A197: Rab7 | B197: 63 | C197: b | D197: 1.01 | E197: 0.17
A198: Rab7 | B198: 64 | C198: a | D198: 1.03 | E198: 0.04
A199: Rab7 | B199: 64 | C199: b | D199: 0.42 | E199: 0.03
A200: Rab7 | B200: 65 | C200: a | D200: 1.42 | E200: 1.67
... 8 more rows

Sheet Fig6d
A1: Time | B1: Line | C1: Count | D1: Spt | E1: Number | F1: Volume
A2: 24 | B2: Alix | C2: 1 | D2: b | E2: 2654 | F2: 0.09199569589 | H2: Time | I2: Time post-mating 90 min, 24 and 72h
A3: 24 | B3: Alix | C3: 1 | D3: a | E3: 3586 | F3: 0.06773017281 | H3: Line | I3: Alix RNAi line and control
A4: 24 | B4: Alix | C4: 2 | D4: b | E4: 2153 | F4: 0.08865886493
A5: 24 | B5: Alix | C5: 2 | D5: a | E5: 4272 | F5: 0.06804656117 | H5: Count | I5: Number of fly
A6: 24 | B6: Alix | C6: 3 | D6: b | E6: 851 | F6: 0.09024879812 | H6: Spt | I6: Spermatheca in the pair a or b
A7: 24 | B7: Alix | C7: 3 | D7: a | E7: 1153 | F7: 0.07579835837 | H7: Number | I7: Mean size of particles per spermatheca
A8: 24 | B8: Alix | C8: 4 | D8: b | E8: 638 | F8: 0.06876975408 | H8: Volume | I8: Mean volume of particles per spermatheca
A9: 24 | B9: Alix | C9: 4 | D9: a | E9: 1936 | F9: 0.1051152377
A10: 24 | B10: Alix | C10: 5 | D10: b | E10: 1347 | F10: 0.06492231745
A11: 24 | B11: Alix | C11: 5 | D11: a | E11: 1434 | F11: 0.09802812894
A12: 24 | B12: Alix | C12: 6 | D12: b | E12: 2214 | F12: 0.08143362891
A13: 24 | B13: Alix | C13: 6 | D13: a | E13: 3268 | F13: 0.09323737619
A14: 24 | B14: Alix | C14: 7 | D14: b | E14: 744 | F14: 0.04618712634
A15: 24 | B15: Alix | C15: 8 | D15: b | E15: 1584 | F15: 0.1028789199
A16: 24 | B16: Alix | C16: 8 | D16: a | E16: 1603 | F16: 0.1061810958
A17: 24 | B17: Alix | C17: 9 | D17: b | E17: 555 | F17: 0.1048313942
A18: 24 | B18: Alix | C18: 9 | D18: a | E18: 1845 | F18: 0.04989029604
A19: 24 | B19: Alix | C19: 10 | D19: b | E19: 1386 | F19: 0.1134852165
A20: 24 | B20: Alix | C20: 10 | D20: a | E20: 2716 | F20: 0.0483503806
A21: 24 | B21: Alix | C21: 11 | D21: b | E21: 1938 | F21: 0.05763077033
A22: 24 | B22: Alix | C22: 11 | D22: a | E22: 2210 | F22: 0.09442658308
A23: 24 | B23: Alix | C23: 12 | D23: b | E23: 922 | F23: 0.09356896638
A24: 24 | B24: Alix | C24: 12 | D24: a | E24: 1357 | F24: 0.08847187701
A25: 24 | B25: Alix | C25: 13 | D25: b | E25: 525 | F25: 0.103898489
A26: 24 | B26: Alix | C26: 13 | D26: a | E26: 1426 | F26: 0.1234760792
A27: 24 | B27: Alix | C27: 14 | D27: a | E27: 2666 | F27: 0.04225275735
A28: 24 | B28: Ctrl | C28: 1 | D28: b | E28: 2505 | F28: 0.06035880599
A29: 24 | B29: Ctrl | C29: 1 | D29: a | E29: 2540 | F29: 0.0900705526
A30: 24 | B30: Ctrl | C30: 2 | D30: b | E30: 3444 | F30: 0.06754744199
A31: 24 | B31: Ctrl | C31: 2 | D31: a | E31: 4368 | F31: 0.08030936172
A32: 24 | B32: Ctrl | C32: 3 | D32: b | E32: 3180 | F32: 0.07556964274
A33: 24 | B33: Ctrl | C33: 3 | D33: a | E33: 3199 | F33: 0.08651293201
A34: 24 | B34: Ctrl | C34: 4 | D34: b | E34: 2070 | F34: 0.06763201594
A35: 24 | B35: Ctrl | C35: 4 | D35: a | E35: 4417 | F35: 0.0663997612
A36: 24 | B36: Ctrl | C36: 6 | D36: b | E36: 2813 | F36: 0.07552969993
A37: 24 | B37: Ctrl | C37: 6 | D37: a | E37: 3297 | F37: 0.07456547868
A38: 24 | B38: Ctrl | C38: 7 | D38: b | E38: 591 | F38: 0.06581618071
A39: 24 | B39: Ctrl | C39: 7 | D39: a | E39: 1771 | F39: 0.1013790015
A40: 24 | B40: Ctrl | C40: 8 | D40: b | E40: 2102 | F40: 0.08915859448
A41: 24 | B41: Ctrl | C41: 8 | D41: a | E41: 4624 | F41: 0.1215296647
A42: 24 | B42: Ctrl | C42: 9 | D42: b | E42: 1549 | F42: 0.06462113938
A43: 24 | B43: Ctrl | C43: 9 | D43: a | E43: 1871 | F43: 0.1194778358
A44: 24 | B44: Ctrl | C44: 10 | D44: b | E44: 1841 | F44: 0.1262786227
A45: 24 | B45: Ctrl | C45: 10 | D45: a | E45: 2116 | F45: 0.1436244452
A46: 24 | B46: Ctrl | C46: 11 | D46: b | E46: 1113 | F46: 0.05830830521
A47: 24 | B47: Ctrl | C47: 11 | D47: a | E47: 2215 | F47: 0.09733315454
A48: 24 | B48: Ctrl | C48: 12 | D48: b | E48: 2501 | F48: 0.04622287709
A49: 24 | B49: Ctrl | C49: 12 | D49: a | E49: 4638 | F49: 0.0841332586
A50: 24 | B50: Ctrl | C50: 13 | D50: b | E50: 780 | F50: 0.07779167436
A51: 24 | B51: Ctrl | C51: 13 | D51: a | E51: 3661 | F51: 0.09545798006
A52: 24 | B52: Ctrl | C52: 14 | D52: b | E52: 1400 | F52: 0.05059715793
A53: 24 | B53: Ctrl | C53: 14 | D53: a | E53: 2262 | F53: 0.05388781216
A54: 24 | B54: Ctrl | C54: 15 | D54: b | E54: 822 | F54: 0.06683816168
A55: 72 | B55: Alix | C55: 1 | D55: b | E55: 992 | F55: 0.07003446825
A56: 72 | B56: Alix | C56: 2 | D56: b | E56: 1674 | F56: 0.05671428602
A57: 72 | B57: Alix | C57: 2 | D57: a | E57: 1455 | F57: 0.05923704969
A58: 72 | B58: Alix | C58: 3 | D58: b | E58: 541 | F58: 0.0439445586
A59: 72 | B59: Alix | C59: 3 | D59: a | E59: 1585 | F59: 0.04306530562
A60: 72 | B60: Alix | C60: 4 | D60: b | E60: 2816 | F60: 0.08512700099
A61: 72 | B61: Alix | C61: 4 | D61: a | E61: 2830 | F61: 0.06410793958
A62: 72 | B62: Alix | C62: 5 | D62: a | E62: 2403 | F62: 0.07115578989
A63: 72 | B63: Alix | C63: 6 | D63: b | E63: 1362 | F63: 0.04604567871
A64: 72 | B64: Alix | C64: 6 | D64: a | E64: 1843 | F64: 0.04514429088
A65: 72 | B65: Alix | C65: 7 | D65: b | E65: 332 | F65: 0.06073019819
A66: 72 | B66: Alix | C66: 7 | D66: a | E66: 1020 | F66: 0.06129438353
A67: 72 | B67: Ctrl | C67: 1 | D67: b | E67: 2553 | F67: 0.08871624015
A68: 72 | B68: Ctrl | C68: 1 | D68: a | E68: 3878 | F68: 0.08700094074
A69: 72 | B69: Ctrl | C69: 2 | D69: b | E69: 2298 | F69: 0.09699283856
A70: 72 | B70: Ctrl | C70: 2 | D70: a | E70: 3016 | F70: 0.08294346194
A71: 72 | B71: Ctrl | C71: 3 | D71: b | E71: 1863 | F71: 0.08167655937
A72: 72 | B72: Ctrl | C72: 3 | D72: a | E72: 1960 | F72: 0.08593245653
A73: 72 | B73: Ctrl | C73: 4 | D73: b | E73: 1830 | F73: 0.06981181098
A74: 72 | B74: Ctrl | C74: 4 | D74: a | E74: 3363 | F74: 0.07221206613
A75: 72 | B75: Ctrl | C75: 5 | D75: a | E75: 3064 | F75: 0.08390291563
A76: 72 | B76: Ctrl | C76: 6 | D76: b | E76: 1883 | F76: 0.09125935921
A77: 72 | B77: Ctrl | C77: 6 | D77: a | E77: 2850 | F77: 0.3115458149
A78: 72 | B78: Ctrl | C78: 7 | D78: b | E78: 2821 | F78: 0.07694872013
A79: 72 | B79: Ctrl | C79: 7 | D79: a | E79: 3506 | F79: 0.06966502501
A80: 72 | B80: Ctrl | C80: 8 | D80: b | E80: 2132 | F80: 0.08454300633
A81: 72 | B81: Ctrl | C81: 8 | D81: a | E81: 3698 | F81: 0.07419246374
A82: 90 | B82: Alix | C82: 1 | D82: b | E82: 1311 | F82: 0.1316355934
A83: 90 | B83: Alix | C83: 1 | D83: a | E83: 2138 | F83: 0.1182226944
A84: 90 | B84: Alix | C84: 2 | D84: b | E84: 1624 | F84: 0.1267848778
A85: 90 | B85: Alix | C85: 2 | D85: a | E85: 1439 | F85: 0.1238968215
A86: 90 | B86: Alix | C86: 3 | D86: b | E86: 1439 | F86: 0.1238968215
A87: 90 | B87: Alix | C87: 3 | D87: a | E87: 1624 | F87: 0.1267848778
A88: 90 | B88: Alix | C88: 4 | D88: b | E88: 1209 | F88: 0.115420823
A89: 90 | B89: Alix | C89: 4 | D89: a | E89: 1734 | F89: 0.1072121913
A90: 90 | B90: Alix | C90: 5 | D90: b | E90: 480 | F90: 0.1144654529
A91: 90 | B91: Alix | C91: 5 | D91: a | E91: 560 | F91: 0.1019731179
A92: 90 | B92: Alix | C92: 6 | D92: b | E92: 153 | F92: 0.03693299935
A93: 90 | B93: Alix | C93: 6 | D93: a | E93: 1245 | F93: 0.1357185768
A94: 90 | B94: Alix | C94: 7 | D94: b | E94: 1154 | F94: 0.09557881222
A95: 90 | B95: Alix | C95: 7 | D95: a | E95: 1288 | F95: 0.09915095629
A96: 90 | B96: Alix | C96: 8 | D96: b | E96: 1042 | F96: 0.1150259978
A97: 90 | B97: Alix | C97: 8 | D97: a | E97: 1142 | F97: 0.1588380204
A98: 90 | B98: Alix | C98: 9 | D98: b | E98: 816 | F98: 0.09593857929
A99: 90 | B99: Alix | C99: 9 | D99: a | E99: 2273 | F99: 0.1075790017
A100: 90 | B100: Alix | C100: 10 | D100: b | E100: 995 | F100: 0.1155747655
A101: 90 | B101: Alix | C101: 10 | D101: a | E101: 2273 | F101: 0.1075790017
A102: 90 | B102: Alix | C102: 11 | D102: b | E102: 1204 | F102: 0.123457768
A103: 90 | B103: Alix | C103: 11 | D103: a | E103: 1514 | F103: 0.1899101804
A104: 90 | B104: Alix | C104: 12 | D104: b | E104: 715 | F104: 0.108967265
A105: 90 | B105: Alix | C105: 12 | D105: a | E105: 1078 | F105: 0.1791092282
A106: 90 | B106: Alix | C106: 13 | D106: b | E106: 1008 | F106: 0.1375734154
A107: 90 | B107: Alix | C107: 13 | D107: a | E107: 1212 | F107: 0.1697583178
A108: 90 | B108: Alix | C108: 14 | D108: b | E108: 1042 | F108: 0.1346241829
A109: 90 | B109: Alix | C109: 14 | D109: a | E109: 954 | F109: 0.120722631
A110: 90 | B110: Ctrl | C110: 1 | D110: b | E110: 1505 | F110: 0.09834503189
A111: 90 | B111: Ctrl | C111: 1 | D111: a | E111: 1601 | F111: 0.1063456931
A112: 90 | B112: Ctrl | C112: 2 | D112: b | E112: 472 | F112: 0.1477634504
A113: 90 | B113: Ctrl | C113: 2 | D113: a | E113: 622 | F113: 0.1846762701
A114: 90 | B114: Ctrl | C114: 3 | D114: a | E114: 1323 | F114: 0.1064200711
A115: 90 | B115: Ctrl | C115: 4 | D115: b | E115: 961 | F115: 0.1669009768
A116: 90 | B116: Ctrl | C116: 4 | D116: a | E116: 1436 | F116: 0.1276147153
A117: 90 | B117: Ctrl | C117: 5 | D117: b | E117: 754 | F117: 0.1119709905
A118: 90 | B118: Ctrl | C118: 5 | D118: a | E118: 885 | F118: 0.1282343635
A119: 90 | B119: Ctrl | C119: 6 | D119: b | E119: 819 | F119: 0.174805581
A120: 90 | B120: Ctrl | C120: 6 | D120: a | E120: 1629 | F120: 0.10796628
A121: 90 | B121: Ctrl | C121: 7 | D121: b | E121: 645 | F121: 0.1480283381
A122: 90 | B122: Ctrl | C122: 7 | D122: a | E122: 1030 | F122: 0.1312839669
A123: 90 | B123: Ctrl | C123: 8 | D123: b | E123: 622 | F123: 0.1422902625
A124: 90 | B124: Ctrl | C124: 9 | D124: b | E124: 746 | F124: 0.1296184429
A125: 90 | B125: Ctrl | C125: 9 | D125: a | E125: 1626 | F125: 0.1358515304
A126: 90 | B126: Ctrl | C126: 10 | D126: b | E126: 626 | F126: 0.1499799401
A127: 90 | B127: Ctrl | C127: 10 | D127: a | E127: 635 | F127: 0.1318398466
A128: 90 | B128: Ctrl | C128: 11 | D128: b | E128: 1424 | F128: 0.1037524595
A129: 90 | B129: Ctrl | C129: 11 | D129: a | E129: 754 | F129: 0.08755922414
A130: 90 | B130: Ctrl | C130: 12 | D130: b | E130: 869 | F130: 0.1246995955
A131: 90 | B131: Ctrl | C131: 12 | D131: a | E131: 919 | F131: 0.09405114886
A132: 90 | B132: Ctrl | C132: 13 | D132: b | E132: 1305 | F132: 0.128327913
A133: 90 | B133: Ctrl | C133: 13 | D133: a | E133: 1937 | F133: 0.1140330633

Sheet Fig6e
A1: Line | B1: Replicate | C1: Concentration
A2: Rab7 | B2: 1 | C2: 3.24E+08
A3: Rab7 | B3: 1 | C3: 3.31E+08
A4: Rab7 | B4: 1 | C4: 3.23E+08 | E4: Line | F4: Rab7 RNAi line and control
A5: Rab7 | B5: 1 | C5: 1.68E+08 | E5: Replicate | F5: 1,2,3 or 4
A6: Rab7 | B6: 1 | C6: 2.03E+08 | E6: Concentration | F6: Particles per ml
A7: Rab7 | B7: 1 | C7: 2.11E+08
A8: Ctrl | B8: 1 | C8: 5.29E+08
A9: Ctrl | B9: 1 | C9: 5.56E+08
A10: Ctrl | B10: 1 | C10: 6.33E+08
A11: Ctrl | B11: 1 | C11: 2.13E+08
A12: Ctrl | B12: 1 | C12: 1.77E+08
A13: Ctrl | B13: 1 | C13: 2.39E+08
A14: Rab7 | B14: 2 | C14: 1.32E+09
A15: Rab7 | B15: 2 | C15: 1.27E+09
A16: Rab7 | B16: 2 | C16: 1.21E+09
A17: Ctrl | B17: 2 | C17: 1.32E+09
A18: Ctrl | B18: 2 | C18: 1.19E+09
A19: Ctrl | B19: 2 | C19: 1.22E+09
A20: Rab7 | B20: 3 | C20: 8.64E+08
A21: Rab7 | B21: 3 | C21: 9.27E+08
A22: Rab7 | B22: 3 | C22: 8.74E+08
A23: Ctrl | B23: 3 | C23: 9.36E+08
A24: Ctrl | B24: 3 | C24: 6.31E+08
A25: Ctrl | B25: 3 | C25: 6.56E+08
A26: Ctrl | B26: 4 | C26: 1.36E+09
A27: Ctrl | B27: 4 | C27: 1.61E+09
A28: Ctrl | B28: 4 | C28: 1.46E+09
A29: Ctrl | B29: 4 | C29: 1.60E+09
A30: Rab7 | B30: 4 | C30: 4.87E+08
A31: Rab7 | B31: 4 | C31: 5.17E+08
A32: Rab7 | B32: 4 | C32: 5.73E+08
A33: Rab7 | B33: 4 | C33: 5.94E+08
A34: Rab7 | B34: 4 | C34: 4.90E+08

Sheet Fig6f
A1: Line | B1: Replicate | C1: Mean | D1: Mode | E1: SD
A2: Control | B2: 2 | C2: 105.8 | D2: 92.5 | E2: 37.2 | G2: Line | H2: Rab7 RNAi line and control
A3: Control | B3: 2 | C3: 101.2 | D3: 102.3 | E3: 26.4 | G3: Replicate | H3: 1,2,3 or 4
A4: Control | B4: 2 | C4: 99.5 | D4: 93.9 | E4: 27.9 | G4: Mean | H4: Particle mean diameter
A5: Control | B5: 3 | C5: 93.2 | D5: 79.1 | E5: 18.6 | G5: Mode | H5: Particle mode diameter
A6: Control | B6: 3 | C6: 93.6 | D6: 84.2 | E6: 20.2 | G6: SD | H6: Particle standard deviation
A7: Control | B7: 3 | C7: 96.2 | D7: 81.8 | E7: 34.1
A8: Rab7 | B8: 2 | C8: 101 | D8: 94.8 | E8: 29.6
A9: Rab7 | B9: 2 | C9: 98.4 | D9: 86.3 | E9: 21.5
A10: Rab7 | B10: 2 | C10: 107.6 | D10: 85.8 | E10: 40.9
A11: Rab7 | B11: 3 | C11: 106.7 | D11: 84.2 | E11: 42
A12: Rab7 | B12: 3 | C12: 101.5 | D12: 81 | E12: 41.9
A13: Rab7 | B13: 3 | C13: 98.4 | D13: 84.5 | E13: 27.7
A14: Control | B14: 1 | C14: 147.5 | D14: 83.8 | E14: 91.7
A15: Control | B15: 1 | C15: 131.1 | D15: 104.2 | E15: 71.7
A16: Control | B16: 1 | C16: 141 | D16: 94.9 | E16: 73.3
A17: Rab7 | B17: 1 | C17: 82.9 | D17: 60.2 | E17: 25.1
A18: Rab7 | B18: 1 | C18: 90.2 | D18: 80.7 | E18: 37.1
A19: Rab7 | B19: 1 | C19: 82.5 | D19: 52.9 | E19: 36.1
A20: Control | B20: 4 | C20: 103.9 | D20: 99.1 | E20: 19.3
A21: Control | B21: 4 | C21: 102.6 | D21: 100.6 | E21: 16.6
A22: Control | B22: 4 | C22: 109.3 | D22: 109.6 | E22: 37.3
A23: Control | B23: 4 | C23: 103.1 | D23: 103.6 | E23: 19.2
A24: Control | B24: 4 | C24: 102.8 | D24: 98.8 | E24: 18.4
A25: Control | B25: 4 | C25: 106.8 | D25: 97.5 | E25: 32.1
A26: Rab7 | B26: 4 | C26: 98.4 | D26: 91.5 | E26: 30.5
A27: Rab7 | B27: 4 | C27: 94.1 | D27: 90.9 | E27: 13.5
A28: Rab7 | B28: 4 | C28: 99.3 | D28: 86.4 | E28: 20.3
A29: Rab7 | B29: 4 | C29: 102.8 | D29: 94.7 | E29: 24.7
A30: Rab7 | B30: 4 | C30: 97.6 | D30: 90.4 | E30: 20.6

Sheet Fig6g
A1: Line | B1: Replicate | C1: Repeat | D1: Size | E1: No Particle
A2: Ctrl | B2: 1 | C2: 1 | D2: 30.5 | E2: 0 | G2: Line | H2: Ctrl or Rab7 RNAi
A3: Ctrl | B3: 1 | C3: 1 | D3: 31.5 | E3: 0 | G3: Replicate | H3: 1, 2, 3, 4
A4: Ctrl | B4: 1 | C4: 1 | D4: 32.5 | E4: 0 | G4: Repeat | H4: 1, 2, 3
A5: Ctrl | B5: 1 | C5: 1 | D5: 33.5 | E5: 0 | G5: Size | H5: Diameter of particles
A6: Ctrl | B6: 1 | C6: 1 | D6: 34.5 | E6: 0 | G6: Count | H6: Number of particles in each size
A7: Ctrl | B7: 1 | C7: 1 | D7: 35.5 | E7: 0
A8: Ctrl | B8: 1 | C8: 1 | D8: 36.5 | E8: 0
A9: Ctrl | B9: 1 | C9: 1 | D9: 37.5 | E9: 0
A10: Ctrl | B10: 1 | C10: 1 | D10: 38.5 | E10: 0
A11: Ctrl | B11: 1 | C11: 1 | D11: 39.5 | E11: 0
A12: Ctrl | B12: 1 | C12: 1 | D12: 40.5 | E12: 0
A13: Ctrl | B13: 1 | C13: 1 | D13: 41.5 | E13: 0
A14: Ctrl | B14: 1 | C14: 1 | D14: 42.5 | E14: 0
A15: Ctrl | B15: 1 | C15: 1 | D15: 43.5 | E15: 0
A16: Ctrl | B16: 1 | C16: 1 | D16: 44.5 | E16: 0
A17: Ctrl | B17: 1 | C17: 1 | D17: 45.5 | E17: 0
A18: Ctrl | B18: 1 | C18: 1 | D18: 46.5 | E18: 0
A19: Ctrl | B19: 1 | C19: 1 | D19: 47.5 | E19: 0
A20: Ctrl | B20: 1 | C20: 1 | D20: 48.5 | E20: 0
A21: Ctrl | B21: 1 | C21: 1 | D21: 49.5 | E21: 0
A22: Ctrl | B22: 1 | C22: 1 | D22: 50.5 | E22: 0
A23: Ctrl | B23: 1 | C23: 1 | D23: 51.5 | E23: 0
A24: Ctrl | B24: 1 | C24: 1 | D24: 52.5 | E24: 0
A25: Ctrl | B25: 1 | C25: 1 | D25: 53.5 | E25: 0
A26: Ctrl | B26: 1 | C26: 1 | D26: 54.5 | E26: 0
A27: Ctrl | B27: 1 | C27: 1 | D27: 55.5 | E27: 0
A28: Ctrl | B28: 1 | C28: 1 | D28: 56.5 | E28: 0
A29: Ctrl | B29: 1 | C29: 1 | D29: 57.5 | E29: 0
A30: Ctrl | B30: 1 | C30: 1 | D30: 58.5 | E30: 0
A31: Ctrl | B31: 1 | C31: 1 | D31: 59.5 | E31: 0
A32: Ctrl | B32: 1 | C32: 1 | D32: 60.5 | E32: 0
A33: Ctrl | B33: 1 | C33: 1 | D33: 61.5 | E33: 0
A34: Ctrl | B34: 1 | C34: 1 | D34: 62.5 | E34: 0
A35: Ctrl | B35: 1 | C35: 1 | D35: 63.5 | E35: 3
A36: Ctrl | B36: 1 | C36: 1 | D36: 64.5 | E36: 13
A37: Ctrl | B37: 1 | C37: 1 | D37: 65.5 | E37: 51
A38: Ctrl | B38: 1 | C38: 1 | D38: 66.5 | E38: 192
A39: Ctrl | B39: 1 | C39: 1 | D39: 67.5 | E39: 683
A40: Ctrl | B40: 1 | C40: 1 | D40: 68.5 | E40: 2288
A41: Ctrl | B41: 1 | C41: 1 | D41: 69.5 | E41: 7187
A42: Ctrl | B42: 1 | C42: 1 | D42: 70.5 | E42: 21072
A43: Ctrl | B43: 1 | C43: 1 | D43: 71.5 | E43: 57428
A44: Ctrl | B44: 1 | C44: 1 | D44: 72.5 | E44: 144921
A45: Ctrl | B45: 1 | C45: 1 | D45: 73.5 | E45: 337430
A46: Ctrl | B46: 1 | C46: 1 | D46: 74.5 | E46: 722799
A47: Ctrl | B47: 1 | C47: 1 | D47: 75.5 | E47: 1421361
A48: Ctrl | B48: 1 | C48: 1 | D48: 76.5 | E48: 2562881
A49: Ctrl | B49: 1 | C49: 1 | D49: 77.5 | E49: 4236826
A50: Ctrl | B50: 1 | C50: 1 | D50: 78.5 | E50: 6428262
A51: Ctrl | B51: 1 | C51: 1 | D51: 79.5 | E51: 8971340
A52: Ctrl | B52: 1 | C52: 1 | D52: 80.5 | E52: 11556133
A53: Ctrl | B53: 1 | C53: 1 | D53: 81.5 | E53: 13801449
A54: Ctrl | B54: 1 | C54: 1 | D54: 82.5 | E54: 15367401
A55: Ctrl | B55: 1 | C55: 1 | D55: 83.5 | E55: 16055680
A56: Ctrl | B56: 1 | C56: 1 | D56: 84.5 | E56: 15852937
A57: Ctrl | B57: 1 | C57: 1 | D57: 85.5 | E57: 14906462
A58: Ctrl | B58: 1 | C58: 1 | D58: 86.5 | E58: 13455463
A59: Ctrl | B59: 1 | C59: 1 | D59: 87.5 | E59: 11754716
A60: Ctrl | B60: 1 | C60: 1 | D60: 88.5 | E60: 10018692
A61: Ctrl | B61: 1 | C61: 1 | D61: 89.5 | E61: 8395979
A62: Ctrl | B62: 1 | C62: 1 | D62: 90.5 | E62: 6969007
A63: Ctrl | B63: 1 | C63: 1 | D63: 91.5 | E63: 5767936
A64: Ctrl | B64: 1 | C64: 1 | D64: 92.5 | E64: 4788588
A65: Ctrl | B65: 1 | C65: 1 | D65: 93.5 | E65: 4008246
A66: Ctrl | B66: 1 | C66: 1 | D66: 94.5 | E66: 3396975
A67: Ctrl | B67: 1 | C67: 1 | D67: 95.5 | E67: 2924494
A68: Ctrl | B68: 1 | C68: 1 | D68: 96.5 | E68: 2563663
A69: Ctrl | B69: 1 | C69: 1 | D69: 97.5 | E69: 2291794
A70: Ctrl | B70: 1 | C70: 1 | D70: 98.5 | E70: 2090725
A71: Ctrl | B71: 1 | C71: 1 | D71: 99.5 | E71: 1946323
A72: Ctrl | B72: 1 | C72: 1 | D72: 100.5 | E72: 1847786
A73: Ctrl | B73: 1 | C73: 1 | D73: 101.5 | E73: 1786929
A74: Ctrl | B74: 1 | C74: 1 | D74: 102.5 | E74: 1757554
A75: Ctrl | B75: 1 | C75: 1 | D75: 103.5 | E75: 1754903
A76: Ctrl | B76: 1 | C76: 1 | D76: 104.5 | E76: 1775223
A77: Ctrl | B77: 1 | C77: 1 | D77: 105.5 | E77: 1815400
A78: Ctrl | B78: 1 | C78: 1 | D78: 106.5 | E78: 1872669
A79: Ctrl | B79: 1 | C79: 1 | D79: 107.5 | E79: 1944389
A80: Ctrl | B80: 1 | C80: 1 | D80: 108.5 | E80: 2027868
A81: Ctrl | B81: 1 | C81: 1 | D81: 109.5 | E81: 2120255
A82: Ctrl | B82: 1 | C82: 1 | D82: 110.5 | E82: 2218490
A83: Ctrl | B83: 1 | C83: 1 | D83: 111.5 | E83: 2319315
A84: Ctrl | B84: 1 | C84: 1 | D84: 112.5 | E84: 2419349
A85: Ctrl | B85: 1 | C85: 1 | D85: 113.5 | E85: 2515219
A86: Ctrl | B86: 1 | C86: 1 | D86: 114.5 | E86: 2603727
A87: Ctrl | B87: 1 | C87: 1 | D87: 115.5 | E87: 2682042
A88: Ctrl | B88: 1 | C88: 1 | D88: 116.5 | E88: 2747891
A89: Ctrl | B89: 1 | C89: 1 | D89: 117.5 | E89: 2799715
A90: Ctrl | B90: 1 | C90: 1 | D90: 118.5 | E90: 2836776
A91: Ctrl | B91: 1 | C91: 1 | D91: 119.5 | E91: 2859207
A92: Ctrl | B92: 1 | C92: 1 | D92: 120.5 | E92: 2867978
A93: Ctrl | B93: 1 | C93: 1 | D93: 121.5 | E93: 2864813
A94: Ctrl | B94: 1 | C94: 1 | D94: 122.5 | E94: 2852047
A95: Ctrl | B95: 1 | C95: 1 | D95: 123.5 | E95: 2832462
A96: Ctrl | B96: 1 | C96: 1 | D96: 124.5 | E96: 2809111
A97: Ctrl | B97: 1 | C97: 1 | D97: 125.5 | E97: 2785160
A98: Ctrl | B98: 1 | C98: 1 | D98: 126.5 | E98: 2763757
A99: Ctrl | B99: 1 | C99: 1 | D99: 127.5 | E99: 2747939
A100: Ctrl | B100: 1 | C100: 1 | D100: 128.5 | E100: 2740577
A101: Ctrl | B101: 1 | C101: 1 | D101: 129.5 | E101: 2744357
A102: Ctrl | B102: 1 | C102: 1 | D102: 130.5 | E102: 2761786
A103: Ctrl | B103: 1 | C103: 1 | D103: 131.5 | E103: 2795226
A104: Ctrl | B104: 1 | C104: 1 | D104: 132.5 | E104: 2846923
A105: Ctrl | B105: 1 | C105: 1 | D105: 133.5 | E105: 2919049
A106: Ctrl | B106: 1 | C106: 1 | D106: 134.5 | E106: 3013723
A107: Ctrl | B107: 1 | C107: 1 | D107: 135.5 | E107: 3133012
A108: Ctrl | B108: 1 | C108: 1 | D108: 136.5 | E108: 3278909
A109: Ctrl | B109: 1 | C109: 1 | D109: 137.5 | E109: 3453269
A110: Ctrl | B110: 1 | C110: 1 | D110: 138.5 | E110: 3657704
A111: Ctrl | B111: 1 | C111: 1 | D111: 139.5 | E111: 3893423
A112: Ctrl | B112: 1 | C112: 1 | D112: 140.5 | E112: 4161028
A113: Ctrl | B113: 1 | C113: 1 | D113: 141.5 | E113: 4460254
A114: Ctrl | B114: 1 | C114: 1 | D114: 142.5 | E114: 4789675
A115: Ctrl | B115: 1 | C115: 1 | D115: 143.5 | E115: 5146382
A116: Ctrl | B116: 1 | C116: 1 | D116: 144.5 | E116: 5525681
A117: Ctrl | B117: 1 | C117: 1 | D117: 145.5 | E117: 5920830
A118: Ctrl | B118: 1 | C118: 1 | D118: 146.5 | E118: 6322885
A119: Ctrl | B119: 1 | C119: 1 | D119: 147.5 | E119: 6720697
A120: Ctrl | B120: 1 | C120: 1 | D120: 148.5 | E120: 7101117
A121: Ctrl | B121: 1 | C121: 1 | D121: 149.5 | E121: 7449443
A122: Ctrl | B122: 1 | C122: 1 | D122: 150.5 | E122: 7750127
A123: Ctrl | B123: 1 | C123: 1 | D123: 151.5 | E123: 7987707
A124: Ctrl | B124: 1 | C124: 1 | D124: 152.5 | E124: 8147914
A125: Ctrl | B125: 1 | C125: 1 | D125: 153.5 | E125: 8218839
A126: Ctrl | B126: 1 | C126: 1 | D126: 154.5 | E126: 8192037
A127: Ctrl | B127: 1 | C127: 1 | D127: 155.5 | E127: 8063422
A128: Ctrl | B128: 1 | C128: 1 | D128: 156.5 | E128: 7833825
A129: Ctrl | B129: 1 | C129: 1 | D129: 157.5 | E129: 7509116
A130: Ctrl | B130: 1 | C130: 1 | D130: 158.5 | E130: 7099868
A131: Ctrl | B131: 1 | C131: 1 | D131: 159.5 | E131: 6620583
A132: Ctrl | B132: 1 | C132: 1 | D132: 160.5 | E132: 6088566
A133: Ctrl | B133: 1 | C133: 1 | D133: 161.5 | E133: 5522603
A134: Ctrl | B134: 1 | C134: 1 | D134: 162.5 | E134: 4941588
A135: Ctrl | B135: 1 | C135: 1 | D135: 163.5 | E135: 4363257
A136: Ctrl | B136: 1 | C136: 1 | D136: 164.5 | E136: 3803168
A137: Ctrl | B137: 1 | C137: 1 | D137: 165.5 | E137: 3273987
A138: Ctrl | B138: 1 | C138: 1 | D138: 166.5 | E138: 2785130
A139: Ctrl | B139: 1 | C139: 1 | D139: 167.5 | E139: 2342725
A140: Ctrl | B140: 1 | C140: 1 | D140: 168.5 | E140: 1949848
A141: Ctrl | B141: 1 | C141: 1 | D141: 169.5 | E141: 1606945
A142: Ctrl | B142: 1 | C142: 1 | D142: 170.5 | E142: 1312368
A143: Ctrl | B143: 1 | C143: 1 | D143: 171.5 | E143: 1062943
A144: Ctrl | B144: 1 | C144: 1 | D144: 172.5 | E144: 854509
A145: Ctrl | B145: 1 | C145: 1 | D145: 173.5 | E145: 682386
A146: Ctrl | B146: 1 | C146: 1 | D146: 174.5 | E146: 541753
A147: Ctrl | B147: 1 | C147: 1 | D147: 175.5 | E147: 427930
A148: Ctrl | B148: 1 | C148: 1 | D148: 176.5 | E148: 336572
A149: Ctrl | B149: 1 | C149: 1 | D149: 177.5 | E149: 263773
A150: Ctrl | B150: 1 | C150: 1 | D150: 178.5 | E150: 206122
A151: Ctrl | B151: 1 | C151: 1 | D151: 179.5 | E151: 160706
A152: Ctrl | B152: 1 | C152: 1 | D152: 180.5 | E152: 125084
A153: Ctrl | B153: 1 | C153: 1 | D153: 181.5 | E153: 97240
A154: Ctrl | B154: 1 | C154: 1 | D154: 182.5 | E154: 75535
A155: Ctrl | B155: 1 | C155: 1 | D155: 183.5 | E155: 58651
A156: Ctrl | B156: 1 | C156: 1 | D156: 184.5 | E156: 45535
A157: Ctrl | B157: 1 | C157: 1 | D157: 185.5 | E157: 35355
A158: Ctrl | B158: 1 | C158: 1 | D158: 186.5 | E158: 27458
A159: Ctrl | B159: 1 | C159: 1 | D159: 187.5 | E159: 21331
A160: Ctrl | B160: 1 | C160: 1 | D160: 188.5 | E160: 16577
A161: Ctrl | B161: 1 | C161: 1 | D161: 189.5 | E161: 12887
A162: Ctrl | B162: 1 | C162: 1 | D162: 190.5 | E162: 10021
A163: Ctrl | B163: 1 | C163: 1 | D163: 191.5 | E163: 7794
A164: Ctrl | B164: 1 | C164: 1 | D164: 192.5 | E164: 6062
A165: Ctrl | B165: 1 | C165: 1 | D165: 193.5 | E165: 4714
A166: Ctrl | B166: 1 | C166: 1 | D166: 194.5 | E166: 3665
A167: Ctrl | B167: 1 | C167: 1 | D167: 195.5 | E167: 2848
A168: Ctrl | B168: 1 | C168: 1 | D168: 196.5 | E168: 2213
A169: Ctrl | B169: 1 | C169: 1 | D169: 197.5 | E169: 1718
A170: Ctrl | B170: 1 | C170: 1 | D170: 198.5 | E170: 1333
A171: Ctrl | B171: 1 | C171: 1 | D171: 199.5 | E171: 1033
A172: Ctrl | B172: 1 | C172: 1 | D172: 200.5 | E172: 800
A173: Ctrl | B173: 1 | C173: 1 | D173: 201.5 | E173: 620
A174: Ctrl | B174: 1 | C174: 1 | D174: 202.5 | E174: 480
A175: Ctrl | B175: 1 | C175: 1 | D175: 203.5 | E175: 371
A176: Ctrl | B176: 1 | C176: 1 | D176: 204.5 | E176: 287
A177: Ctrl | B177: 1 | C177: 1 | D177: 205.5 | E177: 222
A178: Ctrl | B178: 1 | C178: 1 | D178: 206.5 | E178: 172
A179: Ctrl | B179: 1 | C179: 1 | D179: 207.5 | E179: 134
A180: Ctrl | B180: 1 | C180: 1 | D180: 208.5 | E180: 104
A181: Ctrl | B181: 1 | C181: 1 | D181: 209.5 | E181: 81
A182: Ctrl | B182: 1 | C182: 1 | D182: 210.5 | E182: 64
A183: Ctrl | B183: 1 | C183: 1 | D183: 211.5 | E183: 50
A184: Ctrl | B184: 1 | C184: 1 | D184: 212.5 | E184: 40
A185: Ctrl | B185: 1 | C185: 1 | D185: 213.5 | E185: 31
A186: Ctrl | B186: 1 | C186: 1 | D186: 214.5 | E186: 25
A187: Ctrl | B187: 1 | C187: 1 | D187: 215.5 | E187: 20
A188: Ctrl | B188: 1 | C188: 1 | D188: 216.5 | E188: 17
A189: Ctrl | B189: 1 | C189: 1 | D189: 217.5 | E189: 14
A190: Ctrl | B190: 1 | C190: 1 | D190: 218.5 | E190: 11
A191: Ctrl | B191: 1 | C191: 1 | D191: 219.5 | E191: 10
A192: Ctrl | B192: 1 | C192: 1 | D192: 220.5 | E192: 8
A193: Ctrl | B193: 1 | C193: 1 | D193: 221.5 | E193: 7
A194: Ctrl | B194: 1 | C194: 1 | D194: 222.5 | E194: 6
A195: Ctrl | B195: 1 | C195: 1 | D195: 223.5 | E195: 6
A196: Ctrl | B196: 1 | C196: 1 | D196: 224.5 | E196: 5
A197: Ctrl | B197: 1 | C197: 1 | D197: 225.5 | E197: 5
A198: Ctrl | B198: 1 | C198: 1 | D198: 226.5 | E198: 5
A199: Ctrl | B199: 1 | C199: 1 | D199: 227.5 | E199: 4
A200: Ctrl | B200: 1 | C200: 1 | D200: 228.5 | E200: 4
... 8789 more rows

Sheet Fig7b,c and 3c
A1: Line | B1: Mate | C1: Count | D1: Spt | E1: Particle | F1: Volume
A2: Ctrl | B2: V | C2: 1 | D2: a | E2: 4 | F2: 0.0643 | H2: Line | I2: Alix or Ctrl
A3: Ctrl | B3: V | C3: 1 | D3: a | E3: 4 | F3: 0.0734 | H3: Mate | I3: Time post-mating
A4: Ctrl | B4: V | C4: 1 | D4: a | E4: 4 | F4: 0.639 | I4: Virgin or 24h post-mating
A5: Ctrl | B5: V | C5: 1 | D5: a | E5: 4 | F5: 0.107 | H5: Count | I5: Number of spermatheca
A6: Ctrl | B6: V | C6: 1 | D6: a | E6: 4 | F6: 5.31 | H6: Spt | I6: Pair of spermatheca
A7: Ctrl | B7: V | C7: 1 | D7: a | E7: 4 | F7: 0.0796 | H7: Particle | I7: Particle in spermatheca
A8: Ctrl | B8: V | C8: 1 | D8: a | E8: 4 | F8: 0.346 | H8: Volume | I8: Volume of the particle
A9: Ctrl | B9: V | C9: 1 | D9: a | E9: 4 | F9: 0.334
A10: Ctrl | B10: V | C10: 1 | D10: a | E10: 4 | F10: 0.181
A11: Ctrl | B11: V | C11: 1 | D11: a | E11: 4 | F11: 0.205
A12: Ctrl | B12: V | C12: 1 | D12: a | E12: 4 | F12: 0.119
A13: Ctrl | B13: V | C13: 1 | D13: a | E13: 4 | F13: 0.00918
A14: Ctrl | B14: V | C14: 1 | D14: a | E14: 4 | F14: 0.0153
A15: Ctrl | B15: V | C15: 1 | D15: a | E15: 4 | F15: 1.01
A16: Ctrl | B16: V | C16: 1 | D16: a | E16: 4 | F16: 0.0765
A17: Ctrl | B17: V | C17: 1 | D17: a | E17: 4 | F17: 0.0857
A18: Ctrl | B18: V | C18: 1 | D18: a | E18: 4 | F18: 0.00918
A19: Ctrl | B19: V | C19: 1 | D19: a | E19: 4 | F19: 0.0122
A20: Ctrl | B20: V | C20: 1 | D20: a | E20: 4 | F20: 0.0551
A21: Ctrl | B21: V | C21: 1 | D21: a | E21: 4 | F21: 0.0153
A22: Ctrl | B22: V | C22: 1 | D22: a | E22: 4 | F22: 0.00612
A23: Ctrl | B23: V | C23: 1 | D23: a | E23: 4 | F23: 0.0153
A24: Ctrl | B24: V | C24: 1 | D24: a | E24: 4 | F24: 0.0122
A25: Ctrl | B25: V | C25: 1 | D25: a | E25: 4 | F25: 3.49
A26: Ctrl | B26: V | C26: 1 | D26: a | E26: 4 | F26: 0.392
A27: Ctrl | B27: V | C27: 1 | D27: a | E27: 4 | F27: 0.0122
A28: Ctrl | B28: V | C28: 1 | D28: a | E28: 4 | F28: 0.00918
A29: Ctrl | B29: V | C29: 1 | D29: a | E29: 4 | F29: 0.297
A30: Ctrl | B30: V | C30: 1 | D30: a | E30: 4 | F30: 0.483
A31: Ctrl | B31: V | C31: 1 | D31: a | E31: 4 | F31: 0.199
A32: Ctrl | B32: V | C32: 1 | D32: a | E32: 4 | F32: 0.0551
A33: Ctrl | B33: V | C33: 1 | D33: a | E33: 4 | F33: 0.101
A34: Ctrl | B34: V | C34: 1 | D34: a | E34: 4 | F34: 0.193
A35: Ctrl | B35: V | C35: 1 | D35: a | E35: 4 | F35: 0.0245
A36: Ctrl | B36: V | C36: 1 | D36: a | E36: 4 | F36: 0.217
A37: Ctrl | B37: V | C37: 1 | D37: a | E37: 4 | F37: 0.0796
A38: Ctrl | B38: V | C38: 1 | D38: a | E38: 4 | F38: 0.0857
A39: Ctrl | B39: V | C39: 1 | D39: a | E39: 4 | F39: 0.00918
A40: Ctrl | B40: V | C40: 1 | D40: a | E40: 4 | F40: 0.0734
A41: Ctrl | B41: V | C41: 1 | D41: a | E41: 4 | F41: 0.122
A42: Ctrl | B42: V | C42: 1 | D42: a | E42: 4 | F42: 0.141
A43: Ctrl | B43: V | C43: 1 | D43: a | E43: 4 | F43: 0.0398
A44: Ctrl | B44: V | C44: 1 | D44: a | E44: 4 | F44: 0.052
A45: Ctrl | B45: V | C45: 1 | D45: a | E45: 4 | F45: 0.208
A46: Ctrl | B46: V | C46: 1 | D46: a | E46: 4 | F46: 0.539
A47: Ctrl | B47: V | C47: 1 | D47: a | E47: 4 | F47: 0.0612
A48: Ctrl | B48: V | C48: 1 | D48: a | E48: 4 | F48: 0.63
A49: Ctrl | B49: V | C49: 1 | D49: a | E49: 4 | F49: 0.214
A50: Ctrl | B50: V | C50: 1 | D50: a | E50: 4 | F50: 0.104
A51: Ctrl | B51: V | C51: 1 | D51: a | E51: 4 | F51: 0.132
A52: Ctrl | B52: V | C52: 1 | D52: a | E52: 4 | F52: 0.0887
A53: Ctrl | B53: V | C53: 1 | D53: a | E53: 4 | F53: 0.049
A54: Ctrl | B54: V | C54: 1 | D54: a | E54: 4 | F54: 0.0551
A55: Ctrl | B55: V | C55: 1 | D55: a | E55: 4 | F55: 0.465
A56: Ctrl | B56: V | C56: 1 | D56: a | E56: 4 | F56: 0.0581
A57: Ctrl | B57: V | C57: 1 | D57: a | E57: 4 | F57: 0.275
A58: Ctrl | B58: V | C58: 1 | D58: a | E58: 4 | F58: 0.00612
A59: Ctrl | B59: V | C59: 1 | D59: a | E59: 4 | F59: 0.0122
A60: Ctrl | B60: V | C60: 1 | D60: a | E60: 4 | F60: 0.0153
A61: Ctrl | B61: V | C61: 1 | D61: a | E61: 4 | F61: 0.0306
A62: Ctrl | B62: V | C62: 1 | D62: a | E62: 4 | F62: 0.0122
A63: Ctrl | B63: V | C63: 1 | D63: a | E63: 4 | F63: 0.0643
A64: Ctrl | B64: V | C64: 1 | D64: a | E64: 4 | F64: 0.701
A65: Ctrl | B65: V | C65: 1 | D65: a | E65: 4 | F65: 0.0654
A66: Ctrl | B66: V | C66: 1 | D66: a | E66: 4 | F66: 0.107
A67: Ctrl | B67: V | C67: 1 | D67: a | E67: 4 | F67: 0.0153
A68: Ctrl | B68: V | C68: 1 | D68: a | E68: 4 | F68: 0.282
A69: Ctrl | B69: V | C69: 1 | D69: a | E69: 4 | F69: 0.00918
A70: Ctrl | B70: V | C70: 1 | D70: a | E70: 4 | F70: 0.049
A71: Ctrl | B71: V | C71: 1 | D71: a | E71: 4 | F71: 0.0612
A72: Ctrl | B72: V | C72: 1 | D72: a | E72: 4 | F72: 0.367
A73: Ctrl | B73: V | C73: 1 | D73: a | E73: 4 | F73: 0.0153
A74: Ctrl | B74: V | C74: 1 | D74: a | E74: 4 | F74: 0.0551
A75: Ctrl | B75: V | C75: 1 | D75: a | E75: 4 | F75: 0.049
A76: Ctrl | B76: V | C76: 1 | D76: a | E76: 4 | F76: 0.551
A77: Ctrl | B77: V | C77: 1 | D77: a | E77: 4 | F77: 0.505
A78: Ctrl | B78: V | C78: 1 | D78: a | E78: 4 | F78: 0.193
A79: Ctrl | B79: V | C79: 1 | D79: a | E79: 4 | F79: 0.0654
A80: Ctrl | B80: V | C80: 1 | D80: a | E80: 4 | F80: 0.285
A81: Ctrl | B81: V | C81: 1 | D81: a | E81: 4 | F81: 0.107
A82: Ctrl | B82: V | C82: 1 | D82: a | E82: 4 | F82: 0.563
A83: Ctrl | B83: V | C83: 1 | D83: a | E83: 4 | F83: 0.254
A84: Ctrl | B84: V | C84: 1 | D84: a | E84: 4 | F84: 0.0275
A85: Ctrl | B85: V | C85: 1 | D85: a | E85: 4 | F85: 0.0367
A86: Ctrl | B86: V | C86: 1 | D86: a | E86: 4 | F86: 0.352
A87: Ctrl | B87: V | C87: 1 | D87: a | E87: 4 | F87: 1.14
A88: Ctrl | B88: V | C88: 1 | D88: a | E88: 4 | F88: 0.162
A89: Ctrl | B89: V | C89: 1 | D89: a | E89: 4 | F89: 0.00918
A90: Ctrl | B90: V | C90: 1 | D90: a | E90: 4 | F90: 0.00918
A91: Ctrl | B91: V | C91: 1 | D91: a | E91: 4 | F91: 0.00612
A92: Ctrl | B92: V | C92: 1 | D92: a | E92: 4 | F92: 0.119
A93: Ctrl | B93: V | C93: 1 | D93: a | E93: 4 | F93: 0.135
A94: Ctrl | B94: V | C94: 1 | D94: a | E94: 4 | F94: 0.0122
A95: Ctrl | B95: V | C95: 1 | D95: a | E95: 4 | F95: 0.0398
A96: Ctrl | B96: V | C96: 1 | D96: a | E96: 4 | F96: 0.3
A97: Ctrl | B97: V | C97: 1 | D97: a | E97: 4 | F97: 0.0275
A98: Ctrl | B98: V | C98: 1 | D98: a | E98: 4 | F98: 0.0153
A99: Ctrl | B99: V | C99: 1 | D99: a | E99: 4 | F99: 0.0214
A100: Ctrl | B100: V | C100: 1 | D100: a | E100: 4 | F100: 0.113
A101: Ctrl | B101: V | C101: 1 | D101: a | E101: 4 | F101: 0.0918
A102: Ctrl | B102: V | C102: 1 | D102: a | E102: 4 | F102: 0.0214
A103: Ctrl | B103: V | C103: 1 | D103: a | E103: 4 | F103: 0.0949
A104: Ctrl | B104: V | C104: 1 | D104: a | E104: 4 | F104: 0.0673
A105: Ctrl | B105: V | C105: 1 | D105: a | E105: 4 | F105: 0.0887
A106: Ctrl | B106: V | C106: 1 | D106: a | E106: 4 | F106: 0.0122
A107: Ctrl | B107: V | C107: 1 | D107: a | E107: 4 | F107: 0.343
A108: Ctrl | B108: V | C108: 1 | D108: a | E108: 4 | F108: 0.242
A109: Ctrl | B109: V | C109: 1 | D109: a | E109: 4 | F109: 0.0796
A110: Ctrl | B110: V | C110: 1 | D110: a | E110: 4 | F110: 0.0337
A111: Ctrl | B111: V | C111: 1 | D111: a | E111: 4 | F111: 0.0214
A112: Ctrl | B112: V | C112: 1 | D112: a | E112: 4 | F112: 0.0581
A113: Ctrl | B113: V | C113: 1 | D113: a | E113: 4 | F113: 0.0643
A114: Ctrl | B114: V | C114: 1 | D114: a | E114: 4 | F114: 0.0398
A115: Ctrl | B115: V | C115: 1 | D115: a | E115: 4 | F115: 0.147
A116: Ctrl | B116: V | C116: 1 | D116: a | E116: 4 | F116: 0.0704
A117: Ctrl | B117: V | C117: 1 | D117: a | E117: 4 | F117: 0.0245
A118: Ctrl | B118: V | C118: 1 | D118: a | E118: 4 | F118: 1.22
A119: Ctrl | B119: V | C119: 1 | D119: a | E119: 4 | F119: 1.44
A120: Ctrl | B120: V | C120: 1 | D120: a | E120: 4 | F120: 0.052
A121: Ctrl | B121: V | C121: 1 | D121: a | E121: 4 | F121: 0.0979
A122: Ctrl | B122: V | C122: 1 | D122: a | E122: 4 | F122: 0.049
A123: Ctrl | B123: V | C123: 1 | D123: a | E123: 4 | F123: 0.0796
A124: Ctrl | B124: V | C124: 1 | D124: a | E124: 4 | F124: 0.211
A125: Ctrl | B125: V | C125: 1 | D125: a | E125: 4 | F125: 0.6
A126: Ctrl | B126: V | C126: 1 | D126: a | E126: 4 | F126: 0.355
A127: Ctrl | B127: V | C127: 1 | D127: a | E127: 4 | F127: 0.0654
A128: Ctrl | B128: V | C128: 1 | D128: a | E128: 4 | F128: 0.0122
A129: Ctrl | B129: V | C129: 1 | D129: a | E129: 4 | F129: 0.0214
A130: Ctrl | B130: V | C130: 1 | D130: a | E130: 4 | F130: 0.0214
A131: Ctrl | B131: V | C131: 1 | D131: a | E131: 4 | F131: 0.0857
A132: Ctrl | B132: V | C132: 1 | D132: a | E132: 4 | F132: 0.0122
A133: Ctrl | B133: V | C133: 1 | D133: a | E133: 4 | F133: 0.0765
A134: Ctrl | B134: V | C134: 1 | D134: a | E134: 4 | F134: 0.0654
A135: Ctrl | B135: V | C135: 1 | D135: a | E135: 4 | F135: 0.0949
A136: Ctrl | B136: V | C136: 1 | D136: a | E136: 4 | F136: 0.049
A137: Ctrl | B137: V | C137: 1 | D137: a | E137: 4 | F137: 0.147
A138: Ctrl | B138: V | C138: 1 | D138: a | E138: 4 | F138: 0.254
A139: Ctrl | B139: V | C139: 1 | D139: a | E139: 4 | F139: 0.0654
A140: Ctrl | B140: V | C140: 1 | D140: a | E140: 4 | F140: 0.0275
A141: Ctrl | B141: V | C141: 1 | D141: a | E141: 4 | F141: 0.309
A142: Ctrl | B142: V | C142: 1 | D142: a | E142: 4 | F142: 1.83
A143: Ctrl | B143: V | C143: 1 | D143: a | E143: 4 | F143: 0.125
A144: Ctrl | B144: V | C144: 1 | D144: a | E144: 4 | F144: 0.0275
A145: Ctrl | B145: V | C145: 1 | D145: a | E145: 4 | F145: 0.0551
A146: Ctrl | B146: V | C146: 1 | D146: a | E146: 4 | F146: 2.4
A147: Ctrl | B147: V | C147: 1 | D147: a | E147: 4 | F147: 0.147
A148: Ctrl | B148: V | C148: 1 | D148: a | E148: 4 | F148: 0.0918
A149: Ctrl | B149: V | C149: 1 | D149: a | E149: 4 | F149: 0.844
A150: Ctrl | B150: V | C150: 1 | D150: a | E150: 4 | F150: 0.0398
A151: Ctrl | B151: V | C151: 1 | D151: a | E151: 4 | F151: 0.664
A152: Ctrl | B152: V | C152: 1 | D152: a | E152: 4 | F152: 0.00612
A153: Ctrl | B153: V | C153: 1 | D153: a | E153: 4 | F153: 0.00612
A154: Ctrl | B154: V | C154: 1 | D154: a | E154: 4 | F154: 0.422
A155: Ctrl | B155: V | C155: 1 | D155: a | E155: 4 | F155: 0.052
A156: Ctrl | B156: V | C156: 1 | D156: a | E156: 4 | F156: 1.12
A157: Ctrl | B157: V | C157: 1 | D157: a | E157: 4 | F157: 0.00612
A158: Ctrl | B158: V | C158: 1 | D158: a | E158: 4 | F158: 0.321
A159: Ctrl | B159: V | C159: 1 | D159: a | E159: 4 | F159: 0.0887
A160: Ctrl | B160: V | C160: 1 | D160: a | E160: 4 | F160: 0.168
A161: Ctrl | B161: V | C161: 1 | D161: a | E161: 4 | F161: 0.00612
A162: Ctrl | B162: V | C162: 1 | D162: a | E162: 4 | F162: 0.0337
A163: Ctrl | B163: V | C163: 1 | D163: a | E163: 4 | F163: 1.55
A164: Ctrl | B164: V | C164: 1 | D164: a | E164: 4 | F164: 0.0826
A165: Ctrl | B165: V | C165: 1 | D165: a | E165: 4 | F165: 0.389
A166: Ctrl | B166: V | C166: 1 | D166: a | E166: 4 | F166: 1.71
A167: Ctrl | B167: V | C167: 1 | D167: a | E167: 4 | F167: 0.0654
A168: Ctrl | B168: V | C168: 1 | D168: a | E168: 4 | F168: 0.0643
A169: Ctrl | B169: V | C169: 1 | D169: a | E169: 4 | F169: 0.355
A170: Ctrl | B170: V | C170: 1 | D170: a | E170: 4 | F170: 0.0581
A171: Ctrl | B171: V | C171: 1 | D171: a | E171: 4 | F171: 0.229
A172: Ctrl | B172: V | C172: 1 | D172: a | E172: 4 | F172: 0.00612
A173: Ctrl | B173: V | C173: 1 | D173: a | E173: 4 | F173: 0.0398
A174: Ctrl | B174: V | C174: 1 | D174: a | E174: 4 | F174: 0.162
A175: Ctrl | B175: V | C175: 1 | D175: a | E175: 4 | F175: 0.0122
A176: Ctrl | B176: V | C176: 1 | D176: a | E176: 4 | F176: 0.00612
A177: Ctrl | B177: V | C177: 1 | D177: a | E177: 4 | F177: 0.132
A178: Ctrl | B178: V | C178: 1 | D178: a | E178: 4 | F178: 0.324
A179: Ctrl | B179: V | C179: 1 | D179: a | E179: 4 | F179: 0.0857
A180: Ctrl | B180: V | C180: 1 | D180: a | E180: 4 | F180: 0.0153
A181: Ctrl | B181: V | C181: 1 | D181: a | E181: 4 | F181: 0.398
A182: Ctrl | B182: V | C182: 1 | D182: a | E182: 4 | F182: 0.288
A183: Ctrl | B183: V | C183: 1 | D183: a | E183: 4 | F183: 0.0184
A184: Ctrl | B184: V | C184: 1 | D184: a | E184: 4 | F184: 0.00918
A185: Ctrl | B185: V | C185: 1 | D185: a | E185: 4 | F185: 0.156
A186: Ctrl | B186: V | C186: 1 | D186: a | E186: 4 | F186: 0.334
A187: Ctrl | B187: V | C187: 1 | D187: a | E187: 4 | F187: 0.0367
A188: Ctrl | B188: V | C188: 1 | D188: a | E188: 4 | F188: 0.00612
A189: Ctrl | B189: V | C189: 1 | D189: a | E189: 4 | F189: 0.34
A190: Ctrl | B190: V | C190: 1 | D190: a | E190: 4 | F190: 3.52
A191: Ctrl | B191: V | C191: 1 | D191: a | E191: 4 | F191: 0.0654
A192: Ctrl | B192: V | C192: 1 | D192: a | E192: 4 | F192: 0.0153
A193: Ctrl | B193: V | C193: 1 | D193: a | E193: 4 | F193: 0.346
A194: Ctrl | B194: V | C194: 1 | D194: a | E194: 4 | F194: 0.358
A195: Ctrl | B195: V | C195: 1 | D195: a | E195: 4 | F195: 0.33
A196: Ctrl | B196: V | C196: 1 | D196: a | E196: 4 | F196: 0.398
A197: Ctrl | B197: V | C197: 1 | D197: a | E197: 4 | F197: 0.0122
A198: Ctrl | B198: V | C198: 1 | D198: a | E198: 4 | F198: 0.184
A199: Ctrl | B199: V | C199: 1 | D199: a | E199: 4 | F199: 0.0765
A200: Ctrl | B200: V | C200: 1 | D200: a | E200: 4 | F200: 1.92
... 4300 more rows

Sheet Fig8b EA Spt
A1: Line | B1: Count | C1: Pair No | D1: Spt | E1: EA | F1: Area | G1: GFP
A2: Ctrl T | B2: 1 | C2: 1 | D2: a | E2: 1 | F2: 279.41 | G2: 6816092 | I2: Line - line of males
A3: Ctrl T | B3: 1 | C3: 1 | D3: a | E3: 2 | F3: 212.03 | G3: 7528637 | J3: Ctrl T - sons of Tudor normal males
A4: Ctrl T | B4: 1 | C4: 1 | D4: a | E4: 3 | F4: 127.54 | G4: 3413204 | J4: T1786, T6C - spermless sons of tudors
A5: Ctrl T | B5: 1 | C5: 1 | D5: a | E5: 4 | F5: 173.45 | G5: 7888409 | J5: Prd;Rh1 - cross of accessory gland-less males
A6: Ctrl T | B6: 1 | C6: 1 | D6: a | E6: 5 | F6: 150.57 | G6: 4315804 | J6: Prd;CyO - normal siblings
A7: Ctrl T | B7: 1 | C7: 1 | D7: a | E7: 6 | F7: 86.19 | G7: 3318355 | I7: Cont no - continous count of spermatheca
A8: Ctrl T | B8: 1 | C8: 1 | D8: a | E8: 7 | F8: 96.69 | G8: 3094035 | I8: Pair no - count of spermatheca per experiment
A9: Ctrl T | B9: 1 | C9: 1 | D9: a | E9: 8 | F9: 162.32 | G9: 6023038 | I9: Spt - type of spermatheca from the pair
A10: Ctrl T | B10: 1 | C10: 1 | D10: a | E10: 9 | F10: 176.89 | G10: 4602221 | I10: EA - number of end apparatus measured
A11: Ctrl T | B11: 1 | C11: 1 | D11: a | E11: 10 | F11: 163.55 | G11: 7301686 | I11: Area - area of EA
A12: Ctrl T | B12: 2 | C12: 1 | D12: b | E12: 1 | F12: 209.04 | G12: 4565653 | I12: GFP - mean GFP intensity
A13: Ctrl T | B13: 2 | C13: 1 | D13: b | E13: 2 | F13: 78.7 | G13: 4047570
A14: Ctrl T | B14: 2 | C14: 1 | D14: b | E14: 3 | F14: 87.62 | G14: 3510048
A15: Ctrl T | B15: 2 | C15: 1 | D15: b | E15: 4 | F15: 155.29 | G15: 13029617
A16: Ctrl T | B16: 2 | C16: 1 | D16: b | E16: 5 | F16: 132.06 | G16: 8983044
A17: Ctrl T | B17: 2 | C17: 1 | D17: b | E17: 6 | F17: 207.28 | G17: 6882113
A18: Ctrl T | B18: 2 | C18: 1 | D18: b | E18: 7 | F18: 252.86 | G18: 12792065
A19: Ctrl T | B19: 2 | C19: 1 | D19: b | E19: 8 | F19: 369.86 | G19: 7421645
A20: Ctrl T | B20: 2 | C20: 1 | D20: b | E20: 9 | F20: 138.5 | G20: 9316963
A21: Ctrl T | B21: 2 | C21: 1 | D21: b | E21: 10 | F21: 89.6 | G21: 3194596
A22: Ctrl T | B22: 3 | C22: 2 | D22: b | E22: 1 | F22: 65.2 | G22: 4672842
A23: Ctrl T | B23: 3 | C23: 2 | D23: b | E23: 2 | F23: 116.54 | G23: 5156478
A24: Ctrl T | B24: 3 | C24: 2 | D24: b | E24: 3 | F24: 139.84 | G24: 4363675
A25: Ctrl T | B25: 3 | C25: 2 | D25: b | E25: 4 | F25: 117.78 | G25: 7519116
A26: Ctrl T | B26: 3 | C26: 2 | D26: b | E26: 5 | F26: 134.37 | G26: 6191109
A27: Ctrl T | B27: 3 | C27: 2 | D27: b | E27: 6 | F27: 138.93 | G27: 5464997
A28: Ctrl T | B28: 3 | C28: 2 | D28: b | E28: 7 | F28: 160.04 | G28: 2930260
A29: Ctrl T | B29: 3 | C29: 2 | D29: b | E29: 8 | F29: 159 | G29: 4295725
A30: Ctrl T | B30: 3 | C30: 2 | D30: b | E30: 9 | F30: 105.51 | G30: 2330090
A31: Ctrl T | B31: 3 | C31: 2 | D31: b | E31: 10 | F31: 68.97 | G31: 3390206
A32: Ctrl T | B32: 4 | C32: 3 | D32: a | E32: 1 | F32: 180.7 | G32: 2102255
A33: Ctrl T | B33: 4 | C33: 3 | D33: a | E33: 2 | F33: 170.39 | G33: 4573420
A34: Ctrl T | B34: 4 | C34: 3 | D34: a | E34: 3 | F34: 122.63 | G34: 5424420
A35: Ctrl T | B35: 4 | C35: 3 | D35: a | E35: 4 | F35: 63.51 | G35: 1918225
A36: Ctrl T | B36: 4 | C36: 3 | D36: a | E36: 5 | F36: 182.29 | G36: 4628870
A37: Ctrl T | B37: 4 | C37: 3 | D37: a | E37: 6 | F37: 114.69 | G37: 5409042
A38: Ctrl T | B38: 4 | C38: 3 | D38: a | E38: 7 | F38: 125.1 | G38: 4955171
A39: Ctrl T | B39: 4 | C39: 3 | D39: a | E39: 8 | F39: 169.44 | G39: 5441099
A40: Ctrl T | B40: 4 | C40: 3 | D40: a | E40: 9 | F40: 506.61 | G40: 11093190
A41: Ctrl T | B41: 4 | C41: 3 | D41: a | E41: 10 | F41: 257.81 | G41: 4506550
A42: Ctrl T | B42: 5 | C42: 3 | D42: b | E42: 1 | F42: 206.92 | G42: 7367894
A43: Ctrl T | B43: 5 | C43: 3 | D43: b | E43: 2 | F43: 208.1 | G43: 3667463
A44: Ctrl T | B44: 5 | C44: 3 | D44: b | E44: 3 | F44: 107.37 | G44: 6065949
A45: Ctrl T | B45: 5 | C45: 3 | D45: b | E45: 4 | F45: 146.02 | G45: 9183027
A46: Ctrl T | B46: 5 | C46: 3 | D46: b | E46: 5 | F46: 149.14 | G46: 7783410
A47: Ctrl T | B47: 5 | C47: 3 | D47: b | E47: 6 | F47: 185.29 | G47: 11562630
A48: Ctrl T | B48: 5 | C48: 3 | D48: b | E48: 7 | F48: 154.97 | G48: 4619146
A49: Ctrl T | B49: 5 | C49: 3 | D49: b | E49: 8 | F49: 39.34 | G49: 1917092
A50: Ctrl T | B50: 5 | C50: 3 | D50: b | E50: 9 | F50: 158.19 | G50: 6512759
A51: Ctrl T | B51: 5 | C51: 3 | D51: b | E51: 10 | F51: 98.26 | G51: 4414620
A52: prd; Rh1 | B52: 6 | C52: 1 | D52: a | E52: 1 | F52: 120.82 | G52: 5624285
A53: prd; Rh1 | B53: 6 | C53: 1 | D53: a | E53: 2 | F53: 176.85 | G53: 1883255
A54: prd; Rh1 | B54: 6 | C54: 1 | D54: a | E54: 3 | F54: 148.27 | G54: 1496110
A55: prd; Rh1 | B55: 6 | C55: 1 | D55: a | E55: 4 | F55: 160.07 | G55: 5263608
A56: prd; Rh1 | B56: 6 | C56: 1 | D56: a | E56: 5 | F56: 76.26 | G56: 1038780
A57: prd; Rh1 | B57: 6 | C57: 1 | D57: a | E57: 6 | F57: 134.42 | G57: 4365961
A58: prd; Rh1 | B58: 6 | C58: 1 | D58: a | E58: 7 | F58: 75.75 | G58: 517095
A59: prd; Rh1 | B59: 6 | C59: 1 | D59: a | E59: 8 | F59: 69.43 | G59: 1929130
A60: prd; Rh1 | B60: 6 | C60: 1 | D60: a | E60: 9 | F60: 94.37 | G60: 3674332
A61: prd; Rh1 | B61: 6 | C61: 1 | D61: a | E61: 10 | F61: 164.22 | G61: 1895225
A62: prd; Rh1 | B62: 7 | C62: 1 | D62: b | E62: 1 | F62: 116.54 | G62: 3567417
A63: prd; Rh1 | B63: 7 | C63: 1 | D63: b | E63: 2 | F63: 87.12 | G63: 2634245
A64: prd; Rh1 | B64: 7 | C64: 1 | D64: b | E64: 3 | F64: 117.21 | G64: 3291859
A65: prd; Rh1 | B65: 7 | C65: 1 | D65: b | E65: 4 | F65: 144.99 | G65: 2452355
A66: prd; Rh1 | B66: 7 | C66: 1 | D66: b | E66: 5 | F66: 141.12 | G66: 3200161
A67: prd; Rh1 | B67: 7 | C67: 1 | D67: b | E67: 6 | F67: 79.45 | G67: 621415
A68: prd; Rh1 | B68: 7 | C68: 1 | D68: b | E68: 7 | F68: 103.75 | G68: 777290
A69: prd; Rh1 | B69: 7 | C69: 1 | D69: b | E69: 8 | F69: 110.58 | G69: 3828994
A70: prd; Rh1 | B70: 7 | C70: 1 | D70: b | E70: 9 | F70: 217.16 | G70: 1607445
A71: prd; Rh1 | B71: 7 | C71: 1 | D71: b | E71: 10 | F71: 161.55 | G71: 4733432
A72: prd; Rh1 | B72: 8 | C72: 2 | D72: a | E72: 1 | F72: 149.01 | G72: 4508703
A73: prd; Rh1 | B73: 8 | C73: 2 | D73: a | E73: 2 | F73: 168.83 | G73: 2333468
A74: prd; Rh1 | B74: 8 | C74: 2 | D74: a | E74: 3 | F74: 113.03 | G74: 1475521
A75: prd; Rh1 | B75: 8 | C75: 2 | D75: a | E75: 4 | F75: 62.15 | G75: 986665
A76: prd; Rh1 | B76: 8 | C76: 2 | D76: a | E76: 5 | F76: 138.61 | G76: 3379302
A77: prd; Rh1 | B77: 8 | C77: 2 | D77: a | E77: 6 | F77: 135.06 | G77: 3454979
A78: prd; Rh1 | B78: 8 | C78: 2 | D78: a | E78: 7 | F78: 30.51 | G78: 1298546
A79: prd; Rh1 | B79: 8 | C79: 2 | D79: a | E79: 8 | F79: 43.43 | G79: 1425298
A80: prd; Rh1 | B80: 8 | C80: 2 | D80: a | E80: 9 | F80: 53.68 | G80: 1541677
A81: prd; Rh1 | B81: 8 | C81: 2 | D81: a | E81: 10 | F81: 192.74 | G81: 2232240
A82: prd; Rh1 | B82: 9 | C82: 3 | D82: a | E82: 1 | F82: 134.97 | G82: 2401215
A83: prd; Rh1 | B83: 9 | C83: 3 | D83: a | E83: 2 | F83: 126.3 | G83: 4949298
A84: prd; Rh1 | B84: 9 | C84: 3 | D84: a | E84: 3 | F84: 149.01 | G84: 5012263
A85: prd; Rh1 | B85: 9 | C85: 3 | D85: a | E85: 4 | F85: 120.82 | G85: 2354980
A86: prd; Rh1 | B86: 9 | C86: 3 | D86: a | E86: 5 | F86: 622.25 | G86: 6280006
A87: prd; Rh1 | B87: 9 | C87: 3 | D87: a | E87: 6 | F87: 270.9 | G87: 7844943
A88: prd; Rh1 | B88: 9 | C88: 3 | D88: a | E88: 7 | F88: 162.19 | G88: 3764390
A89: prd; Rh1 | B89: 9 | C89: 3 | D89: a | E89: 8 | F89: 341.01 | G89: 9059389
A90: prd; Rh1 | B90: 9 | C90: 3 | D90: a | E90: 9 | F90: 185.94 | G90: 4231750
A91: prd; Rh1 | B91: 9 | C91: 3 | D91: a | E91: 10 | F91: 128.07 | G91: 3505965
A92: prd; Rh1 | B92: 10 | C92: 3 | D92: b | E92: 1 | F92: 111.67 | G92: 4550428
A93: prd; Rh1 | B93: 10 | C93: 3 | D93: b | E93: 2 | F93: 179.78 | G93: 2625649
A94: prd; Rh1 | B94: 10 | C94: 3 | D94: b | E94: 3 | F94: 218.7 | G94: 7523583
A95: prd; Rh1 | B95: 10 | C95: 3 | D95: b | E95: 4 | F95: 75.3 | G95: 3023484
A96: prd; Rh1 | B96: 10 | C96: 3 | D96: b | E96: 5 | F96: 70.24 | G96: 2278303
A97: prd; Rh1 | B97: 10 | C97: 3 | D97: b | E97: 6 | F97: 187.71 | G97: 6023108
A98: prd; Rh1 | B98: 10 | C98: 3 | D98: b | E98: 7 | F98: 94.76 | G98: 4625146
A99: prd; Rh1 | B99: 10 | C99: 3 | D99: b | E99: 8 | F99: 93.85 | G99: 3063611
A100: prd; Rh1 | B100: 10 | C100: 3 | D100: b | E100: 9 | F100: 65.6 | G100: 2144434
A101: prd; Rh1 | B101: 10 | C101: 3 | D101: b | E101: 10 | F101: 170.96 | G101: 3000267
A102: prd; Rh1 | B102: 11 | C102: 4 | D102: a | E102: 1 | F102: 53.68 | G102: 1610025
A103: prd; Rh1 | B103: 11 | C103: 4 | D103: a | E103: 2 | F103: 57.45 | G103: 1988196
A104: prd; Rh1 | B104: 11 | C104: 4 | D104: a | E104: 3 | F104: 106.07 | G104: 2255410
A105: prd; Rh1 | B105: 11 | C105: 4 | D105: a | E105: 4 | F105: 59.51 | G105: 1135330
A106: prd; Rh1 | B106: 11 | C106: 4 | D106: a | E106: 5 | F106: 60.09 | G106: 928135
A107: prd; Rh1 | B107: 11 | C107: 4 | D107: a | E107: 6 | F107: 52.94 | G107: 974675
A108: prd; Rh1 | B108: 11 | C108: 4 | D108: a | E108: 7 | F108: 78.65 | G108: 1751985
A109: prd; Rh1 | B109: 11 | C109: 4 | D109: a | E109: 8 | F109: 74.04 | G109: 2454050
A110: prd; Rh1 | B110: 11 | C110: 4 | D110: a | E110: 9 | F110: 59.12 | G110: 1125030
A111: prd; Rh1 | B111: 11 | C111: 4 | D111: a | E111: 10 | F111: 48.39 | G111: 255605
A112: prd; Rh1 | B112: 12 | C112: 4 | D112: b | E112: 1 | F112: 126.53 | G112: 2548405
A113: prd; Rh1 | B113: 12 | C113: 4 | D113: b | E113: 2 | F113: 45.82 | G113: 1929034
A114: prd; Rh1 | B114: 12 | C114: 4 | D114: b | E114: 3 | F114: 53.52 | G114: 1322196
A115: prd; Rh1 | B115: 12 | C115: 4 | D115: b | E115: 4 | F115: 49.94 | G115: 1044360
A116: prd; Rh1 | B116: 12 | C116: 4 | D116: b | E116: 5 | F116: 67.6 | G116: 1816123
A117: prd; Rh1 | B117: 12 | C117: 4 | D117: b | E117: 6 | F117: 69.66 | G117: 1223615
A118: prd; Rh1 | B118: 12 | C118: 4 | D118: b | E118: 7 | F118: 83.64 | G118: 1348860
A119: prd; Rh1 | B119: 12 | C119: 4 | D119: b | E119: 8 | F119: 112.99 | G119: 1929005
A120: prd; Rh1 | B120: 12 | C120: 4 | D120: b | E120: 9 | F120: 118.21 | G120: 1489195
A121: prd; Rh1 | B121: 12 | C121: 4 | D121: b | E121: 10 | F121: 55.29 | G121: 1423621
A122: T1786 | B122: 13 | C122: 1 | D122: a | E122: 1 | F122: 102.03 | G122: 4513990
A123: T1786 | B123: 13 | C123: 1 | D123: a | E123: 2 | F123: 113.59 | G123: 4400391
A124: T1786 | B124: 13 | C124: 1 | D124: a | E124: 3 | F124: 55.56 | G124: 2805718
A125: T1786 | B125: 13 | C125: 1 | D125: a | E125: 4 | F125: 126.85 | G125: 7200593
A126: T1786 | B126: 13 | C126: 1 | D126: a | E126: 5 | F126: 134.98 | G126: 5712971
A127: T1786 | B127: 13 | C127: 1 | D127: a | E127: 6 | F127: 69.56 | G127: 3025294
A128: T1786 | B128: 13 | C128: 1 | D128: a | E128: 7 | F128: 79.29 | G128: 2853015
A129: T1786 | B129: 13 | C129: 1 | D129: a | E129: 8 | F129: 39.21 | G129: 2484262
A130: T1786 | B130: 13 | C130: 1 | D130: a | E130: 9 | F130: 74.57 | G130: 6168991
A131: T1786 | B131: 13 | C131: 1 | D131: a | E131: 10 | F131: 67.06 | G131: 5343060
A132: T1786 | B132: 14 | C132: 1 | D132: b | E132: 1 | F132: 101.32 | G132: 2122527
A133: T1786 | B133: 14 | C133: 1 | D133: b | E133: 2 | F133: 75.6 | G133: 2702844
A134: T1786 | B134: 14 | C134: 1 | D134: b | E134: 3 | F134: 141.59 | G134: 4213410
A135: T1786 | B135: 14 | C135: 1 | D135: b | E135: 4 | F135: 172.46 | G135: 2779450
A136: T1786 | B136: 14 | C136: 1 | D136: b | E136: 5 | F136: 51 | G136: 960396
A137: T1786 | B137: 14 | C137: 1 | D137: b | E137: 6 | F137: 36.23 | G137: 773736
A138: T1786 | B138: 14 | C138: 1 | D138: b | E138: 7 | F138: 129.23 | G138: 2410451
A139: T1786 | B139: 14 | C139: 1 | D139: b | E139: 8 | F139: 77.4 | G139: 3915596
A140: T1786 | B140: 14 | C140: 1 | D140: b | E140: 9 | F140: 67.89 | G140: 2761968
A141: T1786 | B141: 14 | C141: 1 | D141: b | E141: 10 | F141: 93.39 | G141: 2051937
A142: T1786 | B142: 15 | C142: 2 | D142: a | E142: 1 | F142: 146.44 | G142: 1865230
A143: T1786 | B143: 15 | C143: 2 | D143: a | E143: 2 | F143: 98.18 | G143: 1777125
A144: T1786 | B144: 15 | C144: 2 | D144: a | E144: 3 | F144: 88.64 | G144: 1389025
A145: T1786 | B145: 15 | C145: 2 | D145: a | E145: 4 | F145: 68.28 | G145: 1044980
A146: T1786 | B146: 15 | C146: 2 | D146: a | E146: 5 | F146: 53.95 | G146: 846373
A147: T1786 | B147: 15 | C147: 2 | D147: a | E147: 6 | F147: 27.14 | G147: 430175
A148: T1786 | B148: 15 | C148: 2 | D148: a | E148: 7 | F148: 40.79 | G148: 1215635
A149: T1786 | B149: 15 | C149: 2 | D149: a | E149: 8 | F149: 38.41 | G149: 1043141
A150: T1786 | B150: 15 | C150: 2 | D150: a | E150: 9 | F150: 44.38 | G150: 1328568
A151: T1786 | B151: 15 | C151: 2 | D151: a | E151: 10 | F151: 25.18 | G151: 189208
A152: T1786 | B152: 16 | C152: 2 | D152: b | E152: 1 | F152: 80.96 | G152: 2324812
A153: T1786 | B153: 16 | C153: 2 | D153: b | E153: 2 | F153: 63.91 | G153: 1521041
A154: T1786 | B154: 16 | C154: 2 | D154: b | E154: 3 | F154: 64.29 | G154: 1702053
A155: T1786 | B155: 16 | C155: 2 | D155: b | E155: 4 | F155: 73.54 | G155: 2689470
A156: T1786 | B156: 16 | C156: 2 | D156: b | E156: 5 | F156: 52.03 | G156: 2329363
A157: T1786 | B157: 16 | C157: 2 | D157: b | E157: 6 | F157: 112.59 | G157: 956876
A158: T1786 | B158: 16 | C158: 2 | D158: b | E158: 7 | F158: 78.1 | G158: 2366871
A159: T1786 | B159: 16 | C159: 2 | D159: b | E159: 8 | F159: 38.63 | G159: 1329306
A160: T1786 | B160: 16 | C160: 2 | D160: b | E160: 9 | F160: 69.46 | G160: 1998841
A161: T1786 | B161: 16 | C161: 2 | D161: b | E161: 10 | F161: 49.78 | G161: 768010
A162: T1786 | B162: 17 | C162: 3 | D162: a | E162: 1 | F162: 150.2 | G162: 5243211
A163: T1786 | B163: 17 | C163: 3 | D163: a | E163: 2 | F163: 74.63 | G163: 2197727
A164: T1786 | B164: 17 | C164: 3 | D164: a | E164: 3 | F164: 76.4 | G164: 2317685
A165: T1786 | B165: 17 | C165: 3 | D165: a | E165: 4 | F165: 57.55 | G165: 2178947
A166: T1786 | B166: 17 | C166: 3 | D166: a | E166: 5 | F166: 116.38 | G166: 4181388
A167: T1786 | B167: 17 | C167: 3 | D167: a | E167: 6 | F167: 101.19 | G167: 2925552
A168: T1786 | B168: 17 | C168: 3 | D168: a | E168: 7 | F168: 150.97 | G168: 5419622
A169: T1786 | B169: 17 | C169: 3 | D169: a | E169: 8 | F169: 167.45 | G169: 4958896
A170: T1786 | B170: 17 | C170: 3 | D170: a | E170: 9 | F170: 58.26 | G170: 1421878
A171: T1786 | B171: 17 | C171: 3 | D171: a | E171: 10 | F171: 78.1 | G171: 976915
A172: T1786 | B172: 18 | C172: 3 | D172: b | E172: 1 | F172: 47.27 | G172: 1513099
A173: T1786 | B173: 18 | C173: 3 | D173: b | E173: 2 | F173: 99.4 | G173: 3651759
A174: T1786 | B174: 18 | C174: 3 | D174: b | E174: 3 | F174: 45.6 | G174: 903298
A175: T1786 | B175: 18 | C175: 3 | D175: b | E175: 4 | F175: 110.06 | G175: 1577396
A176: T1786 | B176: 18 | C176: 3 | D176: b | E176: 5 | F176: 78.1 | G176: 1689215
A177: T1786 | B177: 18 | C177: 3 | D177: b | E177: 6 | F177: 82.25 | G177: 1798123
A178: T1786 | B178: 18 | C178: 3 | D178: b | E178: 7 | F178: 57 | G178: 1093292
A179: T1786 | B179: 18 | C179: 3 | D179: b | E179: 8 | F179: 53.66 | G179: 1249840
A180: T1786 | B180: 18 | C180: 3 | D180: b | E180: 9 | F180: 46.47 | G180: 652360
A181: T1786 | B181: 18 | C181: 3 | D181: b | E181: 10 | F181: 188.61 | G181: 4498274
A182: T1786 | B182: 19 | C182: 4 | D182: a | E182: 1 | F182: 61.66 | G182: 2651778
A183: T1786 | B183: 19 | C183: 4 | D183: a | E183: 2 | F183: 149.01 | G183: 2982566
A184: T1786 | B184: 19 | C184: 4 | D184: a | E184: 3 | F184: 122.36 | G184: 3565679
A185: T1786 | B185: 19 | C185: 4 | D185: a | E185: 4 | F185: 65.48 | G185: 2396681
A186: T1786 | B186: 19 | C186: 4 | D186: a | E186: 5 | F186: 62.85 | G186: 2778789
A187: T1786 | B187: 19 | C187: 4 | D187: a | E187: 6 | F187: 36.58 | G187: 1221421
A188: T1786 | B188: 19 | C188: 4 | D188: a | E188: 7 | F188: 42.58 | G188: 869224
A189: T1786 | B189: 19 | C189: 4 | D189: a | E189: 8 | F189: 61.05 | G189: 1622041
A190: T1786 | B190: 19 | C190: 4 | D190: a | E190: 9 | F190: 49.62 | G190: 1291273
A191: T1786 | B191: 19 | C191: 4 | D191: a | E191: 10 | F191: 54.88 | G191: 1172061
A192: T1786 | B192: 19 | C192: 4 | D192: a | E192: 1 | F192: 51.61 | G192: 2852146
A193: T1786 | B193: 20 | C193: 4 | D193: b | E193: 2 | F193: 57.94 | G193: 4359730
A194: T1786 | B194: 20 | C194: 4 | D194: b | E194: 3 | F194: 33.17 | G194: 970745
A195: T1786 | B195: 20 | C195: 4 | D195: b | E195: 4 | F195: 32.79 | G195: 614770
A196: T1786 | B196: 20 | C196: 4 | D196: b | E196: 5 | F196: 67.28 | G196: 2587752
A197: T1786 | B197: 20 | C197: 4 | D197: b | E197: 6 | F197: 87.48 | G197: 2055540
A198: T1786 | B198: 20 | C198: 4 | D198: b | E198: 7 | F198: 38.41 | G198: 2640550
A199: T1786 | B199: 20 | C199: 4 | D199: b | E199: 8 | F199: 75.02 | G199: 3806787
A200: T1786 | B200: 20 | C200: 4 | D200: b | E200: 9 | F200: 52.32 | G200: 2059217
... 791 more rows
